﻿Directorate,Service,Division,Responsible Unit,Expense Type,Payment Date,Trans No,Net Amount,Supplier Name
Childrens Services,Education Services,Other Strategic Functions,Empty Properties,Repairs and Maintenance - Responsive - Repair & Maintenance,02/05/2018,5008410,"22,830.00",Manpower Direct UK
Childrens Services,Children's Social Care,Family Support Services,CNN Pool: Joint Family Support,Social Care - Homecare,02/05/2018,5020982,"4,359.42",CAREWORLD LONDON LIMITED
Childrens Services,Children's Social Care,Family Support Services,CNN Pool: Joint Family Support,Social Care - Homecare,02/05/2018,5021064,"4,632.12",CAREWORLD LONDON LIMITED
Childrens Services,Education Services,Secondary Schools,PFI Hldg Account-Grouped Schoo,Payments to Private Contractors - Other Contractors,02/05/2018,5031389,"18,500.00",Tower Hamlets Schools LTD
Childrens Services,Education Services,Other Strategic Functions,High Needs FE Colleges,Third Party Payments - Payments to Schools,02/05/2018,5031474,"1,650.00",The Complete Works Ltd
Childrens Services,Education Services,Secondary Schools,PFI Hldg Account-Grouped Schoo,Payments to Private Contractors - Other Contractors,02/05/2018,5031523,"23,323.28",Tower Hamlets Schools LTD
Childrens Services,Children's Social Care,Service Strategy,CSC Childrens Resources M & A,Training Expenses - Other External Training (Non UK Based),02/05/2018,5031853,525.00,Brighter Future Solutions
Childrens Services,Children's Social Care,Children Looked After,S23-Other-Semi-Ind. Unit,Childrens Act Section 23 - Placement Fee,02/05/2018,5032773,792.84,Real Life
Childrens Services,Children's Social Care,Children Looked After,S23-Other-Semi-Ind. Unit,Childrens Act Section 23 - Placement Fee,02/05/2018,5032774,"1,114.26",Real Life
Childrens Services,Children's Social Care,Children Looked After,S23-Other-Semi-Ind. Unit,Childrens Act Section 23 - Placement Fee,02/05/2018,5032775,792.84,Real Life
Childrens Services,Children's Social Care,Children Looked After,S23-Other-Semi-Ind. Unit,Childrens Act Section 23 - Placement Fee,02/05/2018,5032776,792.84,Real Life
Childrens Services,Children's Social Care,Support Service and Management Costs,Schools Catering,Kitchen Supplies - Food and Beverages,02/05/2018,5032802,"1,425.72",Thomas Ridley & Son Ltd
Childrens Services,Cultural and Related Services,Open Spaces,Victoria Park,Events & Exhibition Supplies,02/05/2018,5033061,"1,100.00",Rehan Jamil Photography
Childrens Services,Cultural and Related Services,Recreation & Sport,Sports Development,Recreational Activities,02/05/2018,5033070,400.00,Rehan Jamil Photography
Childrens Services,Children's Social Care,Family Support Services,CNN Pool: Joint Family Support,Services - Professional Fees - Translation Fees,02/05/2018,5033220,799.75,VIETNAMESE MENTAL HEALTH SERVICES
Childrens Services,Children's Social Care,Support Service and Management Costs,Welfare Catering,Kitchen Supplies - Food and Beverages,02/05/2018,5034089,395.83,William White Meats Ltd
Childrens Services,Education Services,Early Years,Wapping CC,Printing - Internal,02/05/2018,5035091,346.00,Xerox (UK) LTD
Childrens Services,Education Services,Early Years,Isle of Dogs. CC,Comms - Purchase of Equipment,02/05/2018,5035092,633.00,Xerox (UK) LTD
Childrens Services,Education Services,Early Years,EYS Mainstream Grants,Third Party Payments - Payments to Schools,02/05/2018,5035105,"7,500.00",Early Years Network Tower Hamlets
Childrens Services,Education Services,Other Strategic Functions,Governors Services,Computing - Purchase of Software,02/05/2018,5035153,708.22,Specialist Computer Centres PLC
Childrens Services,Education Services,Other Strategic Functions,Special Education Needs DSG,Third Party Payments - Payments to Schools,02/05/2018,5035434,"8,325.71",Hillcrest Care Ltd
Childrens Services,Children's Social Care,Children Looked After,S23-Resi-P&V/OLA-Boarding Sch,Childrens Act Section 23 - Placement Fee,02/05/2018,5035434,"8,325.72",Hillcrest Care Ltd
Childrens Services,Children's Social Care,Children Looked After,S23-Other-Mother & Baby Unit,Childrens Act Section 23 - Placement Fee,02/05/2018,5035489,"9,415.00",Real Life
Childrens Services,Education Services,Other Strategic Functions,Ofsted Improvement Plan,Services - Professional Fees - Consultants Fees,02/05/2018,5036015,"14,490.31",Stable House Consulting
Childrens Services,Education Services,Other Strategic Functions,Children with Complex Needs,Payments to Private Contractors - Private Contractor,02/05/2018,5036030,300.00,London & Home Counties Regional Conf.
Childrens Services,Education Services,Secondary Schools,PFI Hldg Account-Grouped Schoo,Payments to Private Contractors - Other Contractors,02/05/2018,5036113,"16,646.88",Tower Hamlets Schools LTD
Childrens Services,Education Services,Early Years,3&4 Year old PVI�s,Third Party Payments - Voluntary Associations,02/05/2018,5036192,"54,999.00",Riverhouse Montessori Nursery
Childrens Services,Children's Social Care,Children Looked After,Virtual School PPG,Agency Staff - Associations,02/05/2018,5036468,690.45,Academics ltd
Childrens Services,Children's Social Care,Children Looked After,Virtual School PPG,Agency Staff - Associations,02/05/2018,5036469,920.60,Academics ltd
Childrens Services,Children's Social Care,Children Looked After,Virtual School PPG,Agency Staff - Associations,02/05/2018,5036470,690.45,Academics ltd
Childrens Services,Children's Social Care,Children Looked After,Virtual School PPG,Agency Staff - Associations,02/05/2018,5036471,920.60,Academics ltd
Childrens Services,Children's Social Care,Children Looked After,Virtual School PPG,Agency Staff - Associations,02/05/2018,5036472,460.30,Academics ltd
Childrens Services,Children's Social Care,Children Looked After,S23 Fam Pl P&V-F/Care,Childrens Act Section 23 - Placement Fee,02/05/2018,5039120,"10,254.82",Bexley Council
Childrens Services,Education Services,Other Strategic Functions,High Needs FE Colleges,Third Party Payments - Payments to Schools,02/05/2018,5039158,"2,310.00",The Complete Works Ltd
Childrens Services,Education Services,Other Strategic Functions,High Needs Academies & Free Schs,Third Party Payments - Payments to Schools,02/05/2018,5039507,"4,375.00",Whitefield Schools and Centre
Childrens Services,Education Services,Other Strategic Functions,High Needs FE Colleges,Third Party Payments - Payments to Schools,02/05/2018,5039588,"8,005.33",Waltham Forest College
Childrens Services,Education Services,Other Strategic Functions,Pupil & Student Services GF,Non Staff Transport Costs - Client Transport Costs,02/05/2018,5039873,"1,680.00",Lindel Services LTD - T/A Fox Transport
Childrens Services,Education Services,Other Strategic Functions,SEN External Travel,Non Staff Transport Costs - Reimbursement,02/05/2018,5039874,"49,216.00",Lindel Services LTD - T/A Fox Transport
Childrens Services,Children's Social Care,Children Looked After,Children Looked After Sect 17,Childrens Act Section 17 - Maintenance/Subsistence,02/05/2018,5039879,"1,395.00",George IV Regency Hotel
Childrens Services,Education Services,Other Strategic Functions,SEN External Travel,Non Staff Transport Costs - Reimbursement,02/05/2018,5039896,"6,185.00",Mile End Car Hire Limited
Childrens Services,Education Services,Other Strategic Functions,SEN External Travel,Non Staff Transport Costs - Reimbursement,02/05/2018,5039897,"22,698.00",TKG LTD T/A The Keen Group
Childrens Services,Children's Social Care,Children Looked After,Leaving Care Staff,Panel & Conference Expenses - Conference - UK Based,02/05/2018,5039921,"2,995.00",Catch 22 Charity LTD
Childrens Services,Education Services,Other Strategic Functions,High Needs Other Boroughs,Third Party Payments - Payments to Schools,02/05/2018,5040777,489.94,Derbyshire County Council
Childrens Services,Education Services,Other Strategic Functions,Special Education Needs DSG,Third Party Payments - Payments to Schools,02/05/2018,5040814,"5,090.08",SMALL HAVEN SCHOOL
Childrens Services,Education Services,Other Strategic Functions,High Needs Other Boroughs,Third Party Payments - Payments to Schools,02/05/2018,5040843,957.92,Derbyshire County Council
Childrens Services,Children's Social Care,Other Children's and Family Services,Adoption Support Fund,Third Party Payments - Other Agencies,02/05/2018,5041036,"2,700.00",Therapy Space
Childrens Services,Education Services,Other Strategic Functions,Special Education Needs DSG,Third Party Payments - Payments to Schools,02/05/2018,5041082,"10,300.00",Fairley House School
Childrens Services,Education Services,Other Strategic Functions,High Needs FE Colleges,Third Party Payments - Payments to Schools,02/05/2018,5041090,"13,224.53",Orchard Hill College
Childrens Services,Education Services,Other Strategic Functions,SEN External Travel,Non Staff Transport Costs - Reimbursement,02/05/2018,5041105,"17,808.00",TKG LTD T/A The Keen Group
Childrens Services,Children's Social Care,Children Looked After,S23-Resi-P&V/OLA-Child Home,Childrens Act Section 23 - Placement Fee,02/05/2018,5041107,"3,840.00",Platform Childcare Ltd
Childrens Services,Education Services,Other Strategic Functions,CS Prem Retirement (Non-School,Services - Professional Fees - Financial Services Fees,02/05/2018,5041110,"21,258.95",London Pensions Fund Authority
Childrens Services,No Service Specified,No Division Specified,Capital-Minor Works (SC),Other External Fees - Other External Fees,02/05/2018,5041141,417.30,Cad-Capture Data Services Ltd
Childrens Services,Education Services,Other Strategic Functions,Special Education Needs DSG,Third Party Payments - Payments to Schools,02/05/2018,5042515,"12,360.00",Riverston School LTD
Childrens Services,Education Services,Other Strategic Functions,Special Education Needs DSG,Third Party Payments - Payments to Schools,02/05/2018,5042516,"9,752.00",Riverston School LTD
Childrens Services,Education Services,Other Strategic Functions,Special Education Needs DSG,Third Party Payments - Payments to Schools,02/05/2018,5042517,"7,302.66",Chigwell School
Childrens Services,Education Services,Other Strategic Functions,Special Education Needs DSG,Third Party Payments - Payments to Schools,02/05/2018,5042518,"11,055.00",Riverston School LTD
Childrens Services,Education Services,Other Strategic Functions,Special Education Needs DSG,Third Party Payments - Payments to Schools,02/05/2018,5042519,"11,055.00",Riverston School LTD
Childrens Services,Education Services,Other Strategic Functions,Special Education Needs DSG,Third Party Payments - Payments to Schools,02/05/2018,5042524,"9,792.40",Riverston School LTD
Childrens Services,Education Services,Other Strategic Functions,Special Education Needs DSG,Third Party Payments - Payments to Schools,02/05/2018,5042534,"13,159.00",Riverston School LTD
Childrens Services,Education Services,Other Strategic Functions,Special Education Needs DSG,Third Party Payments - Payments to Schools,02/05/2018,5042544,"9,578.00",Riverston School LTD
Childrens Services,Children's Social Care,Children Looked After,Enrichment Projects,Services - Professional Fees - Consultants Fees,02/05/2018,5042621,350.00,Discover Bushcraft
Childrens Services,Children's Social Care,Family Support Services,IPST S17 NRPF,Childrens Act Section 17 - Other Placements Bed & Breakfast,02/05/2018,5042649,350.00,Chris Solicitors
Childrens Services,Education Services,Early Years,SSEYCG Two Year Old Pilot,Third Party Payments - Voluntary Associations,02/05/2018,5042661,"1,755.00",ABERTOTS PLAY
Childrens Services,Education Services,Early Years,SSEYCG Two Year Old Pilot,Third Party Payments - Voluntary Associations,02/05/2018,5042662,"8,190.00",Allen Gardens Playgroup
Childrens Services,Education Services,Early Years,SSEYCG Two Year Old Pilot,Third Party Payments - Voluntary Associations,02/05/2018,5042663,"9,945.00",Avebury Playgroup
Childrens Services,Education Services,Early Years,SSEYCG Two Year Old Pilot,Third Party Payments - Voluntary Associations,02/05/2018,5042664,"2,340.00",Barkantine Community Nursery
Childrens Services,Education Services,Early Years,SSEYCG Two Year Old Pilot,Third Party Payments - Voluntary Associations,02/05/2018,5042665,"11,700.00",Barnardo's
Childrens Services,Education Services,Early Years,SSEYCG Two Year Old Pilot,Third Party Payments - Voluntary Associations,02/05/2018,5042666,"6,435.00",BRAYFORD SQUARE PLAYGROUP
Childrens Services,Education Services,Early Years,SSEYCG Two Year Old Pilot,Third Party Payments - Voluntary Associations,02/05/2018,5042667,585.00,BRIGHT HORIZONS FAMILY SOLUTION
Childrens Services,Education Services,Early Years,SSEYCG Two Year Old Pilot,Third Party Payments - Voluntary Associations,02/05/2018,5042668,"9,945.00",Burdett Estate playgroup
Childrens Services,Education Services,Early Years,SSEYCG Two Year Old Pilot,Third Party Payments - Voluntary Associations,02/05/2018,5042669,"10,530.00",Calvary Charismatic Baptist Church
Childrens Services,Education Services,Early Years,SSEYCG Two Year Old Pilot,Third Party Payments - Voluntary Associations,02/05/2018,5042670,"5,265.00",SOMALI INTEGRATION TEAM
Childrens Services,Education Services,Early Years,SSEYCG Two Year Old Pilot,Third Party Payments - Voluntary Associations,02/05/2018,5042671,"8,775.00",DATE PALM PRIMARY
Childrens Services,Education Services,Early Years,SSEYCG Two Year Old Pilot,Third Party Payments - Voluntary Associations,02/05/2018,5042672,"1,755.00",EXCELLENCE CHRISTIAN SCHOOL
Childrens Services,Education Services,Early Years,SSEYCG Two Year Old Pilot,Third Party Payments - Voluntary Associations,02/05/2018,5042673,"5,265.00",CITY GATEWAY
Childrens Services,Education Services,Early Years,SSEYCG Two Year Old Pilot,Third Party Payments - Voluntary Associations,02/05/2018,5042674,"9,360.00",CITY GATEWAY
Childrens Services,Education Services,Early Years,SSEYCG Two Year Old Pilot,Third Party Payments - Voluntary Associations,02/05/2018,5042675,"8,775.00",GLOBAL KIDS DAY CARE
Childrens Services,Education Services,Early Years,SSEYCG Two Year Old Pilot,Third Party Payments - Voluntary Associations,02/05/2018,5042676,"16,380.00",GLOBAL KIDS DAY CARE
Childrens Services,Education Services,Early Years,SSEYCG Two Year Old Pilot,Third Party Payments - Voluntary Associations,02/05/2018,5042677,"11,700.00",Account 3 Ltd
Childrens Services,Education Services,Early Years,SSEYCG Two Year Old Pilot,Third Party Payments - Voluntary Associations,02/05/2018,5042678,"13,455.00",Headstart Nursery
Childrens Services,Education Services,Early Years,SSEYCG Two Year Old Pilot,Third Party Payments - Voluntary Associations,02/05/2018,5042679,"3,510.00",Incy Wincy Stars Childcare Ltd
Childrens Services,Education Services,Early Years,SSEYCG Two Year Old Pilot,Third Party Payments - Voluntary Associations,02/05/2018,5042680,"18,720.00",Iqra Pre School
Childrens Services,Education Services,Early Years,SSEYCG Two Year Old Pilot,Third Party Payments - Voluntary Associations,02/05/2018,5042681,"4,095.00",Iqra Preschool
Childrens Services,Education Services,Early Years,SSEYCG Two Year Old Pilot,Third Party Payments - Voluntary Associations,02/05/2018,5042682,"4,826.25",ISLAND HOUSE PRE SCHOOL PLAYGROUP
Childrens Services,Education Services,Early Years,SSEYCG Two Year Old Pilot,Third Party Payments - Voluntary Associations,02/05/2018,5042683,"21,060.00",Jingle Jungle Nursery
Childrens Services,Education Services,Early Years,SSEYCG Two Year Old Pilot,Third Party Payments - Voluntary Associations,02/05/2018,5042684,"8,775.00",Kids Kingdom Nursery
Childrens Services,Education Services,Early Years,SSEYCG Two Year Old Pilot,Third Party Payments - Voluntary Associations,02/05/2018,5042685,"6,435.00",Limehouse Arches Day Nursery
Childrens Services,Education Services,Early Years,SSEYCG Two Year Old Pilot,Third Party Payments - Voluntary Associations,02/05/2018,5042686,"7,020.00",Limehouse Arches Day Nursery
Childrens Services,Education Services,Early Years,SSEYCG Two Year Old Pilot,Third Party Payments - Voluntary Associations,02/05/2018,5042687,"14,040.00",Lincoln Hall Playgroup
Childrens Services,Education Services,Early Years,SSEYCG Two Year Old Pilot,Third Party Payments - Voluntary Associations,02/05/2018,5042688,"9,360.00",Little Limehouse Preschool
Childrens Services,Education Services,Early Years,SSEYCG Two Year Old Pilot,Third Party Payments - Voluntary Associations,02/05/2018,5042689,"8,775.00",Little St Matthias Pre School
Childrens Services,Education Services,Early Years,SSEYCG Two Year Old Pilot,Third Party Payments - Voluntary Associations,02/05/2018,5042690,"2,340.00",MAGIC ROUNDABOUT NURSERIES LTD
Childrens Services,Education Services,Early Years,SSEYCG Two Year Old Pilot,Third Party Payments - Voluntary Associations,02/05/2018,5042691,"15,210.00",Matchbox Day Nursery Ltd
Childrens Services,Education Services,Early Years,SSEYCG Two Year Old Pilot,Third Party Payments - Voluntary Associations,02/05/2018,5042692,"5,850.00",Munchkins Playgroup
Childrens Services,Education Services,Early Years,SSEYCG Two Year Old Pilot,Third Party Payments - Voluntary Associations,02/05/2018,5042693,"6,435.00",New Birth Day Nursery
Childrens Services,Education Services,Early Years,SSEYCG Two Year Old Pilot,Third Party Payments - Voluntary Associations,02/05/2018,5042694,"2,925.00",London Early Years Foundation
Childrens Services,Education Services,Early Years,SSEYCG Two Year Old Pilot,Third Party Payments - Voluntary Associations,02/05/2018,5042695,585.00,Pepe & Friends Ltd
Childrens Services,Education Services,Early Years,SSEYCG Two Year Old Pilot,Third Party Payments - Voluntary Associations,02/05/2018,5042696,"9,945.00",Poplar Play Centre
Childrens Services,Education Services,Early Years,SSEYCG Two Year Old Pilot,Third Party Payments - Voluntary Associations,02/05/2018,5042697,"17,550.00",Rainbow House
Childrens Services,Education Services,Early Years,SSEYCG Two Year Old Pilot,Third Party Payments - Voluntary Associations,02/05/2018,5042698,"10,530.00",RANWELL PLAYGROUP
Childrens Services,Education Services,Early Years,SSEYCG Two Year Old Pilot,Third Party Payments - Voluntary Associations,02/05/2018,5042699,"5,265.00",Shining Futures Nursery
Childrens Services,Education Services,Early Years,SSEYCG Two Year Old Pilot,Third Party Payments - Voluntary Associations,02/05/2018,5042700,"2,340.00",CATHOLIC CHILDREN'S SOCIETY(WESTMINSTER)
Childrens Services,Education Services,Early Years,SSEYCG Two Year Old Pilot,Third Party Payments - Voluntary Associations,02/05/2018,5042701,"8,190.00",Step By Step Nursery
Childrens Services,Education Services,Early Years,SSEYCG Two Year Old Pilot,Third Party Payments - Voluntary Associations,02/05/2018,5042702,"11,797.50",TATE HOUSE PLAYGROUP
Childrens Services,Education Services,Early Years,SSEYCG Two Year Old Pilot,Third Party Payments - Voluntary Associations,02/05/2018,5042703,"4,290.00",TATE HOUSE PLAYGROUP
Childrens Services,Education Services,Early Years,SSEYCG Two Year Old Pilot,Third Party Payments - Voluntary Associations,02/05/2018,5042704,"5,850.00",New City College (Tower Hamlets Campus)
Childrens Services,Education Services,Early Years,SSEYCG Two Year Old Pilot,Third Party Payments - Voluntary Associations,02/05/2018,5042705,"4,680.00",Tower Hamlets Opportunity Group
Childrens Services,Education Services,Early Years,SSEYCG Two Year Old Pilot,Third Party Payments - Voluntary Associations,02/05/2018,5042706,"14,040.00",VERNON PLAYGROUP
Childrens Services,Education Services,Early Years,SSEYCG Two Year Old Pilot,Third Party Payments - Voluntary Associations,02/05/2018,5042707,"1,170.00",WAPPING PLAYGROUP
Childrens Services,Education Services,Early Years,SSEYCG Two Year Old Pilot,Third Party Payments - Voluntary Associations,02/05/2018,5042708,585.00,THE NURSERY QUEEN MARY UNIVERSITY LONDON
Childrens Services,Education Services,Other Strategic Functions,High Needs LBTH Mainstream Schs,Services - Professional Fees - Consultants Fees,02/05/2018,5042849,398.10,Wireless Info Solutions
Childrens Services,Education Services,Other Strategic Functions,Auxilary Aids,Printing - Internal,02/05/2018,5042886,296.50,RNC ENTERPRISES LTD
Childrens Services,Cultural and Related Services,Open Spaces,Parks & Open Spaces Man&Admin,Water Services - Metered,02/05/2018,5042890,278.92,CASTLE WATER
Childrens Services,Cultural and Related Services,Open Spaces,Victoria Park,Water Services - Metered,02/05/2018,5042904,"1,163.59",CASTLE WATER
Childrens Services,Children's Social Care,Children Looked After,Leaving Care Staff,Water Services - Metered,02/05/2018,5042911,260.41,CASTLE WATER
Childrens Services,Education Services,Other Strategic Functions,Empty Properties,Water Services - Metered,02/05/2018,5042912,947.10,CASTLE WATER
Childrens Services,Children's Social Care,Service Strategy,FSP Sect 17 - Team 5,Childrens Act Section 17 - Expert Assessmt/Witness Costs,02/05/2018,5042952,"1,000.00",Wilson Solicitors LLP
Childrens Services,Education Services,Other Strategic Functions,Parental Engagement,Social Care - Prevention & Support,02/05/2018,5043052,"2,880.00",Bold Creative LTD
Childrens Services,Children's Social Care,Children Looked After,S23 Fam Pl In-Hse-S/Term F/C,Childrens Act Section 23 - Medical Expenses,02/05/2018,5043060,262.64,E4 Law Limited T/A Lextox
Childrens Services,Children's Social Care,Support Service and Management Costs,Welfare Catering,Kitchen Supplies - Food and Beverages,02/05/2018,5043213,814.28,Raj Foods LTD
Childrens Services,Children's Social Care,Support Service and Management Costs,Schools Catering,Kitchen Supplies - Food and Beverages,02/05/2018,5043241,263.74,Prescott-Thomas LTD.
Childrens Services,Children's Social Care,Children Looked After,S23 Fam Pl In-Hse-S/Term F/C,Childrens Act Section 23 - Expert Assessmt/Witness Costs,02/05/2018,5044080,371.00,Dr Bradley Mann Psychological Services Ltd
Childrens Services,Children's Social Care,Service Strategy,"FSP Sect 17 - Team 2		",Childrens Act Section 17 - Other Placements Bed & Breakfast,02/05/2018,5044142,"1,340.00",Nubian Consultants Ltd
Childrens Services,Children's Social Care,Support Service and Management Costs,Sch. Meals A/c - Central Production Unit,Kitchen Supplies - Food and Beverages,02/05/2018,5044213,275.56,Prescott-Thomas LTD.
Childrens Services,Children's Social Care,Support Service and Management Costs,Schools Catering,Kitchen Supplies - Food and Beverages,02/05/2018,5044275,351.23,Prescott-Thomas LTD.
Childrens Services,Children's Social Care,Support Service and Management Costs,Sch. Meals A/c - Central Production Unit,Kitchen Supplies - Food and Beverages,02/05/2018,5045653,275.56,Prescott-Thomas LTD.
Childrens Services,Children's Social Care,Service Strategy,FSP Sect 17 - Team 5,Childrens Act Section 17 - Expert Assessmt/Witness Costs,02/05/2018,5045657,"1,825.00",Wilson Solicitors LLP
Childrens Services,Children's Social Care,Children Looked After,Special G/Ship Allowances,Childrens Act Section 23 - Spec Pymnts Legal,04/05/2018,5025898,416.67,THE FAMILY LAW PRACTICE
Childrens Services,Children's Social Care,Support Service and Management Costs,Sch. Meals A/c - P.D.C. Cateen,Kitchen Supplies - Food and Beverages,04/05/2018,5033332,350.63,Thomas Ridley & Son Ltd
Childrens Services,Education Services,Early Years,Isle of Dogs. CC,Services - Professional Fees - Translation Fees,04/05/2018,5033344,288.00,Oncall Interpreters LTD
Childrens Services,Children's Social Care,Family Support Services,CNN Pool: Joint Family Support,Childrens Act Section 17 - Interpreting/Translation,04/05/2018,5033352,"1,032.50",Oncall Interpreters LTD
Childrens Services,Children's Social Care,Service Strategy,FSP Sect 17 - Team 4,Services - Professional Fees - Translation Fees,04/05/2018,5033357,324.00,Oncall Interpreters LTD
Childrens Services,Children's Social Care,Service Strategy,FSP Sect 17 - Team 3,Childrens Act Section 17 - Interpreting/Translation,04/05/2018,5033363,760.00,Oncall Interpreters LTD
Childrens Services,Children's Social Care,Service Strategy,FSP Sect 17 - Team 4,Services - Professional Fees - Translation Fees,04/05/2018,5033364,"3,597.50",Oncall Interpreters LTD
Childrens Services,Children's Social Care,Service Strategy,FSP Sect 17 - Team 1,Services - Professional Fees - Translation Fees,04/05/2018,5033365,"1,328.00",Oncall Interpreters LTD
Childrens Services,Children's Social Care,Commissioning and Social Work,Family Support and Protection Team 9,Services - Professional Fees - Translation Fees,04/05/2018,5033366,506.95,Oncall Interpreters LTD
Childrens Services,Children's Social Care,Service Strategy,FSP Sect 17 - Team 5,Childrens Act Section 17 - Interpreting/Translation,04/05/2018,5033367,385.00,Oncall Interpreters LTD
Childrens Services,Children's Social Care,Family Support Services,Disabled Children�s Outreach Service,Services - Professional Fees - Translation Fees,04/05/2018,5033379,350.00,Oncall Interpreters LTD
Childrens Services,Children's Social Care,Children Looked After,Leaving Care-UASC,Leaving Care Financial Assistance - Reg Plan Maint L-Allow,04/05/2018,5033498,488.85,Pangea Support Services
Childrens Services,Children's Social Care,Children Looked After,Leaving Care-UASC,Leaving Care Financial Assistance - Supp Accom/Hous Rents,04/05/2018,5033498,"2,065.00",Pangea Support Services
Childrens Services,Children's Social Care,Children Looked After,Leaving Care-UASC,Leaving Care Financial Assistance - Reg Plan Maint L-Allow,04/05/2018,5033500,488.85,Pangea Support Services
Childrens Services,Children's Social Care,Children Looked After,Leaving Care-UASC,Leaving Care Financial Assistance - Supp Accom/Hous Rents,04/05/2018,5033500,"2,065.00",Pangea Support Services
Childrens Services,Children's Social Care,Children Looked After,Leaving Care-UASC,Leaving Care Financial Assistance - Reg Plan Maint L-Allow,04/05/2018,5033518,488.85,Pangea Support Services
Childrens Services,Children's Social Care,Children Looked After,Leaving Care-UASC,Leaving Care Financial Assistance - Supp Accom/Hous Rents,04/05/2018,5033518,"2,065.00",Pangea Support Services
Childrens Services,Children's Social Care,Support Service and Management Costs,Schools Catering,Kitchen Supplies - Food and Beverages,04/05/2018,5033598,484.63,Thomas Ridley & Son Ltd
Childrens Services,Children's Social Care,Other Children's and Family Services,Adoption Support Fund,Social Care - Others,04/05/2018,5033729,450.00,Coram Academy Ltd T/A CoramBAAF
Childrens Services,Children's Social Care,Family Support Services,Eva Armsby Family Centre,Repairs and Maintenance - Responsive - Repair & Maintenance,04/05/2018,5033739,"2,770.00",JC Coster (Metalworks) Ltd
Childrens Services,Children's Social Care,Children Looked After,12 Norman Grove,Repairs and Maintenance - Responsive - Repair & Maintenance,04/05/2018,5033740,"1,200.00",JC Coster (Metalworks) Ltd
Childrens Services,Children's Social Care,Support Service and Management Costs,Schools Catering,Kitchen Supplies - Food and Beverages,04/05/2018,5033972,494.34,Thomas Ridley & Son Ltd
Childrens Services,Cultural and Related Services,Culture & Heritage,Arts-Park Events,Events & Exhibition Supplies,04/05/2018,5033992,"32,783.75",Face Events LTD
Childrens Services,Children's Social Care,Support Service and Management Costs,Schools Catering,Kitchen Supplies - Food and Beverages,04/05/2018,5034084,937.96,Thomas Ridley & Son Ltd
Childrens Services,Children's Social Care,Support Service and Management Costs,"Mulberry Caf�		",Kitchen Supplies - Food and Beverages,04/05/2018,5034096,498.79,Thomas Ridley & Son Ltd
Childrens Services,Children's Social Care,Commissioning and Social Work,MASH Team 2,Computing - Purchase of Software,04/05/2018,5035073,720.00,The Speech Centre
Childrens Services,Children's Social Care,Children Looked After,S23-Other-Mother & Baby Unit,Childrens Act Section 23 - Placement Fee,04/05/2018,5035087,"2,500.00",Care 2 Share LTD
Childrens Services,Cultural and Related Services,Open Spaces,Victoria Park,Repairs and Maintenance - Responsive - Repair & Maintenance,04/05/2018,5035149,"1,542.00",Broxap Ltd
Childrens Services,Children's Social Care,Children Looked After,S23-Other-Mother & Baby Unit,Childrens Act Section 23 - Placement Fee,04/05/2018,5035190,576.00,Care 2 Share LTD
Childrens Services,Children's Social Care,Children Looked After,S23 Fam Pl P&V-F/Care,Childrens Act Section 23 - Placement Fee,04/05/2018,5035195,"3,044.40",Children First Fostering Agency LTD
Childrens Services,Children's Social Care,Support Service and Management Costs,"Mulberry Caf�		",Catering - Hospitality,04/05/2018,5035477,369.03,Tiffin Sandwiches
Childrens Services,Children's Social Care,Support Service and Management Costs,Building Cleaning,Kitchen Supplies - Catering Equipment,04/05/2018,5035482,272.82,W V Howe LTD
Childrens Services,Education Services,Early Years,Early Years Health Project,Social Care - Nursing Care,04/05/2018,5036379,"1,255.75",NHS SUPPLY CHAIN
Childrens Services,Education Services,Other Strategic Functions,Empty Properties,Services - Professional Fees - Security Fees,04/05/2018,5036385,"7,770.00",Manpower Direct UK
Childrens Services,Cultural and Related Services,Open Spaces,Victoria Park,Services - Professional Fees - Security Fees,04/05/2018,5036398,"4,757.76",Manpower Direct UK
Childrens Services,Cultural and Related Services,Open Spaces,Parks & Open Spaces Man&Admin,Services - Professional Fees - Consultants Fees,04/05/2018,5036410,"1,090.00",London in Bloom
Childrens Services,Cultural and Related Services,Culture & Heritage,Arts-Park Events,Events & Exhibition Supplies,04/05/2018,5036414,"2,667.50",Star Events Group LTD
Childrens Services,Education Services,Other Strategic Functions,Empty Properties,Services - Professional Fees - Security Fees,04/05/2018,5036509,"3,419.64",Manpower Direct UK
Childrens Services,Children's Social Care,Children Looked After,S23 Fam Pl P&V-F/Care,Childrens Act Section 23 - Placement Fee,04/05/2018,5037600,"3,044.40",Children First Fostering Agency LTD
Childrens Services,Education Services,Other Strategic Functions,Education Psychologists GF,Staff Advertising,04/05/2018,5037625,696.50,Penna PLC
Childrens Services,Children's Social Care,Children Looked After,S23 Fam Pl P&V-F/Care,Childrens Act Section 23 - Placement Fee,04/05/2018,5039100,"3,071.40",Children First Fostering Agency LTD
Childrens Services,Education Services,Other Strategic Functions,Special Education Needs DSG,Third Party Payments - Payments to Schools,04/05/2018,5039178,"6,123.00",Parayhouse School
Childrens Services,Education Services,Other Strategic Functions,Special Education Needs DSG,Third Party Payments - Payments to Schools,04/05/2018,5039215,"6,123.00",Parayhouse School
Childrens Services,Education Services,Other Strategic Functions,Special Education Needs DSG,Third Party Payments - Payments to Schools,04/05/2018,5039216,"6,123.00",Parayhouse School
Childrens Services,Education Services,Other Strategic Functions,Special Education Needs DSG,Third Party Payments - Payments to Schools,04/05/2018,5039217,"6,123.00",Parayhouse School
Childrens Services,Education Services,Other Strategic Functions,Alternative Provision,Third Party Payments - Payments to Schools,04/05/2018,5039778,"3,000.00",Stepney Green Maths Computing Science College
Childrens Services,Education Services,Other Strategic Functions,Ofsted Improvement Plan,Meeting Expenses,04/05/2018,5040817,"3,600.00",The Atrium London Ltd
Childrens Services,Children's Social Care,Support Service and Management Costs,"Mulberry Caf�		",Kitchen Supplies - Food and Beverages,04/05/2018,5041370,387.29,Peros Limited
Childrens Services,Children's Social Care,Children Looked After,S23 Fam Pl P&V-F/Care,Childrens Act Section 23 - Placement Fee,04/05/2018,5043048,"6,864.33",Affinity Fostering Services Ltd
Childrens Services,Children's Social Care,Other Children's and Family Services,Permanancy and Adoption Support Team 1,Social Care - Day Care,04/05/2018,5043090,480.00,Beacon Lodge Psychological Services Ltd
Childrens Services,Children's Social Care,Support Service and Management Costs,Welfare Catering,Kitchen Supplies - Food and Beverages,04/05/2018,5043103,658.66,Raj Foods LTD
Childrens Services,Education Services,Other Strategic Functions,Pupil & Student Services GF,Non Staff Transport Costs - Tfl Concessionary fares,04/05/2018,5043181,"2,972.20",TFL Surface Transport
Childrens Services,Education Services,Other Strategic Functions,Music Trading Account,Educational/Training Supplies - Arts & Crafts,04/05/2018,5043976,798.37,Stephen Butler
Childrens Services,Children's Social Care,Children Looked After,LCS/Allowances-Accom,Leaving Care Financial Assistance - Supp Accom/Hous Rents,04/05/2018,5043988,"2,400.00",Silver Birch Care LTD
Childrens Services,Children's Social Care,Children Looked After,LCS/Allowances-Accom,Leaving Care Financial Assistance - Supported Living,04/05/2018,5043988,260.00,Silver Birch Care LTD
Childrens Services,Children's Social Care,Children Looked After,S23 Fam Pl In-Hse-S/Term F/C,Childrens Act Section 23 - Spec Pymnts Legal,04/05/2018,5044155,480.00,THE FAMILY LAW PRACTICE
Childrens Services,Children's Social Care,Children Looked After,S23 Fam Pl In-Hse-S/Term F/C,Childrens Act Section 23 - Expert Assessmt/Witness Costs,04/05/2018,5044157,703.98,Symbol Family Support Services LTD
Childrens Services,No Service Specified,No Division Specified,Capital-Minor Works (SC),Other External Fees - Other External Fees,04/05/2018,5045929,"5,000.00",Cad-Capture Data Services Ltd
Childrens Services,No Service Specified,No Division Specified,Capital-Minor Works (SC),Other External Fees - Other External Fees,04/05/2018,5045930,"7,000.00",Cad-Capture Data Services Ltd
Childrens Services,No Service Specified,No Division Specified,Capital-Minor Works (SC),Other External Fees - Other External Fees,04/05/2018,5045931,"4,250.00",Cad-Capture Data Services Ltd
Childrens Services,No Service Specified,No Division Specified,Capital-Minor Works (SC),Other External Fees - Other External Fees,04/05/2018,5045932,"4,000.00",Cad-Capture Data Services Ltd
Childrens Services,No Service Specified,No Division Specified,Capital-Minor Works (SC),Other External Fees - Other External Fees,04/05/2018,5045933,"2,850.00",Cad-Capture Data Services Ltd
Childrens Services,No Service Specified,No Division Specified,Capital-Minor Works (SC),Other External Fees - Other External Fees,04/05/2018,5045934,"2,850.00",Cad-Capture Data Services Ltd
Childrens Services,No Service Specified,No Division Specified,Capital-Minor Works (SC),Other External Fees - Other External Fees,04/05/2018,5045935,"5,000.00",Cad-Capture Data Services Ltd
Childrens Services,No Service Specified,No Division Specified,Capital-Minor Works (SC),Other External Fees - Other External Fees,04/05/2018,5045936,"3,000.00",Cad-Capture Data Services Ltd
Childrens Services,No Service Specified,No Division Specified,Capital-Minor Works (SC),Other External Fees - Other External Fees,04/05/2018,5045937,"3,250.00",Cad-Capture Data Services Ltd
Childrens Services,No Service Specified,No Division Specified,Capital-Minor Works (SC),Other External Fees - Other External Fees,04/05/2018,5045938,700.00,Cad-Capture Data Services Ltd
Childrens Services,No Service Specified,No Division Specified,Capital-Minor Works (SC),Other External Fees - Other External Fees,04/05/2018,5045939,"5,750.00",Cad-Capture Data Services Ltd
Childrens Services,Children's Social Care,Support Service and Management Costs,Schools Catering,Kitchen Supplies - Food and Beverages,04/05/2018,5046166,290.39,Prescott-Thomas LTD.
Childrens Services,Children's Social Care,Support Service and Management Costs,Schools Catering,Kitchen Supplies - Food and Beverages,04/05/2018,5046172,270.83,Prescott-Thomas LTD.
Childrens Services,Children's Social Care,Children Looked After,S23 Fam Pl P&V-F/Care,Childrens Act Section 23 - Non-Contact Trans/Travel Costs,08/05/2018,5043054,528.00,AQUACARS LTD
Childrens Services,Education Services,Other Strategic Functions,Corporate Director of ESCW,Training Expenses - Staff External Training (UK Based),08/05/2018,5043055,450.00,Local Government Association
Childrens Services,Education Services,Other Strategic Functions,Special Education Needs DSG,Third Party Payments - Payments to Schools,08/05/2018,5043993,"32,193.50",The Sheiling Special Education Trust
Childrens Services,Children's Social Care,Children Looked After,S23-Resi-P&V/OLA-Boarding Sch,Childrens Act Section 23 - Placement Fee,08/05/2018,5043993,"32,193.50",The Sheiling Special Education Trust
Childrens Services,Children's Social Care,Children Looked After,S23-Other-Semi-Ind. Unit,Childrens Act Section 23 - Placement Fee,08/05/2018,5044039,"4,134.60",TSS Ltd
Childrens Services,Education Services,Early Years,Overland CC,Education & Training - Non Staff Tuition Fees,08/05/2018,5044060,328.03,Cosy
Childrens Services,Education Services,Early Years,Overland CC,Education & Training - Non Staff Tuition Fees,08/05/2018,5044061,684.70,Cosy
Childrens Services,Education Services,Early Years,Overland CC,Education & Training - Non Staff Tuition Fees,08/05/2018,5044062,288.25,Cosy
Childrens Services,Education Services,Early Years,Overland CC,Education & Training - Non Staff Tuition Fees,08/05/2018,5044108,440.74,Cosy
Childrens Services,Children's Social Care,Children Looked After,S23-Other-Semi-Ind. Unit,Childrens Act Section 23 - Interpreting/Translation,09/05/2018,5033376,747.00,Oncall Interpreters LTD
Childrens Services,Children's Social Care,Children Looked After,S23-Other-Semi-Ind. Unit,Childrens Act Section 23 - Interpreting/Translation,09/05/2018,5033378,362.00,Oncall Interpreters LTD
Childrens Services,Children's Social Care,Children Looked After,S23-Resi-P&V/OLA-Child Home,Childrens Act Section 23 - Placement Fee,09/05/2018,5035102,"12,188.40",Bridge Communities Ltd
Childrens Services,Children's Social Care,Children Looked After,S23-Other-Semi-Ind. Unit,Childrens Act Section 23 - Placement Fee,09/05/2018,5035112,925.00,Real Life
Childrens Services,Children's Social Care,Children Looked After,S23-Other-Semi-Ind. Unit,Childrens Act Section 23 - Placement Fee,09/05/2018,5035113,"1,358.00",Real Life
Childrens Services,Children's Social Care,Children Looked After,S23-Other-Semi-Ind. Unit,Childrens Act Section 23 - Placement Fee,09/05/2018,5035114,925.00,Real Life
Childrens Services,Children's Social Care,Children Looked After,S23-Other-Semi-Ind. Unit,Childrens Act Section 23 - Placement Fee,09/05/2018,5035115,925.00,Real Life
Childrens Services,Children's Social Care,Support Service and Management Costs,Schools Catering,Kitchen Supplies - Food and Beverages,09/05/2018,5035127,643.84,Thomas Ridley & Son Ltd
Childrens Services,Children's Social Care,Support Service and Management Costs,Schools Catering,Kitchen Supplies - Food and Beverages,09/05/2018,5035199,337.93,Thomas Ridley & Son Ltd
Childrens Services,Education Services,Other Strategic Functions,Ofsted Improvement Plan,Services - Professional Fees - Consultants Fees,09/05/2018,5036406,"15,817.00",Stable House Consulting
Childrens Services,Education Services,Other Strategic Functions,Ofsted Improvement Plan,Services - Professional Fees - Consultants Fees,09/05/2018,5036407,"20,206.38",Stable House Consulting
Childrens Services,Education Services,Early Years,Central Nursery LSAs,Third Party Payments - Payments to Schools,09/05/2018,5036442,"21,000.00",Easy Steps Limited
Childrens Services,Children's Social Care,Support Service and Management Costs,Childrens Services IT Trading,Computing - Purchase of Software,09/05/2018,5036465,315.00,Parago Software LTD
Childrens Services,Children's Social Care,Support Service and Management Costs,Sch. Meals A/c - Central Production Unit,Kitchen Supplies - Food and Beverages,09/05/2018,5036484,"1,589.94",William White Meats Ltd
Childrens Services,Children's Social Care,Support Service and Management Costs,Welfare Catering,Kitchen Supplies - Food and Beverages,09/05/2018,5036524,433.89,William White Meats Ltd
Childrens Services,Education Services,Other Strategic Functions,Special Education Needs DSG,Third Party Payments - Payments to Schools,09/05/2018,5036883,"12,947.63",DATE PALM PRIMARY
Childrens Services,Education Services,Other Strategic Functions,Special Education Needs DSG,Third Party Payments - Payments to Schools,09/05/2018,5036884,"8,631.75",DATE PALM PRIMARY
Childrens Services,Children's Social Care,Children Looked After,S23-Resi-P&V/OLA-Child Home,Childrens Act Section 23 - Placement Fee,09/05/2018,5037557,"14,914.20",Kingdom Care Childrens Homes
Childrens Services,Children's Social Care,Children Looked After,S23 Fam Pl P&V-F/Care,Childrens Act Section 23 - Placement Fee,09/05/2018,5037619,"4,445.80",Welcome Foster Care
Childrens Services,Children's Social Care,Children Looked After,S23 Fam Pl P&V-F/Care,Childrens Act Section 23 - Placement Fee,09/05/2018,5037620,"3,514.20",Welcome Foster Care
Childrens Services,Children's Social Care,Children Looked After,S23 Fam Pl P&V-F/Care,Childrens Act Section 23 - Placement Fee,09/05/2018,5037621,"3,514.20",Welcome Foster Care
Childrens Services,Children's Social Care,Children Looked After,S23 Fam Pl P&V-F/Care,Childrens Act Section 23 - Placement Fee,09/05/2018,5037622,"3,642.90",Welcome Foster Care
Childrens Services,Children's Social Care,Children Looked After,S23 Fam Pl P&V-F/Care,Childrens Act Section 23 - Placement Fee,09/05/2018,5037623,"2,952.90",Welcome Foster Care
Childrens Services,Children's Social Care,Children Looked After,Staying Put,Childrens Act Section 23 - Placement Fee,09/05/2018,5037624,"1,735.80",Welcome Foster Care
Childrens Services,Children's Social Care,Children Looked After,S23 Fam Pl Fost/Adop Advert,Childrens Act Section 23 - Spec Pymnts Advertising,09/05/2018,5037676,"2,300.00",Natives Online Ltd
Childrens Services,Children's Social Care,Children Looked After,S23 Fam Pl P&V-F/Care,Childrens Act Section 23 - Placement Fee,09/05/2018,5037711,"2,952.90",Welcome Foster Care
Childrens Services,Children's Social Care,Children Looked After,Enrichment Projects,Agency Staff - Associations,09/05/2018,5038931,460.30,Academics ltd
Childrens Services,Education Services,Other Strategic Functions,Parental Engagement,Computing - Purchase of Software,09/05/2018,5039171,708.22,Specialist Computer Centres PLC
Childrens Services,Children's Social Care,Children Looked After,LCS/Allowances-Accom,Leaving Care Financial Assistance - Supp Accom/Hous Rents,09/05/2018,5039912,650.00,Newhaven 16 Plus
Childrens Services,Children's Social Care,Children Looked After,Leaving Care-UASC,Leaving Care Financial Assistance - Supp Accom/Hous Rents,09/05/2018,5039913,"1,071.30",Newhaven 16 Plus
Childrens Services,Children's Social Care,Children Looked After,Leaving Care-UASC,Leaving Care Financial Assistance - Supported Living,09/05/2018,5039914,999.30,Newhaven 16 Plus
Childrens Services,Children's Social Care,Children Looked After,LCS/Allowances-Accom,Leaving Care Financial Assistance - Supp Accom/Hous Rents,09/05/2018,5039915,"1,071.30",Newhaven 16 Plus
Childrens Services,Education Services,Early Years,SSEYCG Development Staffing,Office Furniture/Equipment,09/05/2018,5040837,"2,185.00",Mothercare Direct 
Childrens Services,Education Services,Other Strategic Functions,High Needs Other Boroughs,Third Party Payments - Payments to Schools,09/05/2018,5045941,"19,688.00",The Garden
Childrens Services,Education Services,Other Strategic Functions,High Needs Other Boroughs,Third Party Payments - Payments to Schools,09/05/2018,5045942,"32,673.00",The Garden
Childrens Services,Education Services,Other Strategic Functions,High Needs Other Boroughs,Third Party Payments - Payments to Schools,09/05/2018,5045943,"32,673.00",The Garden
Childrens Services,Education Services,Other Strategic Functions,High Needs Other Boroughs,Third Party Payments - Payments to Schools,09/05/2018,5045944,"19,688.04",The Garden
Childrens Services,Education Services,Other Strategic Functions,High Needs Other Boroughs,Third Party Payments - Payments to Schools,09/05/2018,5045945,"19,688.04",The Garden
Childrens Services,Education Services,Other Strategic Functions,High Needs Other Boroughs,Third Party Payments - Payments to Schools,09/05/2018,5045946,"32,673.00",The Garden
Childrens Services,Education Services,Other Strategic Functions,High Needs Other Boroughs,Third Party Payments - Payments to Schools,09/05/2018,5045947,"32,673.00",The Garden
Childrens Services,Children's Social Care,Family Support Services,IPST S17 NRPF,Childrens Act Section 17 - Other Placements Bed & Breakfast,09/05/2018,5046448,"1,680.00",Apolonia Property Services (Exodus Housing)
Childrens Services,Education Services,Other Strategic Functions,Humanities Library,Training Expenses - Staff External Training (UK Based),09/05/2018,5046508,"2,730.00",CHANGEMAKERS UNLTD LTD
Childrens Services,Education Services,Other Strategic Functions,Eramus Tafaham Project,Training Expenses - Staff External Training (UK Based),09/05/2018,5046509,"5,460.00",CHANGEMAKERS UNLTD LTD
Childrens Services,Cultural and Related Services,Culture & Heritage,Arts-Park Events,Events & Exhibition Supplies,09/05/2018,5046518,"1,000.00",COMMUNITY OF REFUGEES FROM VIETNAM -
Childrens Services,Children's Social Care,Family Support Services,IPST S17 NRPF,Childrens Act Section 17 - Other Placements Bed & Breakfast,09/05/2018,5046573,"1,110.00",Apolonia Property Services (Exodus Housing)
Childrens Services,Children's Social Care,Family Support Services,IPST S17 NRPF,Childrens Act Section 17 - Other Placements Bed & Breakfast,09/05/2018,5046598,"1,020.00",Apolonia Property Services (Exodus Housing)
Childrens Services,Children's Social Care,Family Support Services,IPST S17 NRPF,Childrens Act Section 17 - Other Placements Bed & Breakfast,09/05/2018,5046606,960.00,Apolonia Property Services (Exodus Housing)
Childrens Services,Children's Social Care,Family Support Services,IPST S17 NRPF,Childrens Act Section 17 - Other Placements Bed & Breakfast,09/05/2018,5046615,960.00,Apolonia Property Services (Exodus Housing)
Childrens Services,Children's Social Care,Family Support Services,IPST S17 NRPF,Childrens Act Section 17 - Other Placements Bed & Breakfast,09/05/2018,5046636,456.00,Apolonia Property Services (Exodus Housing)
Childrens Services,Children's Social Care,Family Support Services,IPST S17 NRPF,Childrens Act Section 17 - Other Placements Bed & Breakfast,09/05/2018,5046963,"1,170.00",METROPOLITAN & CROWN
Childrens Services,Children's Social Care,Service Strategy,FSP Sect 17 - Team 4,Childrens Act Section 17 - Other Placements Bed & Breakfast,09/05/2018,5046985,"1,140.00",Apolonia Property Services (Exodus Housing)
Childrens Services,Children's Social Care,Other Children's and Family Services,Permanancy and Adoption Support Team 1,Subscriptions - Associations,09/05/2018,5047136,936.00,OFSTED
Childrens Services,Children's Social Care,Other Children's and Family Services,Permanancy and Adoption Support Team 2,Subscriptions - Associations,09/05/2018,5047136,936.00,OFSTED
Childrens Services,Children's Social Care,Family Support Services,IPST S17 NRPF,Childrens Act Section 17 - Other Placements Bed & Breakfast,09/05/2018,5047277,"1,080.00",Assetgrove
Childrens Services,Education Services,Other Strategic Functions,Student Admissions,Training Expenses - Staff External Training (UK Based),09/05/2018,5047828,684.00,GovNet Communications
Childrens Services,Cultural and Related Services,Culture & Heritage,Event Fund,Third Party Payments - Voluntary Associations,09/05/2018,5048123,300.00,Cause2Create
Childrens Services,Children's Social Care,Children Looked After,Leaving Care-UASC,Leaving Care Financial Assistance - Supp Accom/Hous Rents,11/05/2018,3898362,546.47,Pangea Support Services
Childrens Services,Children's Social Care,Service Strategy,FSP Sect 17 - Team 9,Services - Professional Fees - Translation Fees,11/05/2018,5024617,501.00,Oncall Interpreters LTD
Childrens Services,Education Services,Early Years,Around Poplar CC,Repairs and Maintenance - Responsive - Design Fees,11/05/2018,5033388,360.00,M&L Signs Ltd
Childrens Services,Education Services,Other Strategic Functions,High Needs LBTH Mainstream Schs,Services - Professional Fees - Consultants Fees,11/05/2018,5036016,"20,800.00",Chrow Solutions Ltd
Childrens Services,Children's Social Care,Children Looked After,S23-Resi-P&V/OLA-Child Home,Childrens Act Section 23 - Placement Fee,11/05/2018,5036033,"10,407.12",Care 2 Share 2
Childrens Services,Cultural and Related Services,Open Spaces,Victoria Park,Repairs and Maintenance - Responsive - Repair & Maintenance,11/05/2018,5036044,850.00,J&L Coster (Drainage) Ltd
Childrens Services,Cultural and Related Services,Open Spaces,Victoria Park,Repairs and Maintenance - Responsive - Repair & Maintenance,11/05/2018,5036045,500.00,J&L Coster (Drainage) Ltd
Childrens Services,Cultural and Related Services,Open Spaces,Victoria Park,Repairs and Maintenance - Responsive - Repair & Maintenance,11/05/2018,5036046,"1,670.00",J&L Coster (Drainage) Ltd
Childrens Services,Children's Social Care,Support Service and Management Costs,Schools Catering,Kitchen Supplies - Food and Beverages,11/05/2018,5036047,559.66,Thomas Ridley & Son Ltd
Childrens Services,Children's Social Care,Support Service and Management Costs,Sch. Meals A/c - Central Production Unit,Kitchen Supplies - Food and Beverages,11/05/2018,5036048,328.43,Thomas Ridley & Son Ltd
Childrens Services,Children's Social Care,Support Service and Management Costs,Schools Catering,Kitchen Supplies - Food and Beverages,11/05/2018,5036128,321.54,Thomas Ridley & Son Ltd
Childrens Services,Children's Social Care,Support Service and Management Costs,"Mulberry Caf�		",Kitchen Supplies - Food and Beverages,11/05/2018,5036129,278.98,Thomas Ridley & Son Ltd
Childrens Services,Children's Social Care,Support Service and Management Costs,Sch. Meals A/c - Central Production Unit,Kitchen Supplies - Food and Beverages,11/05/2018,5036135,"1,094.38",Thomas Ridley & Son Ltd
Childrens Services,Children's Social Care,Support Service and Management Costs,Schools Catering,Kitchen Supplies - Food and Beverages,11/05/2018,5036136,784.67,Thomas Ridley & Son Ltd
Childrens Services,Children's Social Care,Support Service and Management Costs,Schools Catering,Kitchen Supplies - Food and Beverages,11/05/2018,5036142,344.40,Thomas Ridley & Son Ltd
Childrens Services,Children's Social Care,Support Service and Management Costs,Schools Catering,Kitchen Supplies - Food and Beverages,11/05/2018,5036146,378.96,Thomas Ridley & Son Ltd
Childrens Services,Children's Social Care,Support Service and Management Costs,Schools Catering,Kitchen Supplies - Food and Beverages,11/05/2018,5036148,707.69,Thomas Ridley & Son Ltd
Childrens Services,Children's Social Care,Support Service and Management Costs,Schools Catering,Kitchen Supplies - Food and Beverages,11/05/2018,5036154,376.27,Thomas Ridley & Son Ltd
Childrens Services,Children's Social Care,Support Service and Management Costs,Schools Catering,Kitchen Supplies - Food and Beverages,11/05/2018,5036155,655.59,Thomas Ridley & Son Ltd
Childrens Services,Children's Social Care,Support Service and Management Costs,Schools Catering,Kitchen Supplies - Food and Beverages,11/05/2018,5036236,510.66,Thomas Ridley & Son Ltd
Childrens Services,Children's Social Care,Support Service and Management Costs,Schools Catering,Kitchen Supplies - Food and Beverages,11/05/2018,5036244,935.44,Thomas Ridley & Son Ltd
Childrens Services,Children's Social Care,Support Service and Management Costs,Schools Catering,Kitchen Supplies - Food and Beverages,11/05/2018,5036248,798.47,Thomas Ridley & Son Ltd
Childrens Services,Children's Social Care,Support Service and Management Costs,Schools Catering,Kitchen Supplies - Food and Beverages,11/05/2018,5036253,441.00,Thomas Ridley & Son Ltd
Childrens Services,Children's Social Care,Support Service and Management Costs,Schools Catering,Kitchen Supplies - Food and Beverages,11/05/2018,5036255,878.41,Thomas Ridley & Son Ltd
Childrens Services,Children's Social Care,Support Service and Management Costs,Schools Catering,Kitchen Supplies - Food and Beverages,11/05/2018,5036257,852.38,Thomas Ridley & Son Ltd
Childrens Services,Children's Social Care,Support Service and Management Costs,Schools Catering,Kitchen Supplies - Food and Beverages,11/05/2018,5036260,256.24,Thomas Ridley & Son Ltd
Childrens Services,Children's Social Care,Support Service and Management Costs,Schools Catering,Kitchen Supplies - Food and Beverages,11/05/2018,5036261,408.19,Thomas Ridley & Son Ltd
Childrens Services,Children's Social Care,Support Service and Management Costs,Schools Catering,Kitchen Supplies - Food and Beverages,11/05/2018,5036262,612.29,Thomas Ridley & Son Ltd
Childrens Services,Children's Social Care,Support Service and Management Costs,Schools Catering,Kitchen Supplies - Food and Beverages,11/05/2018,5036263,656.62,Thomas Ridley & Son Ltd
Childrens Services,Children's Social Care,Support Service and Management Costs,Schools Catering,Kitchen Supplies - Food and Beverages,11/05/2018,5036265,442.97,Thomas Ridley & Son Ltd
Childrens Services,Education Services,Other Strategic Functions,Special Education Needs DSG,Third Party Payments - Payments to Schools,11/05/2018,5036423,"9,818.18",Cavendish School
Childrens Services,Children's Social Care,Children Looked After,S23 Fam Pl P&V-F/Care,Childrens Act Section 23 - Placement Fee,11/05/2018,5036454,"3,750.00",Ryancare Fostering Ltd
Childrens Services,Children's Social Care,Support Service and Management Costs,Schools Catering,Kitchen Supplies - Food and Beverages,11/05/2018,5036523,326.22,William White Meats Ltd
Childrens Services,Children's Social Care,Support Service and Management Costs,Welfare Catering,Kitchen Supplies - Food and Beverages,11/05/2018,5036539,525.76,William White Meats Ltd
Childrens Services,Children's Social Care,Support Service and Management Costs,Schools Catering,Kitchen Supplies - Food and Beverages,11/05/2018,5037594,398.04,Pelican Rouge Coffee Solutions Ltd
Childrens Services,Children's Social Care,Children Looked After,S23 Family Placements P&V,Childrens Act Section 23 - Placement Fee,11/05/2018,5037596,"3,122.40",CAPSTONE VISION FOSTER CARE LTD
Childrens Services,Children's Social Care,Children Looked After,S23 Fam Pl P&V-F/Care,Childrens Act Section 23 - Placement Fee,11/05/2018,5037611,"3,427.50",Select Fostercare Services Ltd
Childrens Services,Children's Social Care,Youth Justice,Partnerships,Communications,11/05/2018,5037612,597.00,Ignite Service Provider Ltd
Childrens Services,Cultural and Related Services,Open Spaces,Mile End Park,Repairs and Maintenance - Responsive - Buildings,11/05/2018,5037617,"1,440.00",O S Comms Ltd
Childrens Services,Education Services,Other Strategic Functions,High Needs FE Colleges,Third Party Payments - Payments to Schools,11/05/2018,5037637,"1,596.18",Barking & Dagenham College
Childrens Services,Education Services,Other Strategic Functions,High Needs FE Colleges,Third Party Payments - Payments to Schools,11/05/2018,5037638,"1,596.18",Barking & Dagenham College
Childrens Services,Education Services,Other Strategic Functions,High Needs FE Colleges,Third Party Payments - Payments to Schools,11/05/2018,5037639,"1,596.18",Barking & Dagenham College
Childrens Services,Children's Social Care,Children Looked After,S23 Fam Pl P&V-F/Care,Childrens Act Section 23 - Placement Fee,11/05/2018,5037710,"3,256.20",Select Fostercare Services Ltd
Childrens Services,Children's Social Care,Children Looked After,S23 Fam Pl P&V-F/Care,Childrens Act Section 23 - Placement Fee,11/05/2018,5037726,"4,525.20",Select Fostercare Services Ltd
Childrens Services,Children's Social Care,Support Service and Management Costs,"Mulberry Caf�		",Catering - Hospitality,11/05/2018,5039097,480.40,Tiffin Sandwiches
Childrens Services,Children's Social Care,Children Looked After,Leaving Care Staff,Computing - Purchase of Software,11/05/2018,5039173,"1,683.68",Specialist Computer Centres PLC
Childrens Services,Children's Social Care,Support Service and Management Costs,Swanlea,Kitchen Supplies - Food and Beverages,11/05/2018,5039576,790.76,William White Meats Ltd
Childrens Services,Education Services,Other Strategic Functions,Ofsted Improvement Plan,Training Expenses - Staff External Training (UK Based),11/05/2018,5039592,"11,700.00",ATRWOOD LTD
Childrens Services,Children's Social Care,Support Service and Management Costs,Schools Catering,Kitchen Supplies - Food and Beverages,11/05/2018,5039636,291.15,William White Meats Ltd
Childrens Services,Children's Social Care,Support Service and Management Costs,Schools Catering,Kitchen Supplies - Food and Beverages,11/05/2018,5039686,623.83,William White Meats Ltd
Childrens Services,Children's Social Care,Support Service and Management Costs,Schools Catering,Kitchen Supplies - Food and Beverages,11/05/2018,5039693,491.81,William White Meats Ltd
Childrens Services,Children's Social Care,Support Service and Management Costs,Schools Catering,Kitchen Supplies - Food and Beverages,11/05/2018,5039697,389.98,William White Meats Ltd
Childrens Services,Children's Social Care,Support Service and Management Costs,Schools Catering,Kitchen Supplies - Food and Beverages,11/05/2018,5039712,310.07,William White Meats Ltd
Childrens Services,Children's Social Care,Support Service and Management Costs,Schools Catering,Kitchen Supplies - Food and Beverages,11/05/2018,5039716,311.47,William White Meats Ltd
Childrens Services,Children's Social Care,Support Service and Management Costs,Schools Catering,Kitchen Supplies - Food and Beverages,11/05/2018,5039722,685.00,William White Meats Ltd
Childrens Services,Children's Social Care,Support Service and Management Costs,Schools Catering,Kitchen Supplies - Food and Beverages,11/05/2018,5039743,579.03,William White Meats Ltd
Childrens Services,Children's Social Care,Support Service and Management Costs,Schools Catering,Kitchen Supplies - Food and Beverages,11/05/2018,5039747,252.89,William White Meats Ltd
Childrens Services,Children's Social Care,Support Service and Management Costs,Schools Catering,Kitchen Supplies - Food and Beverages,11/05/2018,5039751,337.49,William White Meats Ltd
Childrens Services,Children's Social Care,Support Service and Management Costs,Schools Catering,Kitchen Supplies - Food and Beverages,11/05/2018,5039758,449.87,William White Meats Ltd
Childrens Services,Children's Social Care,Support Service and Management Costs,Schools Catering,Kitchen Supplies - Food and Beverages,11/05/2018,5039764,412.25,William White Meats Ltd
Childrens Services,Children's Social Care,Support Service and Management Costs,Schools Catering,Kitchen Supplies - Food and Beverages,11/05/2018,5039784,265.69,William White Meats Ltd
Childrens Services,Children's Social Care,Support Service and Management Costs,Schools Catering,Kitchen Supplies - Food and Beverages,11/05/2018,5039786,826.21,William White Meats Ltd
Childrens Services,Children's Social Care,Support Service and Management Costs,Schools Catering,Kitchen Supplies - Food and Beverages,11/05/2018,5039799,341.73,William White Meats Ltd
Childrens Services,Children's Social Care,Support Service and Management Costs,Schools Catering,Kitchen Supplies - Food and Beverages,11/05/2018,5039801,346.54,William White Meats Ltd
Childrens Services,Children's Social Care,Support Service and Management Costs,Schools Catering,Kitchen Supplies - Food and Beverages,11/05/2018,5039806,257.90,William White Meats Ltd
Childrens Services,Children's Social Care,Support Service and Management Costs,Schools Catering,Kitchen Supplies - Food and Beverages,11/05/2018,5039813,765.59,William White Meats Ltd
Childrens Services,Children's Social Care,Support Service and Management Costs,Schools Catering,Kitchen Supplies - Food and Beverages,11/05/2018,5039815,423.55,William White Meats Ltd
Childrens Services,Children's Social Care,Support Service and Management Costs,Schools Catering,Kitchen Supplies - Food and Beverages,11/05/2018,5039817,337.30,William White Meats Ltd
Childrens Services,Children's Social Care,Support Service and Management Costs,Schools Catering,Kitchen Supplies - Food and Beverages,11/05/2018,5039828,322.50,William White Meats Ltd
Childrens Services,Children's Social Care,Support Service and Management Costs,Schools Catering,Kitchen Supplies - Food and Beverages,11/05/2018,5039832,356.96,William White Meats Ltd
Childrens Services,Children's Social Care,Support Service and Management Costs,Schools Catering,Kitchen Supplies - Food and Beverages,11/05/2018,5039834,303.01,William White Meats Ltd
Childrens Services,Children's Social Care,Support Service and Management Costs,Schools Catering,Kitchen Supplies - Food and Beverages,11/05/2018,5039835,416.49,William White Meats Ltd
Childrens Services,Children's Social Care,Support Service and Management Costs,Schools Catering,Kitchen Supplies - Food and Beverages,11/05/2018,5039837,379.58,William White Meats Ltd
Childrens Services,Children's Social Care,Support Service and Management Costs,Schools Catering,Kitchen Supplies - Food and Beverages,11/05/2018,5039840,287.87,William White Meats Ltd
Childrens Services,Children's Social Care,Support Service and Management Costs,Schools Catering,Kitchen Supplies - Food and Beverages,11/05/2018,5039845,354.67,William White Meats Ltd
Childrens Services,Children's Social Care,Children Looked After,S23 Fam Pl P&V-F/Care,Childrens Act Section 23 - Placement Fee,11/05/2018,5039892,"3,291.60",CAPSTONE VISION FOSTER CARE LTD
Childrens Services,Children's Social Care,Children Looked After,Leaving Care-UASC,Leaving Care Financial Assistance - Supp Accom/Hous Rents,11/05/2018,5039908,"1,265.70",Newhaven 16 Plus
Childrens Services,Children's Social Care,Children Looked After,LCS/Allowances-Accom,Leaving Care Financial Assistance - Supp Accom/Hous Rents,11/05/2018,5039909,929.10,Newhaven 16 Plus
Childrens Services,Children's Social Care,Children Looked After,LCS/Allowances-Accom,Leaving Care Financial Assistance - Supp Accom/Hous Rents,11/05/2018,5039910,929.10,Newhaven 16 Plus
Childrens Services,Children's Social Care,Children Looked After,LCS/Allowances-Accom,Leaving Care Financial Assistance - Supp Accom/Hous Rents,11/05/2018,5039911,929.10,Newhaven 16 Plus
Childrens Services,Children's Social Care,Children Looked After,LCS/Allowances-Accom,Leaving Care Financial Assistance - Supp Accom/Hous Rents,11/05/2018,5039916,"1,100.00",Newhaven 16 Plus
Childrens Services,Children's Social Care,Children Looked After,LCS/Allowances-Accom,Leaving Care Financial Assistance - Grant Payment Setting up Grant,11/05/2018,5039918,300.00,Newhaven 16 Plus
Childrens Services,Children's Social Care,Support Service and Management Costs,Welfare Catering,Kitchen Supplies - Food and Beverages,11/05/2018,5039941,285.68,Apetito LTD
Childrens Services,Children's Social Care,Children Looked After,LCS/Allowances-Accom,Leaving Care Financial Assistance - Supported Living,11/05/2018,5040054,857.10,Newhaven 16 Plus
Childrens Services,Children's Social Care,Children Looked After,LCS/Allowances-Accom,Leaving Care Financial Assistance - Supported Living,11/05/2018,5040055,300.00,Newhaven 16 Plus
Childrens Services,Children's Social Care,Children Looked After,LCS/Allowances-Accom,Leaving Care Financial Assistance - Supp Accom/Hous Rents,11/05/2018,5040056,"-1,090.80",Newhaven 16 Plus
Childrens Services,Children's Social Care,Children Looked After,LCS/Allowances-Accom,Leaving Care Financial Assistance - Supp Accom/Hous Rents,11/05/2018,5040071,"-1,244.56",Newhaven 16 Plus
Childrens Services,Children's Social Care,Children Looked After,LCS/Allowances-Accom,Leaving Care Financial Assistance - Supp Accom/Hous Rents,11/05/2018,5040072,"-3,212.63",Newhaven 16 Plus
Childrens Services,Education Services,Other Strategic Functions,Pupil & Student Services GF,Non Staff Transport Costs - Tfl Concessionary fares,11/05/2018,5042978,547.20,TFL Surface Transport
Childrens Services,Children's Social Care,Children Looked After,S23-Resi-P&V/OLA-Child Home,Childrens Act Section 23 - Placement Fee,11/05/2018,5043095,"1,183.21",Castle Homes Care Ltd
Childrens Services,Children's Social Care,Children Looked After,S23-Resi-P&V/OLA-Child Home,Childrens Act Section 23 - Placement Fee,11/05/2018,5043209,"16,565.00",Castle Homes Care Ltd
Childrens Services,Education Services,Early Years,Overland CC,Education & Training - Non Staff Tuition Fees,11/05/2018,5044063,426.23,Cosy
Childrens Services,Children's Social Care,Children Looked After,LCS/Allowances-Accom,Leaving Care Financial Assistance - Grant Pay Special Needs,11/05/2018,5047829,"2,300.00",F & J Consults Ltd trading as Greenbridge 16 Plus
Childrens Services,Children's Social Care,Children Looked After,LCS/Allowances-Accom,Leaving Care Financial Assistance - Supp Accom/Hous Rents,11/05/2018,5047829,934.08,F & J Consults Ltd trading as Greenbridge 16 Plus
Childrens Services,No Service Specified,No Division Specified,Capital-Minor Works (SC),Building Works - Main Works,11/05/2018,5047834,"311,569.53",Poplar HARCA LTD
Childrens Services,Cultural and Related Services,Recreation & Sport,Sports Development,Recreational Activities,11/05/2018,5047836,"1,660.00",Tower Hamlets Cycling Club
Childrens Services,Children's Social Care,Commissioning and Social Work,Advice and Assessment Section 17,Childrens Act Section 17 - Other Placements Bed & Breakfast,11/05/2018,5047872,"1,178.00",Apolonia Property Services (Exodus Housing)
Childrens Services,Children's Social Care,Service Strategy,FSP Sect 17 - Team 9,Childrens Act Section 17 - Other Placements Bed & Breakfast,11/05/2018,5047873,260.00,Apolonia Property Services (Exodus Housing)
Childrens Services,Children's Social Care,Service Strategy,FSP Sect 17 - Team 5,Childrens Act Section 17 - Expert Assessmt/Witness Costs,11/05/2018,5047874,340.00,E4 Law Limited T/A Lextox
Childrens Services,Children's Social Care,Children Looked After,S23 Fam Pl P&V-F/Care,Childrens Act Section 23 - Placement Fee,11/05/2018,5047876,784.00,Swiis Foster Care Limited
Childrens Services,Children's Social Care,Children Looked After,LCS/Allowances-Accom,Leaving Care Financial Assistance - Supp Accom/Hous Rents,11/05/2018,5047887,929.10,Newhaven 16 Plus
Childrens Services,Children's Social Care,Children Looked After,LCS/Allowances-Accom,Leaving Care Financial Assistance - Supp Accom/Hous Rents,11/05/2018,5047888,929.10,Newhaven 16 Plus
Childrens Services,Children's Social Care,Children Looked After,LCS/Allowances-Accom,Leaving Care Financial Assistance - Supp Accom/Hous Rents,11/05/2018,5047889,929.10,Newhaven 16 Plus
Childrens Services,Children's Social Care,Children Looked After,LCS/Allowances-Accom,Leaving Care Financial Assistance - Supp Accom/Hous Rents,11/05/2018,5047890,929.10,Newhaven 16 Plus
Childrens Services,Children's Social Care,Children Looked After,LCS/Allowances-Accom,Leaving Care Financial Assistance - Supp Accom/Hous Rents,11/05/2018,5047933,"5,068.14",Netpex
Childrens Services,Children's Social Care,Children Looked After,LCS/Allowances-Accom,Leaving Care Financial Assistance - Supp Accom/Hous Rents,11/05/2018,5047939,"2,573.99",Transforming Lives Co
Childrens Services,Children's Social Care,Children Looked After,LCS/Allowances-Accom,Leaving Care Financial Assistance - Supported Living,11/05/2018,5048037,"3,570.60",Newhaven 16 Plus
Childrens Services,Children's Social Care,Children Looked After,LCS/Allowances-Accom,Leaving Care Financial Assistance - Supported Living,11/05/2018,5048038,"3,570.60",Newhaven 16 Plus
Childrens Services,Children's Social Care,Children Looked After,LCS/Allowances-Accom,Leaving Care Financial Assistance - Supported Living,11/05/2018,5048039,"3,570.60",Newhaven 16 Plus
Childrens Services,Children's Social Care,Children Looked After,LCS/Allowances-Accom,Leaving Care Financial Assistance - Supported Living,11/05/2018,5048040,"3,570.60",Newhaven 16 Plus
Childrens Services,Children's Social Care,Service Strategy,FSP Sect 17 - Team 5,Childrens Act Section 17 - Expert Assessmt/Witness Costs,11/05/2018,5048092,382.50,E4 Law Limited T/A Lextox
Childrens Services,Children's Social Care,Children Looked After,LCS/Allowances-Accom,Leaving Care Financial Assistance - Supp Accom/Hous Rents,11/05/2018,5048094,-727.20,Newhaven 16 Plus
Childrens Services,Children's Social Care,Children Looked After,LCS/Allowances-Accom,Leaving Care Financial Assistance - Supp Accom/Hous Rents,11/05/2018,5048095,-727.20,Newhaven 16 Plus
Childrens Services,Children's Social Care,Children Looked After,S23-Resi-P&V/OLA-Child Respite,Childrens Act Section 23 - Placement Fee,11/05/2018,5048246,"1,083.09",Paramount Care and Safety Ltd
Childrens Services,Education Services,Early Years,Overland CC,Office Furniture/Equipment,11/05/2018,5048974,"1,771.00",Unique Office Solutions
Childrens Services,Children's Social Care,Other Children's and Family Services,Permanancy and Adoption Support Team 1,Services - Professional Fees - Legal Fees/Expenses,11/05/2018,5048982,"2,600.00",Core Assets Expert Services Ltd T/a Carter Brown
Childrens Services,Children's Social Care,Support Service and Management Costs,Schools Catering,Kitchen Supplies - Food and Beverages,11/05/2018,5049031,406.60,Thomas Ridley & Son Ltd
Childrens Services,Children's Social Care,Family Support Services,Family Intervention Programme,Payments to Clients - Payments to Clients,11/05/2018,5049041,"2,424.81",Love2Reward
Childrens Services,Children's Social Care,Children Looked After,Virtual School PPG,Third Party Payments - Payments to Schools,11/05/2018,5049078,300.00,St Martins C or E Primary School
Childrens Services,Education Services,Other Education and Community Budget,Community Languages,Third Party Payments - Voluntary Associations,11/05/2018,5049082,399.00,Osmani Trust
Childrens Services,Children's Social Care,Support Service and Management Costs,Schools Catering,Kitchen Supplies - Food and Beverages,11/05/2018,5049117,966.42,Thomas Ridley & Son Ltd
Childrens Services,Children's Social Care,Support Service and Management Costs,Schools Catering,Kitchen Supplies - Food and Beverages,11/05/2018,5049136,509.49,Thomas Ridley & Son Ltd
Childrens Services,Children's Social Care,Support Service and Management Costs,Schools Catering,Kitchen Supplies - Food and Beverages,11/05/2018,5049150,"1,632.91",Thomas Ridley & Son Ltd
Childrens Services,Children's Social Care,Support Service and Management Costs,Schools Catering,Kitchen Supplies - Food and Beverages,11/05/2018,5049161,"1,502.50",Thomas Ridley & Son Ltd
Childrens Services,Children's Social Care,Support Service and Management Costs,Schools Catering,Kitchen Supplies - Food and Beverages,11/05/2018,5049178,"2,302.37",Thomas Ridley & Son Ltd
Childrens Services,Children's Social Care,Support Service and Management Costs,Schools Catering,Kitchen Supplies - Food and Beverages,11/05/2018,5049189,"2,310.59",Thomas Ridley & Son Ltd
Childrens Services,Children's Social Care,Support Service and Management Costs,Schools Catering,Kitchen Supplies - Food and Beverages,11/05/2018,5049194,743.63,Thomas Ridley & Son Ltd
Childrens Services,Children's Social Care,Support Service and Management Costs,Schools Catering,Kitchen Supplies - Food and Beverages,11/05/2018,5049198,"1,152.33",Thomas Ridley & Son Ltd
Childrens Services,Children's Social Care,Support Service and Management Costs,Schools Catering,Kitchen Supplies - Food and Beverages,11/05/2018,5049202,994.83,Thomas Ridley & Son Ltd
Childrens Services,Children's Social Care,Support Service and Management Costs,Schools Catering,Kitchen Supplies - Food and Beverages,11/05/2018,5049206,939.82,Thomas Ridley & Son Ltd
Childrens Services,Children's Social Care,Support Service and Management Costs,Schools Catering,Kitchen Supplies - Food and Beverages,11/05/2018,5049214,"2,657.86",Thomas Ridley & Son Ltd
Childrens Services,Children's Social Care,Support Service and Management Costs,Schools Catering,Kitchen Supplies - Food and Beverages,11/05/2018,5049218,"1,989.76",Thomas Ridley & Son Ltd
Childrens Services,Children's Social Care,Support Service and Management Costs,Schools Catering,Kitchen Supplies - Food and Beverages,11/05/2018,5049222,"1,036.88",Thomas Ridley & Son Ltd
Childrens Services,Children's Social Care,Support Service and Management Costs,Schools Catering,Kitchen Supplies - Food and Beverages,11/05/2018,5049226,"1,143.69",Thomas Ridley & Son Ltd
Childrens Services,Children's Social Care,Support Service and Management Costs,Schools Catering,Kitchen Supplies - Food and Beverages,11/05/2018,5049234,492.05,Thomas Ridley & Son Ltd
Childrens Services,Children's Social Care,Support Service and Management Costs,Schools Catering,Kitchen Supplies - Food and Beverages,11/05/2018,5049238,"1,352.10",Thomas Ridley & Son Ltd
Childrens Services,Children's Social Care,Support Service and Management Costs,Schools Catering,Kitchen Supplies - Food and Beverages,11/05/2018,5049246,"1,555.68",Thomas Ridley & Son Ltd
Childrens Services,Children's Social Care,Children Looked After,S23 Fam Pl In-Hse-Kinshp Care,Childrens Act Section 23 - Spec Pymnts Legal,11/05/2018,5049303,"1,183.33",Ales Consulting Ltd
Childrens Services,Children's Social Care,Children Looked After,S23 Fam Pl In-Hse-S/Term F/C,Childrens Act Section 23 - Expert Assessmt/Witness Costs,11/05/2018,5049586,350.00,Core Assets Expert Services Ltd T/a Carter Brown
Childrens Services,Children's Social Care,Services for young people,Youth Service Management,Office Furniture/Equipment,14/05/2018,5030524,280.00,ESPO
Childrens Services,Children's Social Care,Services for young people,Youth Service Management,Office Furniture/Equipment,14/05/2018,5033745,628.00,ESPO
Childrens Services,Children's Social Care,Support Service and Management Costs,Swanlea,Kitchen Supplies - Food and Beverages,14/05/2018,5036050,834.15,Thomas Ridley & Son Ltd
Childrens Services,Children's Social Care,Support Service and Management Costs,Schools Catering,Kitchen Supplies - Food and Beverages,14/05/2018,5036266,275.15,Thomas Ridley & Son Ltd
Childrens Services,Children's Social Care,Support Service and Management Costs,Schools Catering,Kitchen Supplies - Food and Beverages,14/05/2018,5036268,529.66,Thomas Ridley & Son Ltd
Childrens Services,Children's Social Care,Support Service and Management Costs,Schools Catering,Kitchen Supplies - Food and Beverages,14/05/2018,5036271,362.06,Thomas Ridley & Son Ltd
Childrens Services,Children's Social Care,Support Service and Management Costs,Schools Catering,Kitchen Supplies - Food and Beverages,14/05/2018,5036272,280.34,Thomas Ridley & Son Ltd
Childrens Services,Children's Social Care,Support Service and Management Costs,Schools Catering,Kitchen Supplies - Food and Beverages,14/05/2018,5036274,754.39,Thomas Ridley & Son Ltd
Childrens Services,Children's Social Care,Support Service and Management Costs,Schools Catering,Kitchen Supplies - Food and Beverages,14/05/2018,5036276,733.78,Thomas Ridley & Son Ltd
Childrens Services,Children's Social Care,Support Service and Management Costs,Schools Catering,Kitchen Supplies - Food and Beverages,14/05/2018,5036282,332.84,Thomas Ridley & Son Ltd
Childrens Services,Children's Social Care,Support Service and Management Costs,Schools Catering,Kitchen Supplies - Food and Beverages,14/05/2018,5036284,569.97,Thomas Ridley & Son Ltd
Childrens Services,Children's Social Care,Support Service and Management Costs,Schools Catering,Kitchen Supplies - Food and Beverages,14/05/2018,5036287,360.77,Thomas Ridley & Son Ltd
Childrens Services,Children's Social Care,Support Service and Management Costs,Schools Catering,Kitchen Supplies - Food and Beverages,14/05/2018,5036289,433.06,Thomas Ridley & Son Ltd
Childrens Services,Children's Social Care,Support Service and Management Costs,Schools Catering,Kitchen Supplies - Food and Beverages,14/05/2018,5036293,922.48,Thomas Ridley & Son Ltd
Childrens Services,Children's Social Care,Support Service and Management Costs,Schools Catering,Kitchen Supplies - Food and Beverages,14/05/2018,5036295,586.06,Thomas Ridley & Son Ltd
Childrens Services,Children's Social Care,Support Service and Management Costs,Schools Catering,Kitchen Supplies - Food and Beverages,14/05/2018,5036297,376.92,Thomas Ridley & Son Ltd
Childrens Services,Children's Social Care,Support Service and Management Costs,Schools Catering,Kitchen Supplies - Food and Beverages,14/05/2018,5036299,669.99,Thomas Ridley & Son Ltd
Childrens Services,Children's Social Care,Support Service and Management Costs,Schools Catering,Kitchen Supplies - Food and Beverages,14/05/2018,5036305,329.06,Thomas Ridley & Son Ltd
Childrens Services,Children's Social Care,Support Service and Management Costs,Schools Catering,Kitchen Supplies - Food and Beverages,14/05/2018,5036306,804.73,Thomas Ridley & Son Ltd
Childrens Services,Children's Social Care,Support Service and Management Costs,Schools Catering,Kitchen Supplies - Food and Beverages,14/05/2018,5036308,616.50,Thomas Ridley & Son Ltd
Childrens Services,Children's Social Care,Support Service and Management Costs,Schools Catering,Kitchen Supplies - Food and Beverages,14/05/2018,5036310,559.38,Thomas Ridley & Son Ltd
Childrens Services,Children's Social Care,Support Service and Management Costs,Schools Catering,Kitchen Supplies - Food and Beverages,14/05/2018,5036312,"1,006.72",Thomas Ridley & Son Ltd
Childrens Services,Children's Social Care,Support Service and Management Costs,Schools Catering,Kitchen Supplies - Food and Beverages,14/05/2018,5036314,412.59,Thomas Ridley & Son Ltd
Childrens Services,Children's Social Care,Support Service and Management Costs,Schools Catering,Kitchen Supplies - Food and Beverages,14/05/2018,5036315,295.48,Thomas Ridley & Son Ltd
Childrens Services,Children's Social Care,Support Service and Management Costs,Schools Catering,Kitchen Supplies - Food and Beverages,14/05/2018,5036320,"1,353.08",Thomas Ridley & Son Ltd
Childrens Services,Children's Social Care,Support Service and Management Costs,Schools Catering,Kitchen Supplies - Food and Beverages,14/05/2018,5036322,973.99,Thomas Ridley & Son Ltd
Childrens Services,Children's Social Care,Support Service and Management Costs,Schools Catering,Kitchen Supplies - Food and Beverages,14/05/2018,5036324,588.54,Thomas Ridley & Son Ltd
Childrens Services,Children's Social Care,Support Service and Management Costs,Schools Catering,Kitchen Supplies - Food and Beverages,14/05/2018,5036326,565.35,Thomas Ridley & Son Ltd
Childrens Services,Children's Social Care,Support Service and Management Costs,Schools Catering,Kitchen Supplies - Food and Beverages,14/05/2018,5036327,918.41,Thomas Ridley & Son Ltd
Childrens Services,Children's Social Care,Support Service and Management Costs,Schools Catering,Kitchen Supplies - Food and Beverages,14/05/2018,5036328,418.01,Thomas Ridley & Son Ltd
Childrens Services,Children's Social Care,Support Service and Management Costs,Schools Catering,Kitchen Supplies - Food and Beverages,14/05/2018,5036330,409.87,Thomas Ridley & Son Ltd
Childrens Services,Children's Social Care,Support Service and Management Costs,Schools Catering,Kitchen Supplies - Food and Beverages,14/05/2018,5036331,450.82,Thomas Ridley & Son Ltd
Childrens Services,Children's Social Care,Support Service and Management Costs,Schools Catering,Kitchen Supplies - Food and Beverages,14/05/2018,5036332,446.70,Thomas Ridley & Son Ltd
Childrens Services,Children's Social Care,Support Service and Management Costs,Schools Catering,Kitchen Supplies - Food and Beverages,14/05/2018,5036334,"1,137.62",Thomas Ridley & Son Ltd
Childrens Services,Children's Social Care,Support Service and Management Costs,Schools Catering,Kitchen Supplies - Food and Beverages,14/05/2018,5036335,598.57,Thomas Ridley & Son Ltd
Childrens Services,Children's Social Care,Support Service and Management Costs,Schools Catering,Kitchen Supplies - Food and Beverages,14/05/2018,5036336,464.14,Thomas Ridley & Son Ltd
Childrens Services,Children's Social Care,Support Service and Management Costs,Schools Catering,Kitchen Supplies - Food and Beverages,14/05/2018,5036339,861.95,Thomas Ridley & Son Ltd
Childrens Services,Children's Social Care,Support Service and Management Costs,Schools Catering,Kitchen Supplies - Food and Beverages,14/05/2018,5036342,252.66,Thomas Ridley & Son Ltd
Childrens Services,Children's Social Care,Support Service and Management Costs,Schools Catering,Kitchen Supplies - Food and Beverages,14/05/2018,5036346,430.29,Thomas Ridley & Son Ltd
Childrens Services,Children's Social Care,Support Service and Management Costs,Schools Catering,Kitchen Supplies - Food and Beverages,14/05/2018,5036347,442.74,Thomas Ridley & Son Ltd
Childrens Services,Children's Social Care,Support Service and Management Costs,Schools Catering,Kitchen Supplies - Food and Beverages,14/05/2018,5036349,614.30,Thomas Ridley & Son Ltd
Childrens Services,Children's Social Care,Support Service and Management Costs,Schools Catering,Kitchen Supplies - Food and Beverages,14/05/2018,5036350,791.07,Thomas Ridley & Son Ltd
Childrens Services,Children's Social Care,Support Service and Management Costs,Schools Catering,Kitchen Supplies - Food and Beverages,14/05/2018,5036351,515.54,Thomas Ridley & Son Ltd
Childrens Services,Children's Social Care,Support Service and Management Costs,Schools Catering,Kitchen Supplies - Food and Beverages,14/05/2018,5036352,988.61,Thomas Ridley & Son Ltd
Childrens Services,Children's Social Care,Support Service and Management Costs,Schools Catering,Kitchen Supplies - Food and Beverages,14/05/2018,5036353,"1,501.28",Thomas Ridley & Son Ltd
Childrens Services,Children's Social Care,Support Service and Management Costs,Schools Catering,Kitchen Supplies - Food and Beverages,14/05/2018,5036354,297.52,Thomas Ridley & Son Ltd
Childrens Services,Children's Social Care,Support Service and Management Costs,Schools Catering,Kitchen Supplies - Food and Beverages,14/05/2018,5036355,477.96,Thomas Ridley & Son Ltd
Childrens Services,Children's Social Care,Support Service and Management Costs,Sch. Meals A/c - Central Production Unit,Kitchen Supplies - Food and Beverages,14/05/2018,5036457,"1,656.49",Thomas Ridley & Son Ltd
Childrens Services,Education Services,Other Strategic Functions,Special Education Needs DSG,Third Party Payments - Payments to Schools,14/05/2018,5036514,"1,163.75",Cavendish School
Childrens Services,Children's Social Care,Support Service and Management Costs,Schools Catering,Kitchen Supplies - Food and Beverages,14/05/2018,5036535,265.10,Thomas Ridley & Son Ltd
Childrens Services,Children's Social Care,Support Service and Management Costs,Schools Catering,Kitchen Supplies - Food and Beverages,14/05/2018,5036543,"1,132.21",Thomas Ridley & Son Ltd
Childrens Services,Children's Social Care,Support Service and Management Costs,Schools Catering,Kitchen Supplies - Food and Beverages,14/05/2018,5036554,352.02,Prescott-Thomas LTD.
Childrens Services,Children's Social Care,Support Service and Management Costs,Schools Catering,Kitchen Supplies - Food and Beverages,14/05/2018,5036559,521.93,Thomas Ridley & Son Ltd
Childrens Services,Children's Social Care,Support Service and Management Costs,Schools Catering,Kitchen Supplies - Food and Beverages,14/05/2018,5036563,470.65,Thomas Ridley & Son Ltd
Childrens Services,Children's Social Care,Support Service and Management Costs,Schools Catering,Kitchen Supplies - Food and Beverages,14/05/2018,5036567,"1,326.18",Thomas Ridley & Son Ltd
Childrens Services,Children's Social Care,Support Service and Management Costs,Schools Catering,Kitchen Supplies - Food and Beverages,14/05/2018,5036569,656.22,Thomas Ridley & Son Ltd
Childrens Services,Children's Social Care,Support Service and Management Costs,Schools Catering,Kitchen Supplies - Food and Beverages,14/05/2018,5036573,914.90,Thomas Ridley & Son Ltd
Childrens Services,Children's Social Care,Support Service and Management Costs,Schools Catering,Kitchen Supplies - Food and Beverages,14/05/2018,5036577,682.70,Thomas Ridley & Son Ltd
Childrens Services,Children's Social Care,Support Service and Management Costs,Schools Catering,Kitchen Supplies - Food and Beverages,14/05/2018,5036579,264.50,Thomas Ridley & Son Ltd
Childrens Services,Children's Social Care,Support Service and Management Costs,Schools Catering,Kitchen Supplies - Food and Beverages,14/05/2018,5036581,545.03,Thomas Ridley & Son Ltd
Childrens Services,Children's Social Care,Support Service and Management Costs,Schools Catering,Kitchen Supplies - Food and Beverages,14/05/2018,5036583,"1,221.23",Thomas Ridley & Son Ltd
Childrens Services,Children's Social Care,Support Service and Management Costs,Schools Catering,Kitchen Supplies - Food and Beverages,14/05/2018,5036586,251.22,Prescott-Thomas LTD.
Childrens Services,Children's Social Care,Support Service and Management Costs,Schools Catering,Kitchen Supplies - Food and Beverages,14/05/2018,5036591,315.77,Prescott-Thomas LTD.
Childrens Services,Children's Social Care,Support Service and Management Costs,Schools Catering,Kitchen Supplies - Food and Beverages,14/05/2018,5036605,388.76,Prescott-Thomas LTD.
Childrens Services,Children's Social Care,Support Service and Management Costs,Schools Catering,Kitchen Supplies - Food and Beverages,14/05/2018,5036606,253.01,Prescott-Thomas LTD.
Childrens Services,Highways and Transport Services,Management and Support Services,Contract Services M & A,Stationery,14/05/2018,5036888,409.38,Office Depot (Catalogue)
Childrens Services,Children's Social Care,Children Looked After,S23-Other-Semi-Ind. Unit,Childrens Act Section 23 - Placement Fee,14/05/2018,5036909,925.00,Real Life
Childrens Services,Children's Social Care,Children Looked After,S23-Other-Semi-Ind. Unit,Childrens Act Section 23 - Placement Fee,14/05/2018,5036910,"1,358.00",Real Life
Childrens Services,Children's Social Care,Children Looked After,S23-Other-Semi-Ind. Unit,Childrens Act Section 23 - Placement Fee,14/05/2018,5036911,925.00,Real Life
Childrens Services,Children's Social Care,Children Looked After,S23-Other-Semi-Ind. Unit,Childrens Act Section 23 - Placement Fee,14/05/2018,5036912,925.00,Real Life
Childrens Services,Children's Social Care,Support Service and Management Costs,Sch. Meals A/c - Central Production Unit,Kitchen Supplies - Food and Beverages,14/05/2018,5036922,275.64,Prescott-Thomas LTD.
Childrens Services,Children's Social Care,Support Service and Management Costs,Sch. Meals A/c - Central Production Unit,Kitchen Supplies - Food and Beverages,14/05/2018,5036943,583.23,Thomas Ridley & Son Ltd
Childrens Services,Children's Social Care,Support Service and Management Costs,Schools Catering,Kitchen Supplies - Food and Beverages,14/05/2018,5036969,351.41,Thomas Ridley & Son Ltd
Childrens Services,Children's Social Care,Support Service and Management Costs,Schools Catering,Kitchen Supplies - Food and Beverages,14/05/2018,5036973,462.04,Thomas Ridley & Son Ltd
Childrens Services,Children's Social Care,Support Service and Management Costs,Schools Catering,Kitchen Supplies - Food and Beverages,14/05/2018,5036975,528.31,Thomas Ridley & Son Ltd
Childrens Services,Children's Social Care,Support Service and Management Costs,Schools Catering,Kitchen Supplies - Food and Beverages,14/05/2018,5036977,776.91,Thomas Ridley & Son Ltd
Childrens Services,Children's Social Care,Support Service and Management Costs,Schools Catering,Kitchen Supplies - Food and Beverages,14/05/2018,5036979,"1,120.73",Thomas Ridley & Son Ltd
Childrens Services,Children's Social Care,Support Service and Management Costs,Schools Catering,Kitchen Supplies - Food and Beverages,14/05/2018,5036981,989.24,Thomas Ridley & Son Ltd
Childrens Services,Children's Social Care,Support Service and Management Costs,Schools Catering,Kitchen Supplies - Food and Beverages,14/05/2018,5036983,338.93,Thomas Ridley & Son Ltd
Childrens Services,Children's Social Care,Support Service and Management Costs,Schools Catering,Kitchen Supplies - Food and Beverages,14/05/2018,5036985,955.69,Thomas Ridley & Son Ltd
Childrens Services,Children's Social Care,Support Service and Management Costs,Schools Catering,Kitchen Supplies - Food and Beverages,14/05/2018,5036996,616.01,Thomas Ridley & Son Ltd
Childrens Services,Children's Social Care,Support Service and Management Costs,Schools Catering,Kitchen Supplies - Food and Beverages,14/05/2018,5037001,307.18,Thomas Ridley & Son Ltd
Childrens Services,Children's Social Care,Support Service and Management Costs,Schools Catering,Kitchen Supplies - Food and Beverages,14/05/2018,5037511,496.79,Thomas Ridley & Son Ltd
Childrens Services,Children's Social Care,Support Service and Management Costs,Schools Catering,Kitchen Supplies - Food and Beverages,14/05/2018,5037513,259.50,Thomas Ridley & Son Ltd
Childrens Services,Children's Social Care,Support Service and Management Costs,Schools Catering,Kitchen Supplies - Food and Beverages,14/05/2018,5037517,837.84,Thomas Ridley & Son Ltd
Childrens Services,Children's Social Care,Support Service and Management Costs,Schools Catering,Kitchen Supplies - Food and Beverages,14/05/2018,5037519,449.85,Thomas Ridley & Son Ltd
Childrens Services,Children's Social Care,Support Service and Management Costs,Schools Catering,Kitchen Supplies - Food and Beverages,14/05/2018,5037520,816.63,Thomas Ridley & Son Ltd
Childrens Services,Children's Social Care,Support Service and Management Costs,Schools Catering,Kitchen Supplies - Food and Beverages,14/05/2018,5037521,304.24,Thomas Ridley & Son Ltd
Childrens Services,Children's Social Care,Support Service and Management Costs,Schools Catering,Kitchen Supplies - Food and Beverages,14/05/2018,5037523,577.62,Thomas Ridley & Son Ltd
Childrens Services,Education Services,Other Strategic Functions,Special Education Needs DSG,Third Party Payments - Payments to Schools,14/05/2018,5037660,"3,847.29",Gatehouse Educational Trust Ltd
Childrens Services,Education Services,Other Strategic Functions,Special Education Needs DSG,Third Party Payments - Payments to Schools,14/05/2018,5037661,"4,438.97",Gatehouse Educational Trust Ltd
Childrens Services,Education Services,Other Strategic Functions,Special Education Needs DSG,Third Party Payments - Payments to Schools,14/05/2018,5037662,"2,959.46",Gatehouse Educational Trust Ltd
Childrens Services,Children's Social Care,Services for young people,Youth Service Management,SLA Services (Expenditure) - Service Level Agreements,14/05/2018,5038858,"6,487.50",NEWARK YOUTH LONDON
Childrens Services,Children's Social Care,Services for young people,Youth Service Management,SLA Services (Expenditure) - Service Level Agreements,14/05/2018,5038958,"6,487.50",NEWARK YOUTH LONDON
Childrens Services,Children's Social Care,Support Service and Management Costs,Sch. Meals A/c - Langdon Park,Kitchen Supplies - Food and Beverages,14/05/2018,5039076,270.84,Peros Limited
Childrens Services,Children's Social Care,Children Looked After,Enrichment Projects,Education & Training - Non Staff Tuition Fees,14/05/2018,5039091,"1,500.00",Half Moon Young People's Theatre
Childrens Services,Cultural and Related Services,Open Spaces,Victoria Park,Events & Exhibition Supplies,14/05/2018,5039111,"1,120.00",Community Link Trading Ltd
Childrens Services,Cultural and Related Services,Open Spaces,Parks & Open Spaces Man&Admin,Repairs and Maintenance - Responsive - Buildings,14/05/2018,5039116,680.00,J&L Coster (Drainage) Ltd
Childrens Services,Cultural and Related Services,Open Spaces,Victoria Park,Repairs and Maintenance - Responsive - Repair & Maintenance,14/05/2018,5039117,450.00,J&L Coster (Drainage) Ltd
Childrens Services,Children's Social Care,Children Looked After,S23 Family Placements P&V,Childrens Act Section 23 - Placement Fee,14/05/2018,5039143,"4,000.00",Credo Care ltd
Childrens Services,Children's Social Care,Support Service and Management Costs,Sch. Meals A/c - Central Production Unit,Kitchen Supplies - Food and Beverages,14/05/2018,5039578,363.00,William White Meats Ltd
Childrens Services,Children's Social Care,Support Service and Management Costs,Schools Catering,Kitchen Supplies - Food and Beverages,14/05/2018,5039847,295.72,William White Meats Ltd
Childrens Services,Children's Social Care,Children Looked After,S23 Fam Pl P&V-F/Care,Childrens Act Section 23 - Placement Fee,14/05/2018,5040832,"3,432.00",Shared Care Services Ltd
Childrens Services,Children's Social Care,Children Looked After,S23 Fam Pl P&V-F/Care,Childrens Act Section 23 - Placement Fee,14/05/2018,5040833,"1,252.52",Shared Care Services Ltd
Childrens Services,Children's Social Care,Support Service and Management Costs,Schools Catering,Repairs and Maintenance - Responsive - General,14/05/2018,5042504,251.75,Lambourne Refrigeration
Childrens Services,Children's Social Care,Children Looked After,S23-Other-Semi-Ind. Unit,Childrens Act Section 23 - Placement Fee,14/05/2018,5043116,"1,030.28",TSS Ltd
Childrens Services,Education Services,Early Years,Overland CC,Education & Training - Non Staff Tuition Fees,14/05/2018,5044066,295.31,Cosy
Childrens Services,Children's Social Care,Children Looked After,S23-Other-Semi-Ind. Unit,Childrens Act Section 23 - Placement Fee,14/05/2018,5045843,"3,718.55",TSS Ltd
Childrens Services,Education Services,Other Strategic Functions,Alternative Provision,Third Party Payments - Contingencies,14/05/2018,5045928,"6,250.00",The Complete Works Ltd
Childrens Services,Children's Social Care,Children Looked After,Fostering and Development Team 1,Subscriptions - Associations,14/05/2018,5046516,"1,315.00",Kings College London
Childrens Services,Children's Social Care,Children Looked After,Children Looked After Sect 17,Social Care - Day Care,14/05/2018,5047117,"3,686.12",Heartwood Outreach Services Ltd
Childrens Services,Children's Social Care,Children Looked After,Children Looked After Sect 17,Social Care - Day Care,14/05/2018,5047155,"3,628.12",Heartwood Outreach Services Ltd
Childrens Services,Children's Social Care,Children Looked After,Children Looked After Sect 17,Childrens Act Section 17 - Placement Fee,14/05/2018,5047165,"3,991.99",Heartwood Outreach Services Ltd
Childrens Services,Children's Social Care,Children Looked After,S23 Fam Pl In-Hse-S/Term F/C,Childrens Act Section 23 - Commissioned Services,14/05/2018,5048019,432.00,Sumi Ratnam & Co Ltd
Childrens Services,Children's Social Care,Family Support Services,IPST S17 NRPF,Childrens Act Section 17 - Food Grants,14/05/2018,5049591,"1,190.00",BETHNAL GREEN SOCIAL SERVICES
Childrens Services,Children's Social Care,Support Service and Management Costs,Schools Catering,Materials - Cleaning Materials,14/05/2018,5049660,267.78,The Maintenance Supply Co Ltd
Childrens Services,Children's Social Care,Family Support Services,Disabled Children�s Outreach Service,Catering - Hospitality,14/05/2018,5049776,520.49,Disabled Childrens Outreach Service
Childrens Services,Children's Social Care,Support Service and Management Costs,Schools Catering,Materials - Cleaning Materials,14/05/2018,5049810,581.16,The Maintenance Supply Co Ltd
Childrens Services,Children's Social Care,Support Service and Management Costs,Schools Catering,Materials - Cleaning Materials,14/05/2018,5049984,271.65,The Maintenance Supply Co Ltd
Childrens Services,Cultural and Related Services,Open Spaces,Parks & Open Spaces Man&Admin,Repairs and Maintenance - Responsive - Buildings,16/05/2018,5014813,"1,180.00",JC Coster (Metalworks) Ltd
Childrens Services,Cultural and Related Services,Open Spaces,Parks & Open Spaces Man&Admin,Repairs and Maintenance - Responsive - Buildings,16/05/2018,5015729,420.00,JC Coster (Metalworks) Ltd
Childrens Services,Cultural and Related Services,Open Spaces,Stepney Green,Services - Professional Fees - Security Fees,16/05/2018,5036395,"2,961.21",Manpower Direct UK
Childrens Services,Cultural and Related Services,Recreation & Sport,Sports Development,Recreational Activities,16/05/2018,5036499,"6,435.00",Our Parks Ltd
Childrens Services,Children's Social Care,Support Service and Management Costs,Swanlea,Kitchen Supplies - Food and Beverages,16/05/2018,5036919,748.88,Thomas Ridley & Son Ltd
Childrens Services,Children's Social Care,Support Service and Management Costs,Schools Catering,Kitchen Supplies - Food and Beverages,16/05/2018,5037524,445.49,Thomas Ridley & Son Ltd
Childrens Services,Children's Social Care,Support Service and Management Costs,Schools Catering,Kitchen Supplies - Food and Beverages,16/05/2018,5037525,803.07,Thomas Ridley & Son Ltd
Childrens Services,Children's Social Care,Support Service and Management Costs,Schools Catering,Kitchen Supplies - Food and Beverages,16/05/2018,5037527,706.97,Thomas Ridley & Son Ltd
Childrens Services,Children's Social Care,Support Service and Management Costs,Schools Catering,Kitchen Supplies - Food and Beverages,16/05/2018,5037528,443.29,Thomas Ridley & Son Ltd
Childrens Services,Children's Social Care,Support Service and Management Costs,Schools Catering,Kitchen Supplies - Food and Beverages,16/05/2018,5037529,994.62,Thomas Ridley & Son Ltd
Childrens Services,Children's Social Care,Support Service and Management Costs,Schools Catering,Kitchen Supplies - Food and Beverages,16/05/2018,5037531,722.22,Thomas Ridley & Son Ltd
Childrens Services,Children's Social Care,Support Service and Management Costs,Schools Catering,Kitchen Supplies - Food and Beverages,16/05/2018,5037533,553.09,Thomas Ridley & Son Ltd
Childrens Services,Children's Social Care,Support Service and Management Costs,Schools Catering,Kitchen Supplies - Food and Beverages,16/05/2018,5037537,264.77,Thomas Ridley & Son Ltd
Childrens Services,Children's Social Care,Support Service and Management Costs,Schools Catering,Kitchen Supplies - Food and Beverages,16/05/2018,5037538,461.19,Thomas Ridley & Son Ltd
Childrens Services,Children's Social Care,Support Service and Management Costs,Schools Catering,Kitchen Supplies - Food and Beverages,16/05/2018,5037539,306.26,Thomas Ridley & Son Ltd
Childrens Services,Children's Social Care,Support Service and Management Costs,Schools Catering,Kitchen Supplies - Food and Beverages,16/05/2018,5037540,395.45,Thomas Ridley & Son Ltd
Childrens Services,Children's Social Care,Support Service and Management Costs,Schools Catering,Kitchen Supplies - Food and Beverages,16/05/2018,5037541,549.04,Thomas Ridley & Son Ltd
Childrens Services,Children's Social Care,Support Service and Management Costs,Schools Catering,Kitchen Supplies - Food and Beverages,16/05/2018,5037542,504.28,Thomas Ridley & Son Ltd
Childrens Services,Children's Social Care,Support Service and Management Costs,Schools Catering,Kitchen Supplies - Food and Beverages,16/05/2018,5037544,263.00,Thomas Ridley & Son Ltd
Childrens Services,Children's Social Care,Support Service and Management Costs,Schools Catering,Kitchen Supplies - Food and Beverages,16/05/2018,5037546,424.43,Thomas Ridley & Son Ltd
Childrens Services,Children's Social Care,Support Service and Management Costs,Schools Catering,Kitchen Supplies - Food and Beverages,16/05/2018,5037548,667.30,Thomas Ridley & Son Ltd
Childrens Services,Children's Social Care,Support Service and Management Costs,Schools Catering,Kitchen Supplies - Food and Beverages,16/05/2018,5037549,308.49,Thomas Ridley & Son Ltd
Childrens Services,Children's Social Care,Support Service and Management Costs,Schools Catering,Kitchen Supplies - Food and Beverages,16/05/2018,5037551,413.89,Thomas Ridley & Son Ltd
Childrens Services,Children's Social Care,Children Looked After,S23-Other-Mother & Baby Unit,Childrens Act Section 23 - Placement Fee,16/05/2018,5037586,"6,860.00",Care 2 Share LTD
Childrens Services,Children's Social Care,Services for young people,Youth Service Management,Office Furniture/Equipment,16/05/2018,5037615,827.00,ESPO
Childrens Services,Children's Social Care,Support Service and Management Costs,Sch. Meals A/c - Central Production Unit,Kitchen Supplies - Food and Beverages,16/05/2018,5037628,"1,541.35",Thomas Ridley & Son Ltd
Childrens Services,Education Services,Other Strategic Functions,Special Education Needs DSG,Third Party Payments - Payments to Schools,16/05/2018,5037673,"14,350.00",Moor House School and College
Childrens Services,Children's Social Care,Children Looked After,S23-Other-Mother & Baby Unit,Childrens Act Section 23 - Placement Fee,16/05/2018,5037706,"6,860.00",Care 2 Share LTD
Childrens Services,Children's Social Care,Children Looked After,S23-Other-Mother & Baby Unit,Childrens Act Section 23 - Placement Fee,16/05/2018,5037722,"3,777.12",Care 2 Share LTD
Childrens Services,Children's Social Care,Support Service and Management Costs,Schools Catering,Kitchen Supplies - Food and Beverages,16/05/2018,5037743,591.06,Thomas Ridley & Son Ltd
Childrens Services,Children's Social Care,Support Service and Management Costs,Schools Catering,Kitchen Supplies - Food and Beverages,16/05/2018,5037747,655.95,Thomas Ridley & Son Ltd
Childrens Services,Children's Social Care,Support Service and Management Costs,Schools Catering,Kitchen Supplies - Food and Beverages,16/05/2018,5037751,533.65,Thomas Ridley & Son Ltd
Childrens Services,Children's Social Care,Support Service and Management Costs,Schools Catering,Kitchen Supplies - Food and Beverages,16/05/2018,5037755,331.31,Thomas Ridley & Son Ltd
Childrens Services,Children's Social Care,Support Service and Management Costs,Schools Catering,Kitchen Supplies - Food and Beverages,16/05/2018,5037759,525.50,Thomas Ridley & Son Ltd
Childrens Services,Children's Social Care,Support Service and Management Costs,Schools Catering,Kitchen Supplies - Food and Beverages,16/05/2018,5037763,287.03,Thomas Ridley & Son Ltd
Childrens Services,Children's Social Care,Support Service and Management Costs,Schools Catering,Kitchen Supplies - Food and Beverages,16/05/2018,5037769,811.73,Thomas Ridley & Son Ltd
Childrens Services,Children's Social Care,Support Service and Management Costs,Schools Catering,Kitchen Supplies - Food and Beverages,16/05/2018,5037771,835.94,Thomas Ridley & Son Ltd
Childrens Services,Children's Social Care,Support Service and Management Costs,Schools Catering,Kitchen Supplies - Food and Beverages,16/05/2018,5037773,272.41,Thomas Ridley & Son Ltd
Childrens Services,Children's Social Care,Support Service and Management Costs,Schools Catering,Kitchen Supplies - Food and Beverages,16/05/2018,5037775,413.22,Thomas Ridley & Son Ltd
Childrens Services,Children's Social Care,Support Service and Management Costs,Schools Catering,Kitchen Supplies - Food and Beverages,16/05/2018,5037788,505.46,Thomas Ridley & Son Ltd
Childrens Services,Children's Social Care,Support Service and Management Costs,Schools Catering,Kitchen Supplies - Food and Beverages,16/05/2018,5037803,914.99,Thomas Ridley & Son Ltd
Childrens Services,Children's Social Care,Support Service and Management Costs,Schools Catering,Kitchen Supplies - Food and Beverages,16/05/2018,5037815,"1,282.40",Thomas Ridley & Son Ltd
Childrens Services,Children's Social Care,Support Service and Management Costs,Schools Catering,Kitchen Supplies - Food and Beverages,16/05/2018,5037826,300.44,Prescott-Thomas LTD.
Childrens Services,Children's Social Care,Support Service and Management Costs,Schools Catering,Kitchen Supplies - Food and Beverages,16/05/2018,5037834,767.37,Thomas Ridley & Son Ltd
Childrens Services,Children's Social Care,Support Service and Management Costs,Schools Catering,Kitchen Supplies - Food and Beverages,16/05/2018,5037840,785.29,Thomas Ridley & Son Ltd
Childrens Services,Children's Social Care,Support Service and Management Costs,Schools Catering,Kitchen Supplies - Food and Beverages,16/05/2018,5037876,452.73,Thomas Ridley & Son Ltd
Childrens Services,Children's Social Care,Support Service and Management Costs,Schools Catering,Kitchen Supplies - Food and Beverages,16/05/2018,5037884,353.42,Thomas Ridley & Son Ltd
Childrens Services,Children's Social Care,Support Service and Management Costs,Schools Catering,Kitchen Supplies - Food and Beverages,16/05/2018,5037890,749.99,Thomas Ridley & Son Ltd
Childrens Services,Children's Social Care,Support Service and Management Costs,Schools Catering,Kitchen Supplies - Food and Beverages,16/05/2018,5037895,507.56,Thomas Ridley & Son Ltd
Childrens Services,Children's Social Care,Support Service and Management Costs,Schools Catering,Kitchen Supplies - Food and Beverages,16/05/2018,5037900,327.75,Thomas Ridley & Son Ltd
Childrens Services,Children's Social Care,Support Service and Management Costs,Schools Catering,Kitchen Supplies - Food and Beverages,16/05/2018,5037906,703.04,Thomas Ridley & Son Ltd
Childrens Services,Children's Social Care,Support Service and Management Costs,Schools Catering,Kitchen Supplies - Food and Beverages,16/05/2018,5037909,492.00,Thomas Ridley & Son Ltd
Childrens Services,Children's Social Care,Support Service and Management Costs,Schools Catering,Kitchen Supplies - Food and Beverages,16/05/2018,5037912,813.75,Thomas Ridley & Son Ltd
Childrens Services,Children's Social Care,Support Service and Management Costs,Schools Catering,Kitchen Supplies - Food and Beverages,16/05/2018,5037915,760.58,Thomas Ridley & Son Ltd
Childrens Services,Children's Social Care,Support Service and Management Costs,Schools Catering,Kitchen Supplies - Food and Beverages,16/05/2018,5037921,301.15,Thomas Ridley & Son Ltd
Childrens Services,Children's Social Care,Support Service and Management Costs,Schools Catering,Kitchen Supplies - Food and Beverages,16/05/2018,5037923,858.98,Thomas Ridley & Son Ltd
Childrens Services,Children's Social Care,Support Service and Management Costs,Schools Catering,Kitchen Supplies - Food and Beverages,16/05/2018,5037932,413.29,Thomas Ridley & Son Ltd
Childrens Services,Children's Social Care,Support Service and Management Costs,Schools Catering,Kitchen Supplies - Food and Beverages,16/05/2018,5037937,464.13,Thomas Ridley & Son Ltd
Childrens Services,Children's Social Care,Children Looked After,S23 Fam Pl P&V-F/Care,Childrens Act Section 23 - Placement Fee,16/05/2018,5038859,"3,220.20",Quality Foster Care Ltd
Childrens Services,Children's Social Care,Service Strategy,CSC Childrens Resources M & A,Stationery,16/05/2018,5038867,264.93,Office Depot (Catalogue)
Childrens Services,Education Services,Other Strategic Functions,Ofsted Improvement Plan,Stationery,16/05/2018,5038875,266.00,Office Depot (Catalogue)
Childrens Services,Children's Social Care,Children Looked After,Virtual School PPG,Agency Staff - Associations,16/05/2018,5038932,925.30,Academics ltd
Childrens Services,Children's Social Care,Children Looked After,Enrichment Projects,Agency Staff - Associations,16/05/2018,5038933,460.30,Academics ltd
Childrens Services,Children's Social Care,Children Looked After,Virtual School PPG,Agency Staff - Associations,16/05/2018,5038934,460.30,Academics ltd
Childrens Services,Children's Social Care,Children Looked After,Enrichment Projects,Agency Staff - Associations,16/05/2018,5038969,460.30,Academics ltd
Childrens Services,Education Services,Other Strategic Functions,High Needs FE Colleges,Third Party Payments - Payments to Schools,16/05/2018,5039109,"786,110.06",New City College (Tower Hamlets Campus)
Childrens Services,Education Services,Other Strategic Functions,Special Education Needs DSG,Third Party Payments - Payments to Schools,16/05/2018,5039183,"35,259.13",St Elizabeth's Centre
Childrens Services,Children's Social Care,Children Looked After,S23 18+ & Relevnt Young People,Childrens Act Section 23 - Placement Fee,16/05/2018,5039183,"35,259.13",St Elizabeth's Centre
Childrens Services,Children's Social Care,Support Service and Management Costs,Childrens Services IT Trading,Services - Professional Fees - Consultants Fees,16/05/2018,5039534,"11,002.00",Agilisys Professional Services
Childrens Services,Education Services,Other Strategic Functions,Central Pupil Database Project,Services - Professional Fees - Consultants Fees,16/05/2018,5039535,"4,508.00",Agilisys Professional Services
Childrens Services,Adult Social Care,Support Service and Management Costs,Org Development L&D Training,Training Expenses - Staff External Training (UK Based),16/05/2018,5039553,"1,630.00",Huntersjoy Ltd
Childrens Services,Cultural and Related Services,Culture & Heritage,Arts-Park Events,Events & Exhibition Supplies,16/05/2018,5039571,"12,499.50",Emergency Exit Arts
Childrens Services,Children's Social Care,Support Service and Management Costs,Welfare Catering,Kitchen Supplies - Food and Beverages,16/05/2018,5039656,259.89,William White Meats Ltd
Childrens Services,Children's Social Care,Support Service and Management Costs,Schools Catering,Kitchen Supplies - Food and Beverages,16/05/2018,5039791,269.75,William White Meats Ltd
Childrens Services,Children's Social Care,Support Service and Management Costs,Schools Catering,Kitchen Supplies - Food and Beverages,16/05/2018,5039794,322.95,William White Meats Ltd
Childrens Services,Children's Social Care,Support Service and Management Costs,Schools Catering,Kitchen Supplies - Food and Beverages,16/05/2018,5039809,417.50,William White Meats Ltd
Childrens Services,Children's Social Care,Support Service and Management Costs,Schools Catering,Kitchen Supplies - Food and Beverages,16/05/2018,5039820,341.80,William White Meats Ltd
Childrens Services,Children's Social Care,Support Service and Management Costs,Schools Catering,Kitchen Supplies - Food and Beverages,16/05/2018,5039830,316.30,William White Meats Ltd
Childrens Services,Children's Social Care,Support Service and Management Costs,Schools Catering,Kitchen Supplies - Food and Beverages,16/05/2018,5039852,350.75,William White Meats Ltd
Childrens Services,Children's Social Care,Other Children's and Family Services,Adoption Support Fund,Third Party Payments - Other Agencies,16/05/2018,5039889,"2,178.00",Post-Adoption Centre
Childrens Services,Children's Social Care,Support Service and Management Costs,Schools Catering,Kitchen Supplies - Food and Beverages,16/05/2018,5040154,312.00,William White Meats Ltd
Childrens Services,Children's Social Care,Support Service and Management Costs,Schools Catering,Kitchen Supplies - Food and Beverages,16/05/2018,5040156,433.50,William White Meats Ltd
Childrens Services,Education Services,Early Years,Overland CC,Office Furniture/Equipment,16/05/2018,5040778,"1,265.00",Unique Office Solutions
Childrens Services,Children's Social Care,Support Service and Management Costs,Sch. Meals A/c - Mulberry,Kitchen Supplies - Food and Beverages,16/05/2018,5041228,331.63,Peros Limited
Childrens Services,Children's Social Care,Service Strategy,FSP Sect 17 - Team 5,Childrens Act Section 17 - Other Childcare Support,16/05/2018,5042536,"2,971.43",HMO Property Services Ltd
Childrens Services,Education Services,Other Strategic Functions,Special Education Needs DSG,Third Party Payments - Payments to Schools,16/05/2018,5043092,375.00,National Teaching And Advisory Service
Childrens Services,Education Services,Other Strategic Functions,High Needs FE Colleges,Third Party Payments - Payments to Schools,16/05/2018,5043133,"22,315.93",The College of Haringey Enfield & NE London
Childrens Services,Education Services,Other Strategic Functions,Special Education Needs DSG,Payments to Private Contractors - Private Contractor,16/05/2018,5045914,850.00,Steve Lockett
Childrens Services,Education Services,Other Strategic Functions,Special Education Needs DSG,Third Party Payments - Payments to Schools,16/05/2018,5047133,"50,691.33",St Elizabeth's Centre
Childrens Services,Children's Social Care,Children Looked After,S23-Resi-P&V/OLA-Boarding Sch,Childrens Act Section 23 - Placement Fee,16/05/2018,5047133,"50,691.34",St Elizabeth's Centre
Childrens Services,Education Services,Other Strategic Functions,Special Education Needs DSG,Third Party Payments - Payments to Schools,16/05/2018,5047134,"40,679.21",St Elizabeth's Centre
Childrens Services,Children's Social Care,Children Looked After,S23-Resi-P&V/OLA-Boarding Sch,Childrens Act Section 23 - Placement Fee,16/05/2018,5047134,"40,679.21",St Elizabeth's Centre
Childrens Services,Education Services,Other Strategic Functions,High Needs Other Boroughs,Third Party Payments - Payments to Schools,16/05/2018,5049079,"13,093.50",Little Heath School
Childrens Services,Education Services,Other Strategic Functions,Ofsted Improvement Plan,Services - Professional Fees - Consultants Fees,16/05/2018,5049092,"2,633.90",Nigel Richardson (North Devon) Ltd
Childrens Services,Education Services,Other Strategic Functions,Ofsted Improvement Plan,Services - Professional Fees - Consultants Fees,16/05/2018,5049130,"2,525.20",Nigel Richardson (North Devon) Ltd
Childrens Services,Education Services,Other Strategic Functions,Ofsted Improvement Plan,Services - Professional Fees - Consultants Fees,16/05/2018,5049145,"1,596.74",Nigel Richardson (North Devon) Ltd
Childrens Services,Education Services,Other Strategic Functions,Ofsted Improvement Plan,Services - Professional Fees - Consultants Fees,16/05/2018,5049157,"1,112.54",Nigel Richardson (North Devon) Ltd
Childrens Services,Children's Social Care,Family Support Services,IPST S17 NRPF,Childrens Act Section 17 - Other Placements Bed & Breakfast,16/05/2018,5049634,"4,000.00",Finefair Management
Childrens Services,Children's Social Care,Children Looked After,S23 Fam Pl P&V-F/Care,Childrens Act Section 23 - Non-Contact Trans/Travel Costs,16/05/2018,5049670,"1,237.95",TKG LTD T/A The Keen Group
Childrens Services,Children's Social Care,Children Looked After,S23 Fam Pl P&V-F/Care,Childrens Act Section 23 - Placement Fee,16/05/2018,5049674,"2,841.44",Children First Fostering Agency LTD
Childrens Services,Children's Social Care,Children Looked After,S23 Fam Pl P&V-F/Care,Childrens Act Section 23 - Placement Fee,16/05/2018,5049706,"6,214.29",Five Rivers Childcare Limited
Childrens Services,Children's Social Care,Children Looked After,Enrichment Projects,Agency Staff - Associations,16/05/2018,5049718,460.30,Academics ltd
Childrens Services,Children's Social Care,Children Looked After,S23 Fam Pl P&V-F/Care,Childrens Act Section 23 - Placement Fee,16/05/2018,5049730,"1,832.25",Kent Homefinding and Fostering
Childrens Services,Children's Social Care,Children Looked After,S23 Fam Pl P&V-F/Care,Childrens Act Section 23 - Placement Fee,16/05/2018,5049731,"3,664.50",Kent Homefinding and Fostering
Childrens Services,Children's Social Care,Family Support Services,Short Breaks and Family Support,Third Party Payments - Voluntary Associations,16/05/2018,5049769,"88,333.33",QALB Centre Short Break Services
Childrens Services,Children's Social Care,Family Support Services,IPST S17 NRPF,Childrens Act Section 17 - Other Placements Bed & Breakfast,16/05/2018,5049779,"4,250.00",Finefair Management
Childrens Services,Children's Social Care,Children Looked After,Virtual School PPG,Education & Training - Non Staff Tuition Fees,16/05/2018,5049785,280.00,Winchmore Tutors Ltd
Childrens Services,Children's Social Care,Children Looked After,S23 Fam Pl P&V-F/Care,Childrens Act Section 23 - Placement Fee,16/05/2018,5049786,"2,841.44",Children First Fostering Agency LTD
Childrens Services,Children's Social Care,Children Looked After,S23 Fam Pl P&V-F/Care,Childrens Act Section 23 - Placement Fee,16/05/2018,5049801,"4,030.65",Kent Homefinding and Fostering
Childrens Services,Children's Social Care,Family Support Services,IPST S17 NRPF,Childrens Act Section 17 - Other Placements Bed & Breakfast,16/05/2018,5049806,"1,650.00",Finefair Management
Childrens Services,Children's Social Care,Family Support Services,IPST S17 NRPF,Childrens Act Section 17 - Other Placements Bed & Breakfast,16/05/2018,5049823,"2,100.00",Finefair Management
Childrens Services,Children's Social Care,Family Support Services,IPST S17 NRPF,Childrens Act Section 17 - Other Placements Bed & Breakfast,16/05/2018,5049835,"1,710.00",Finefair Management
Childrens Services,Children's Social Care,Family Support Services,IPST S17 NRPF,Childrens Act Section 17 - Other Placements Bed & Breakfast,16/05/2018,5049843,300.00,Finefair Management
Childrens Services,Children's Social Care,Family Support Services,IPST S17 NRPF,Childrens Act Section 17 - Other Placements Bed & Breakfast,16/05/2018,5049850,"1,500.00",Finefair Management
Childrens Services,Children's Social Care,Family Support Services,IPST S17 NRPF,Childrens Act Section 17 - Other Placements Bed & Breakfast,16/05/2018,5049855,"1,500.00",Finefair Management
Childrens Services,Children's Social Care,Family Support Services,IPST S17 NRPF,Childrens Act Section 17 - Other Placements Bed & Breakfast,16/05/2018,5049860,"2,400.00",Finefair Management
Childrens Services,Children's Social Care,Support Service and Management Costs,Schools Catering,Materials - Cleaning Materials,16/05/2018,5049862,390.95,The Maintenance Supply Co Ltd
Childrens Services,Children's Social Care,Support Service and Management Costs,Schools Catering,Materials - Cleaning Materials,16/05/2018,5049905,396.14,The Maintenance Supply Co Ltd
Childrens Services,Environmental and Regulatory Services,Regulatory Services,Thames Tideway Project,Events & Exhibition Supplies,16/05/2018,5050011,930.00,Splash Arts
Childrens Services,Cultural and Related Services,Culture & Heritage,Event Fund,Third Party Payments - Voluntary Associations,16/05/2018,5050446,800.00,MUKUL AND GHETTO TIGERS
Childrens Services,Cultural and Related Services,Culture & Heritage,Event Fund,Third Party Payments - Voluntary Associations,16/05/2018,5050447,"1,800.00",The Bromley by Bow Centre
Childrens Services,Cultural and Related Services,Culture & Heritage,Event Fund,Third Party Payments - Voluntary Associations,16/05/2018,5050448,"1,800.00",TEVIOT PARTNERSHIP
Childrens Services,Cultural and Related Services,Culture & Heritage,Event Fund,Third Party Payments - Voluntary Associations,16/05/2018,5050449,250.00,West Indian Over 50's Social Club
Childrens Services,Children's Social Care,Service Strategy,"FSP Sect 17 - Team 2		",Childrens Act Section 17 - Expert Assessmt/Witness Costs,16/05/2018,5050542,972.00,Sumi Ratnam & Co Ltd
Childrens Services,Education Services,Other Strategic Functions,Schools Library,Events & Exhibition Supplies,16/05/2018,5051589,"2,675.00",The Poetry Society
Childrens Services,Children's Social Care,Family Support Services,Short Breaks and Family Support,Third Party Payments - Voluntary Associations,16/05/2018,5051609,"31,509.60",Tower Project
Childrens Services,Children's Social Care,Children Looked After,S23 Fam Pl P&V-F/Care,Childrens Act Section 23 - Placement Fee,16/05/2018,5051644,"12,154.00",Horizon Care & Education Group Ltd
Childrens Services,Education Services,Other Strategic Functions,Schools Library,Non Staff Advertising - General,16/05/2018,5051674,"5,985.00",The Day News & Media Ltd
Childrens Services,Children's Social Care,Children Looked After,S23 Fam Pl P&V-F/Care,Childrens Act Section 23 - Placement Fee,16/05/2018,5051675,"3,276.70",National Fostering Agency
Childrens Services,Children's Social Care,Children Looked After,S23-Resi-P&V/OLA-Child Home,Childrens Act Section 23 - Placement Fee,17/05/2018,5031813,"16,183.14",McRae Residential Care Services Limited
Childrens Services,Children's Social Care,Children Looked After,S23-Resi-P&V/OLA-Child Home,Childrens Act Section 23 - Placement Fee,17/05/2018,5036930,"-16,183.14",McRae Residential Care Services Limited
Childrens Services,Education Services,Other Strategic Functions,Special Education Needs DSG,Payments to Private Contractors - Private Contractor,18/05/2018,5031114,"15,768.00",SEN Support Services Ltd
Childrens Services,Children's Social Care,Support Service and Management Costs,Swanlea,Kitchen Supplies - Food and Beverages,18/05/2018,5038924,"1,239.16",Thomas Ridley & Son Ltd
Childrens Services,Children's Social Care,Support Service and Management Costs,Schools Catering,Kitchen Supplies - Food and Beverages,18/05/2018,5038989,318.73,Thomas Ridley & Son Ltd
Childrens Services,Children's Social Care,Support Service and Management Costs,Schools Catering,Kitchen Supplies - Food and Beverages,18/05/2018,5039011,320.94,Thomas Ridley & Son Ltd
Childrens Services,Children's Social Care,Support Service and Management Costs,Schools Catering,Kitchen Supplies - Food and Beverages,18/05/2018,5039015,378.02,Thomas Ridley & Son Ltd
Childrens Services,Children's Social Care,Support Service and Management Costs,Schools Catering,Kitchen Supplies - Food and Beverages,18/05/2018,5039022,783.78,Thomas Ridley & Son Ltd
Childrens Services,Children's Social Care,Support Service and Management Costs,Schools Catering,Kitchen Supplies - Food and Beverages,18/05/2018,5039025,494.09,Thomas Ridley & Son Ltd
Childrens Services,Children's Social Care,Support Service and Management Costs,Schools Catering,Kitchen Supplies - Food and Beverages,18/05/2018,5039027,"1,199.12",Thomas Ridley & Son Ltd
Childrens Services,Children's Social Care,Support Service and Management Costs,Schools Catering,Kitchen Supplies - Food and Beverages,18/05/2018,5039029,545.33,Thomas Ridley & Son Ltd
Childrens Services,Children's Social Care,Support Service and Management Costs,Schools Catering,Kitchen Supplies - Food and Beverages,18/05/2018,5039031,832.50,Thomas Ridley & Son Ltd
Childrens Services,Children's Social Care,Support Service and Management Costs,Schools Catering,Kitchen Supplies - Food and Beverages,18/05/2018,5039033,327.37,Thomas Ridley & Son Ltd
Childrens Services,Children's Social Care,Support Service and Management Costs,Schools Catering,Kitchen Supplies - Food and Beverages,18/05/2018,5039039,373.19,Thomas Ridley & Son Ltd
Childrens Services,Children's Social Care,Support Service and Management Costs,Schools Catering,Kitchen Supplies - Food and Beverages,18/05/2018,5039041,567.47,Thomas Ridley & Son Ltd
Childrens Services,Children's Social Care,Support Service and Management Costs,Schools Catering,Kitchen Supplies - Food and Beverages,18/05/2018,5039043,349.97,Thomas Ridley & Son Ltd
Childrens Services,Children's Social Care,Support Service and Management Costs,Schools Catering,Kitchen Supplies - Food and Beverages,18/05/2018,5039046,327.11,Thomas Ridley & Son Ltd
Childrens Services,Children's Social Care,Support Service and Management Costs,Schools Catering,Kitchen Supplies - Food and Beverages,18/05/2018,5039047,305.75,Thomas Ridley & Son Ltd
Childrens Services,Children's Social Care,Support Service and Management Costs,Sch. Meals A/c - Central Production Unit,Kitchen Supplies - Food and Beverages,18/05/2018,5039638,"1,477.71",William White Meats Ltd
Childrens Services,Children's Social Care,Support Service and Management Costs,Schools Catering,Kitchen Supplies - Food and Beverages,18/05/2018,5039795,366.00,William White Meats Ltd
Childrens Services,Children's Social Care,Support Service and Management Costs,Schools Catering,Kitchen Supplies - Food and Beverages,18/05/2018,5039807,402.92,William White Meats Ltd
Childrens Services,Children's Social Care,Support Service and Management Costs,Welfare Catering,Kitchen Supplies - Food and Beverages,18/05/2018,5039948,387.71,William White Meats Ltd
Childrens Services,Children's Social Care,Support Service and Management Costs,Schools Catering,Kitchen Supplies - Food and Beverages,18/05/2018,5040084,329.05,William White Meats Ltd
Childrens Services,Children's Social Care,Support Service and Management Costs,Schools Catering,Kitchen Supplies - Food and Beverages,18/05/2018,5040095,310.48,William White Meats Ltd
Childrens Services,Children's Social Care,Support Service and Management Costs,Schools Catering,Kitchen Supplies - Food and Beverages,18/05/2018,5040121,258.10,William White Meats Ltd
Childrens Services,Children's Social Care,Support Service and Management Costs,Schools Catering,Kitchen Supplies - Food and Beverages,18/05/2018,5040127,377.80,William White Meats Ltd
Childrens Services,Children's Social Care,Support Service and Management Costs,Schools Catering,Kitchen Supplies - Food and Beverages,18/05/2018,5040133,667.44,William White Meats Ltd
Childrens Services,Children's Social Care,Support Service and Management Costs,Schools Catering,Kitchen Supplies - Food and Beverages,18/05/2018,5040140,554.78,William White Meats Ltd
Childrens Services,Children's Social Care,Support Service and Management Costs,Schools Catering,Kitchen Supplies - Food and Beverages,18/05/2018,5040148,457.50,William White Meats Ltd
Childrens Services,Children's Social Care,Support Service and Management Costs,Schools Catering,Kitchen Supplies - Food and Beverages,18/05/2018,5040150,377.30,William White Meats Ltd
Childrens Services,Children's Social Care,Support Service and Management Costs,Schools Catering,Kitchen Supplies - Food and Beverages,18/05/2018,5040158,265.18,William White Meats Ltd
Childrens Services,Children's Social Care,Support Service and Management Costs,Schools Catering,Kitchen Supplies - Food and Beverages,18/05/2018,5040160,274.50,William White Meats Ltd
Childrens Services,Children's Social Care,Support Service and Management Costs,Schools Catering,Kitchen Supplies - Food and Beverages,18/05/2018,5040682,308.64,William White Meats Ltd
Childrens Services,Children's Social Care,Support Service and Management Costs,Schools Catering,Kitchen Supplies - Food and Beverages,18/05/2018,5040684,316.30,William White Meats Ltd
Childrens Services,Children's Social Care,Support Service and Management Costs,Schools Catering,Kitchen Supplies - Food and Beverages,18/05/2018,5040688,480.10,William White Meats Ltd
Childrens Services,Children's Social Care,Support Service and Management Costs,Schools Catering,Kitchen Supplies - Food and Beverages,18/05/2018,5040696,274.50,William White Meats Ltd
Childrens Services,Children's Social Care,Support Service and Management Costs,Schools Catering,Kitchen Supplies - Food and Beverages,18/05/2018,5040706,265.24,William White Meats Ltd
Childrens Services,Children's Social Care,Support Service and Management Costs,Schools Catering,Kitchen Supplies - Food and Beverages,18/05/2018,5040708,250.04,William White Meats Ltd
Childrens Services,Children's Social Care,Support Service and Management Costs,Schools Catering,Kitchen Supplies - Food and Beverages,18/05/2018,5040715,895.67,William White Meats Ltd
Childrens Services,Children's Social Care,Support Service and Management Costs,Schools Catering,Kitchen Supplies - Food and Beverages,18/05/2018,5040719,477.22,William White Meats Ltd
Childrens Services,Children's Social Care,Support Service and Management Costs,Schools Catering,Kitchen Supplies - Food and Beverages,18/05/2018,5040721,534.30,William White Meats Ltd
Childrens Services,Children's Social Care,Support Service and Management Costs,Schools Catering,Kitchen Supplies - Food and Beverages,18/05/2018,5040723,348.85,William White Meats Ltd
Childrens Services,Children's Social Care,Support Service and Management Costs,Schools Catering,Kitchen Supplies - Food and Beverages,18/05/2018,5040729,305.00,William White Meats Ltd
Childrens Services,Children's Social Care,Support Service and Management Costs,Schools Catering,Kitchen Supplies - Food and Beverages,18/05/2018,5040731,268.33,William White Meats Ltd
Childrens Services,Children's Social Care,Support Service and Management Costs,Schools Catering,Kitchen Supplies - Food and Beverages,18/05/2018,5040733,305.00,William White Meats Ltd
Childrens Services,Children's Social Care,Support Service and Management Costs,Schools Catering,Kitchen Supplies - Food and Beverages,18/05/2018,5040735,274.50,William White Meats Ltd
Childrens Services,Children's Social Care,Support Service and Management Costs,Schools Catering,Kitchen Supplies - Food and Beverages,18/05/2018,5040737,644.66,William White Meats Ltd
Childrens Services,Children's Social Care,Support Service and Management Costs,Schools Catering,Kitchen Supplies - Food and Beverages,18/05/2018,5040739,423.22,William White Meats Ltd
Childrens Services,Education Services,Other Strategic Functions,Special Education Needs DSG,Third Party Payments - Payments to Schools,18/05/2018,5040768,"23,797.00",Whittington Health NHS Trust
Childrens Services,Children's Social Care,Children Looked After,S23-Other-Semi-Ind. Unit,Childrens Act Section 23 - Non-Contact Trans/Travel Costs,18/05/2018,5040793,480.00,Grays Removals
Childrens Services,Education Services,Other Strategic Functions,High Needs FE Colleges,Third Party Payments - Payments to Schools,18/05/2018,5040840,"7,907.49",East Kent College
Childrens Services,Education Services,Other Strategic Functions,Special Education Needs DSG,Third Party Payments - Payments to Schools,18/05/2018,5040842,"6,849.00",Whittington Health NHS Trust
Childrens Services,Children's Social Care,Children Looked After,S23-Resi-P&V/OLA-Sec Acc-Wel,Childrens Act Section 23 - Secure Review Costs,18/05/2018,5041092,547.60,RRC (RRCONSULTANCY) LTD
Childrens Services,Children's Social Care,Support Service and Management Costs,Sch. Meals A/c - Bow School,Kitchen Supplies - Food and Beverages,18/05/2018,5041095,711.00,Tiffin Sandwiches
Childrens Services,Children's Social Care,Support Service and Management Costs,Sch. Meals A/c - C.F.S. Upper (Harley Grove),Catering - Hospitality,18/05/2018,5041096,632.00,Tiffin Sandwiches
Childrens Services,Children's Social Care,Support Service and Management Costs,Sch. Meals A/c - George Green,Kitchen Supplies - Food and Beverages,18/05/2018,5041097,620.15,Tiffin Sandwiches
Childrens Services,Children's Social Care,Support Service and Management Costs,Sch. Meals A/c - Langdon Park,Kitchen Supplies - Food and Beverages,18/05/2018,5041098,676.24,Tiffin Sandwiches
Childrens Services,Children's Social Care,Support Service and Management Costs,Sch. Meals A/c - Morpeth,Kitchen Supplies - Food and Beverages,18/05/2018,5041099,"1,054.65",Tiffin Sandwiches
Childrens Services,Children's Social Care,Support Service and Management Costs,Sch. Meals A/c - Mulberry,Kitchen Supplies - Food and Beverages,18/05/2018,5041100,966.17,Tiffin Sandwiches
Childrens Services,Children's Social Care,Support Service and Management Costs,Sch. Meals A/c - Oaklands,Kitchen Supplies - Food and Beverages,18/05/2018,5041101,616.20,Tiffin Sandwiches
Childrens Services,Children's Social Care,Support Service and Management Costs,Sch. Meals A/c - Raines Foundation,Kitchen Supplies - Food and Beverages,18/05/2018,5041102,316.00,Tiffin Sandwiches
Childrens Services,Children's Social Care,Support Service and Management Costs,Sch. Meals A/c - St. Paul's Way Comm. Trust,Kitchen Supplies - Food and Beverages,18/05/2018,5041103,325.48,Tiffin Sandwiches
Childrens Services,Children's Social Care,Support Service and Management Costs,Sch. Meals A/c - Stepney Green,Kitchen Supplies - Food and Beverages,18/05/2018,5041104,355.50,Tiffin Sandwiches
Childrens Services,Children's Social Care,Support Service and Management Costs,"Mulberry Caf�		",Catering - Hospitality,18/05/2018,5042472,344.92,Tiffin Sandwiches
Childrens Services,Education Services,Other Strategic Functions,Ofsted Improvement Plan,Meeting Expenses,18/05/2018,5043008,500.00,The Atrium London Ltd
Childrens Services,Children's Social Care,Support Service and Management Costs,Swanlea,Kitchen Supplies - Food and Beverages,18/05/2018,5043098,477.64,William White Meats Ltd
Childrens Services,Children's Social Care,Support Service and Management Costs,Schools Catering,Kitchen Supplies - Food and Beverages,18/05/2018,5043210,330.71,William White Meats Ltd
Childrens Services,Children's Social Care,Support Service and Management Costs,Schools Catering,Kitchen Supplies - Food and Beverages,18/05/2018,5043260,367.00,William White Meats Ltd
Childrens Services,Children's Social Care,Support Service and Management Costs,Schools Catering,Kitchen Supplies - Food and Beverages,18/05/2018,5043270,420.22,William White Meats Ltd
Childrens Services,Children's Social Care,Support Service and Management Costs,Schools Catering,Kitchen Supplies - Food and Beverages,18/05/2018,5044103,577.51,William White Meats Ltd
Childrens Services,Education Services,Early Years,Overland CC,Subscriptions - Associations,18/05/2018,5044113,358.50,Cosy
Childrens Services,Children's Social Care,Support Service and Management Costs,Schools Catering,Kitchen Supplies - Food and Beverages,18/05/2018,5044136,272.09,William White Meats Ltd
Childrens Services,Children's Social Care,Support Service and Management Costs,Schools Catering,Kitchen Supplies - Food and Beverages,18/05/2018,5044151,268.62,William White Meats Ltd
Childrens Services,Children's Social Care,Support Service and Management Costs,Schools Catering,Kitchen Supplies - Food and Beverages,18/05/2018,5044170,308.17,William White Meats Ltd
Childrens Services,Children's Social Care,Children Looked After,S23 Fam Pl In-Hse-S/Term F/C,Childrens Act Section 23 - Expert Assessmt/Witness Costs,18/05/2018,5044174,"2,834.29",Symbol Family Support Services LTD
Childrens Services,Children's Social Care,Support Service and Management Costs,Schools Catering,Kitchen Supplies - Food and Beverages,18/05/2018,5044194,343.06,William White Meats Ltd
Childrens Services,Children's Social Care,Support Service and Management Costs,Schools Catering,Kitchen Supplies - Food and Beverages,18/05/2018,5044278,390.00,William White Meats Ltd
Childrens Services,Children's Social Care,Support Service and Management Costs,Schools Catering,Kitchen Supplies - Food and Beverages,18/05/2018,5044284,589.75,William White Meats Ltd
Childrens Services,Children's Social Care,Support Service and Management Costs,Schools Catering,Kitchen Supplies - Food and Beverages,18/05/2018,5044290,255.11,William White Meats Ltd
Childrens Services,Children's Social Care,Support Service and Management Costs,Schools Catering,Kitchen Supplies - Food and Beverages,18/05/2018,5044814,679.63,William White Meats Ltd
Childrens Services,Children's Social Care,Support Service and Management Costs,Schools Catering,Kitchen Supplies - Food and Beverages,18/05/2018,5044826,330.31,William White Meats Ltd
Childrens Services,Children's Social Care,Support Service and Management Costs,Schools Catering,Kitchen Supplies - Food and Beverages,18/05/2018,5044844,517.61,William White Meats Ltd
Childrens Services,Children's Social Care,Support Service and Management Costs,Schools Catering,Kitchen Supplies - Food and Beverages,18/05/2018,5044849,506.29,William White Meats Ltd
Childrens Services,Children's Social Care,Support Service and Management Costs,Schools Catering,Kitchen Supplies - Food and Beverages,18/05/2018,5044874,334.62,William White Meats Ltd
Childrens Services,Children's Social Care,Support Service and Management Costs,Schools Catering,Kitchen Supplies - Food and Beverages,18/05/2018,5044885,277.84,William White Meats Ltd
Childrens Services,Children's Social Care,Support Service and Management Costs,Schools Catering,Kitchen Supplies - Food and Beverages,18/05/2018,5045655,560.24,William White Meats Ltd
Childrens Services,Children's Social Care,Support Service and Management Costs,Schools Catering,Kitchen Supplies - Food and Beverages,18/05/2018,5045661,310.37,William White Meats Ltd
Childrens Services,Children's Social Care,Support Service and Management Costs,Schools Catering,Kitchen Supplies - Food and Beverages,18/05/2018,5045667,743.46,William White Meats Ltd
Childrens Services,Children's Social Care,Support Service and Management Costs,Schools Catering,Kitchen Supplies - Food and Beverages,18/05/2018,5045672,472.85,William White Meats Ltd
Childrens Services,Children's Social Care,Support Service and Management Costs,Schools Catering,Kitchen Supplies - Food and Beverages,18/05/2018,5045682,364.65,William White Meats Ltd
Childrens Services,Children's Social Care,Support Service and Management Costs,Schools Catering,Kitchen Supplies - Food and Beverages,18/05/2018,5045687,327.95,William White Meats Ltd
Childrens Services,Children's Social Care,Support Service and Management Costs,Schools Catering,Kitchen Supplies - Food and Beverages,18/05/2018,5045692,276.54,William White Meats Ltd
Childrens Services,Education Services,Other Strategic Functions,Special Education Needs GF,Training Expenses - Staff External Training (UK Based),18/05/2018,5045842,760.00,GovNet Communications
Childrens Services,Cultural and Related Services,Open Spaces,Mile End Park,Repairs and Maintenance - Responsive - Buildings,18/05/2018,5047894,"1,809.99",Midland Marqees & Leisure Ltd
Childrens Services,Children's Social Care,Service Strategy,FSP Sect 17 - Team 5,Childrens Act Section 17 - Expert Assessmt/Witness Costs,18/05/2018,5048034,437.50,E4 Law Limited T/A Lextox
Childrens Services,Children's Social Care,Children Looked After,LCS/Allowances-Accom,Leaving Care Financial Assistance - Grant Pay Special Needs,18/05/2018,5048055,"2,929.70",Transforming Lives Co
Childrens Services,Children's Social Care,Children Looked After,LCS/Allowances-Accom,Leaving Care Financial Assistance - Supp Accom/Hous Rents,18/05/2018,5048055,870.00,Transforming Lives Co
Childrens Services,Children's Social Care,Children Looked After,S23 Fam Pl In-Hse-S/Term F/C,Childrens Act Section 23 - Non-Contact Trans/Travel Costs,18/05/2018,5049086,"1,935.00",Mile End Car Hire Limited
Childrens Services,Children's Social Care,Support Service and Management Costs,Schools Catering,Kitchen Supplies - Food and Beverages,18/05/2018,5049170,"2,129.36",Thomas Ridley & Son Ltd
Childrens Services,Children's Social Care,Support Service and Management Costs,Schools Catering,Kitchen Supplies - Food and Beverages,18/05/2018,5049210,"2,150.68",Thomas Ridley & Son Ltd
Childrens Services,Children's Social Care,Support Service and Management Costs,Schools Catering,Kitchen Supplies - Food and Beverages,18/05/2018,5049210,287.70,Thomas Ridley & Son Ltd
Childrens Services,Children's Social Care,Support Service and Management Costs,Schools Catering,Kitchen Supplies - Food and Beverages,18/05/2018,5049230,"1,482.17",Thomas Ridley & Son Ltd
Childrens Services,Children's Social Care,Support Service and Management Costs,Schools Catering,Kitchen Supplies - Food and Beverages,18/05/2018,5049242,"1,332.61",Thomas Ridley & Son Ltd
Childrens Services,Children's Social Care,Support Service and Management Costs,Schools Catering,Materials - Cleaning Materials,18/05/2018,5049908,279.59,The Maintenance Supply Co Ltd
Childrens Services,Education Services,Other Strategic Functions,High Needs Other Boroughs,Third Party Payments - Payments to Schools,18/05/2018,5050046,"13,093.50",Little Heath School
Childrens Services,Cultural and Related Services,Culture & Heritage,Filming,Events & Exhibition Supplies,18/05/2018,5050054,"5,000.00",East End Film Festival CIC
Childrens Services,Education Services,Other Strategic Functions,Alternative Provision,Third Party Payments - Payments to Schools,18/05/2018,5050481,"3,000.00",Morpeth School
Childrens Services,Education Services,Other Strategic Functions,Alternative Provision,Third Party Payments - Payments to Schools,18/05/2018,5050484,"3,000.00",Mulberry School for Girls
Childrens Services,Education Services,Other Strategic Functions,Alternative Provision,Third Party Payments - Payments to Schools,18/05/2018,5050491,"3,000.00",Oakland School
Childrens Services,Education Services,Other Strategic Functions,Alternative Provision,Third Party Payments - Payments to Schools,18/05/2018,5050515,"3,000.00",John Scurr School
Childrens Services,Education Services,Other Strategic Functions,Alternative Provision,Third Party Payments - Payments to Schools,18/05/2018,5050541,"3,000.00",BOW SCHOOL
Childrens Services,Education Services,Other Strategic Functions,Alternative Provision,Third Party Payments - Payments to Schools,18/05/2018,5050543,"3,000.00",BOW SCHOOL
Childrens Services,Education Services,Other Strategic Functions,Music Trading Account,Educational/Training Supplies - Arts & Crafts,18/05/2018,5051563,335.00,Redacted Section 40 FOI Act
Childrens Services,Children's Social Care,Support Service and Management Costs,Sch. Meals A/c - C.F.S. Upper (Harley Grove),Kitchen Supplies - Food and Beverages,18/05/2018,5051595,706.02,Chicken Joes
Childrens Services,Children's Social Care,Support Service and Management Costs,Sch. Meals A/c - Raines Foundation,Kitchen Supplies - Food and Beverages,18/05/2018,5051597,322.95,Chicken Joes
Childrens Services,Children's Social Care,Support Service and Management Costs,Sch. Meals A/c - Mulberry,Kitchen Supplies - Food and Beverages,18/05/2018,5051598,359.12,Chicken Joes
Childrens Services,Children's Social Care,Support Service and Management Costs,Sch. Meals A/c - Central Production Unit,Kitchen Supplies - Food and Beverages,18/05/2018,5051600,256.44,Chicken Joes
Childrens Services,Education Services,Other Strategic Functions,Schools Library,Educational/Training Supplies - Books,18/05/2018,5051701,495.51,Peters Bookselling Services
Childrens Services,Children's Social Care,Support Service and Management Costs,Swanlea,Kitchen Supplies - Food and Beverages,18/05/2018,5051703,581.48,Chicken Joes
Childrens Services,Children's Social Care,Support Service and Management Costs,Sch. Meals A/c - George Green,Kitchen Supplies - Food and Beverages,18/05/2018,5051706,414.53,Chicken Joes
Childrens Services,Education Services,Other Strategic Functions,Schools Library,Educational/Training Supplies - Books,18/05/2018,5051725,923.40,Peters Bookselling Services
Childrens Services,Cultural and Related Services,Open Spaces,Victoria Park,Water Services - Metered,18/05/2018,5051812,877.02,CASTLE WATER
Childrens Services,Children's Social Care,Children Looked After,S23-Other-Mother & Baby Unit,Childrens Act Section 23 - Placement Fee,18/05/2018,5052418,"3,500.00",Care 2 Share LTD
Childrens Services,Children's Social Care,Children Looked After,S23-Other-Semi-Ind. Unit,Childrens Act Section 23 - Non-Contact Trans/Travel Costs,18/05/2018,5052452,"1,130.00",The Way Care Services Ltd
Childrens Services,Children's Social Care,Support Service and Management Costs,Schools Catering,Repairs and Maintenance - Responsive - General,18/05/2018,5052468,539.75,Lambourne Refrigeration
Childrens Services,Children's Social Care,Other Children's and Family Services,Permanancy and Adoption Support Team 1,Room Hire,18/05/2018,5052490,270.00,Eastend Homes LTD
Childrens Services,Children's Social Care,Other Children's and Family Services,Permanancy and Adoption Support Team 1,Room Hire,18/05/2018,5052491,382.50,Eastend Homes LTD
Childrens Services,Children's Social Care,Other Children's and Family Services,Permanancy and Adoption Support Team 1,Room Hire,18/05/2018,5052492,382.50,Eastend Homes LTD
Childrens Services,Children's Social Care,Service Strategy,FSP Sect 17 - Team 9,Childrens Act Section 17 - Expert Assessmt/Witness Costs,18/05/2018,5052510,"2,600.00",Core Assets Expert Services Ltd T/a Carter Brown
Childrens Services,Children's Social Care,Service Strategy,FSP Sect 17 - Team 4,Childrens Act Section 17 - Other Childcare Support,18/05/2018,5052511,270.00,Red Box Teacher Recruitment Ltd
Childrens Services,Children's Social Care,Children Looked After,S23-Other-Mother & Baby Unit,Childrens Act Section 23 - Placement Fee,18/05/2018,5052515,"3,500.00",Care 2 Share LTD
Childrens Services,Children's Social Care,Children Looked After,S23 Fam Pl P&V-F/Care,Childrens Act Section 23 - Expert Assessmt/Witness Costs,18/05/2018,5052586,"1,030.67",Mcmillen Hamilton McCarthy Solicitors
Childrens Services,Children's Social Care,Children Looked After,S23 Fam Pl In-Hse-S/Term F/C,Childrens Act Section 23 - Expert Assessmt/Witness Costs,18/05/2018,5052589,"1,000.00",David Mold Ltd
Childrens Services,Children's Social Care,Support Service and Management Costs,Sch. Meals A/c - Guardian Angels/Olga,Tools and Equipment - Purchase,18/05/2018,5053692,299.00,Hobart UK
Childrens Services,Children's Social Care,Support Service and Management Costs,Schools Catering,Kitchen Supplies - Food and Beverages,18/05/2018,5053733,982.38,Thomas Ridley & Son Ltd
Childrens Services,Children's Social Care,Support Service and Management Costs,Schools Catering,Kitchen Supplies - Food and Beverages,18/05/2018,5053743,"1,318.93",Thomas Ridley & Son Ltd
Childrens Services,Children's Social Care,Support Service and Management Costs,Schools Catering,Kitchen Supplies - Food and Beverages,18/05/2018,5053746,872.83,Thomas Ridley & Son Ltd
Childrens Services,Children's Social Care,Support Service and Management Costs,Schools Catering,Kitchen Supplies - Food and Beverages,18/05/2018,5053770,656.45,Thomas Ridley & Son Ltd
Childrens Services,Education Services,Other Strategic Functions,Project Costs and Training,Services - Professional Fees - Consultants Fees,21/05/2018,5030937,"1,095.00",Agilisys Professional Services
Childrens Services,Children's Social Care,Support Service and Management Costs,Toby Lane Function,Kitchen Supplies - Food and Beverages,21/05/2018,5039124,256.11,Thomas Ridley & Son Ltd
Childrens Services,Children's Social Care,Support Service and Management Costs,Swanlea,Kitchen Supplies - Food and Beverages,21/05/2018,5039126,844.97,Thomas Ridley & Son Ltd
Childrens Services,Children's Social Care,Support Service and Management Costs,Schools Catering,Kitchen Supplies - Food and Beverages,21/05/2018,5039246,446.48,Thomas Ridley & Son Ltd
Childrens Services,Children's Social Care,Support Service and Management Costs,Schools Catering,Kitchen Supplies - Food and Beverages,21/05/2018,5039250,840.13,Thomas Ridley & Son Ltd
Childrens Services,Children's Social Care,Support Service and Management Costs,Schools Catering,Kitchen Supplies - Food and Beverages,21/05/2018,5039272,798.81,Thomas Ridley & Son Ltd
Childrens Services,Children's Social Care,Support Service and Management Costs,Schools Catering,Kitchen Supplies - Food and Beverages,21/05/2018,5039321,531.59,Thomas Ridley & Son Ltd
Childrens Services,Children's Social Care,Support Service and Management Costs,Schools Catering,Kitchen Supplies - Food and Beverages,21/05/2018,5039324,445.92,Thomas Ridley & Son Ltd
Childrens Services,Children's Social Care,Support Service and Management Costs,Schools Catering,Kitchen Supplies - Food and Beverages,21/05/2018,5039325,267.87,Thomas Ridley & Son Ltd
Childrens Services,Children's Social Care,Support Service and Management Costs,Schools Catering,Kitchen Supplies - Food and Beverages,21/05/2018,5039326,692.28,Thomas Ridley & Son Ltd
Childrens Services,Children's Social Care,Support Service and Management Costs,Schools Catering,Kitchen Supplies - Food and Beverages,21/05/2018,5039367,364.94,Thomas Ridley & Son Ltd
Childrens Services,Children's Social Care,Support Service and Management Costs,Schools Catering,Kitchen Supplies - Food and Beverages,21/05/2018,5039369,512.62,Thomas Ridley & Son Ltd
Childrens Services,Children's Social Care,Support Service and Management Costs,Schools Catering,Kitchen Supplies - Food and Beverages,21/05/2018,5039374,540.64,Thomas Ridley & Son Ltd
Childrens Services,Children's Social Care,Support Service and Management Costs,Schools Catering,Kitchen Supplies - Food and Beverages,21/05/2018,5039376,288.85,Thomas Ridley & Son Ltd
Childrens Services,Children's Social Care,Support Service and Management Costs,Schools Catering,Kitchen Supplies - Food and Beverages,21/05/2018,5039377,796.87,Thomas Ridley & Son Ltd
Childrens Services,Children's Social Care,Support Service and Management Costs,Schools Catering,Kitchen Supplies - Food and Beverages,21/05/2018,5039378,438.74,Thomas Ridley & Son Ltd
Childrens Services,Children's Social Care,Support Service and Management Costs,Schools Catering,Kitchen Supplies - Food and Beverages,21/05/2018,5039379,755.09,Thomas Ridley & Son Ltd
Childrens Services,Children's Social Care,Support Service and Management Costs,Schools Catering,Kitchen Supplies - Food and Beverages,21/05/2018,5039381,965.66,Thomas Ridley & Son Ltd
Childrens Services,Children's Social Care,Support Service and Management Costs,Schools Catering,Kitchen Supplies - Food and Beverages,21/05/2018,5039382,790.59,Thomas Ridley & Son Ltd
Childrens Services,Children's Social Care,Support Service and Management Costs,Schools Catering,Kitchen Supplies - Food and Beverages,21/05/2018,5039383,322.42,Thomas Ridley & Son Ltd
Childrens Services,Children's Social Care,Support Service and Management Costs,Schools Catering,Kitchen Supplies - Food and Beverages,21/05/2018,5039385,610.39,Thomas Ridley & Son Ltd
Childrens Services,Children's Social Care,Support Service and Management Costs,Schools Catering,Kitchen Supplies - Food and Beverages,21/05/2018,5039389,349.83,Thomas Ridley & Son Ltd
Childrens Services,Children's Social Care,Support Service and Management Costs,Schools Catering,Kitchen Supplies - Food and Beverages,21/05/2018,5039391,427.71,Thomas Ridley & Son Ltd
Childrens Services,Children's Social Care,Support Service and Management Costs,Schools Catering,Kitchen Supplies - Food and Beverages,21/05/2018,5039392,315.09,Thomas Ridley & Son Ltd
Childrens Services,Children's Social Care,Support Service and Management Costs,Schools Catering,Kitchen Supplies - Food and Beverages,21/05/2018,5039449,563.95,Thomas Ridley & Son Ltd
Childrens Services,Children's Social Care,Support Service and Management Costs,Schools Catering,Kitchen Supplies - Food and Beverages,21/05/2018,5039450,367.85,Thomas Ridley & Son Ltd
Childrens Services,Children's Social Care,Support Service and Management Costs,Schools Catering,Kitchen Supplies - Food and Beverages,21/05/2018,5039451,970.77,Thomas Ridley & Son Ltd
Childrens Services,Children's Social Care,Support Service and Management Costs,Schools Catering,Kitchen Supplies - Food and Beverages,21/05/2018,5039453,470.07,Thomas Ridley & Son Ltd
Childrens Services,Children's Social Care,Support Service and Management Costs,Schools Catering,Kitchen Supplies - Food and Beverages,21/05/2018,5039455,"1,029.59",Thomas Ridley & Son Ltd
Childrens Services,Children's Social Care,Support Service and Management Costs,Schools Catering,Kitchen Supplies - Food and Beverages,21/05/2018,5039457,847.59,Thomas Ridley & Son Ltd
Childrens Services,Children's Social Care,Support Service and Management Costs,Schools Catering,Kitchen Supplies - Food and Beverages,21/05/2018,5039458,492.96,Thomas Ridley & Son Ltd
Childrens Services,Children's Social Care,Support Service and Management Costs,Schools Catering,Kitchen Supplies - Food and Beverages,21/05/2018,5039459,583.77,Thomas Ridley & Son Ltd
Childrens Services,Children's Social Care,Support Service and Management Costs,Schools Catering,Kitchen Supplies - Food and Beverages,21/05/2018,5039460,735.29,Thomas Ridley & Son Ltd
Childrens Services,Children's Social Care,Support Service and Management Costs,Schools Catering,Kitchen Supplies - Food and Beverages,21/05/2018,5039462,273.49,Thomas Ridley & Son Ltd
Childrens Services,Children's Social Care,Support Service and Management Costs,Schools Catering,Kitchen Supplies - Food and Beverages,21/05/2018,5039465,391.98,Thomas Ridley & Son Ltd
Childrens Services,Children's Social Care,Support Service and Management Costs,Schools Catering,Kitchen Supplies - Food and Beverages,21/05/2018,5039467,784.82,Thomas Ridley & Son Ltd
Childrens Services,Children's Social Care,Support Service and Management Costs,Schools Catering,Kitchen Supplies - Food and Beverages,21/05/2018,5039468,552.63,Thomas Ridley & Son Ltd
Childrens Services,Children's Social Care,Support Service and Management Costs,Schools Catering,Kitchen Supplies - Food and Beverages,21/05/2018,5039470,408.57,Thomas Ridley & Son Ltd
Childrens Services,Children's Social Care,Support Service and Management Costs,Schools Catering,Kitchen Supplies - Food and Beverages,21/05/2018,5039475,287.52,Thomas Ridley & Son Ltd
Childrens Services,Children's Social Care,Support Service and Management Costs,Schools Catering,Kitchen Supplies - Food and Beverages,21/05/2018,5039476,293.00,Thomas Ridley & Son Ltd
Childrens Services,Children's Social Care,Support Service and Management Costs,Schools Catering,Kitchen Supplies - Food and Beverages,21/05/2018,5039478,659.69,Thomas Ridley & Son Ltd
Childrens Services,Children's Social Care,Support Service and Management Costs,Schools Catering,Kitchen Supplies - Food and Beverages,21/05/2018,5039479,377.75,Thomas Ridley & Son Ltd
Childrens Services,Children's Social Care,Support Service and Management Costs,Schools Catering,Kitchen Supplies - Food and Beverages,21/05/2018,5039482,267.42,Thomas Ridley & Son Ltd
Childrens Services,Children's Social Care,Support Service and Management Costs,Schools Catering,Kitchen Supplies - Food and Beverages,21/05/2018,5039483,510.44,Thomas Ridley & Son Ltd
Childrens Services,Children's Social Care,Support Service and Management Costs,Schools Catering,Kitchen Supplies - Food and Beverages,21/05/2018,5039484,856.69,Thomas Ridley & Son Ltd
Childrens Services,Children's Social Care,Support Service and Management Costs,Schools Catering,Kitchen Supplies - Food and Beverages,21/05/2018,5039487,354.59,Thomas Ridley & Son Ltd
Childrens Services,Children's Social Care,Support Service and Management Costs,Schools Catering,Kitchen Supplies - Food and Beverages,21/05/2018,5039488,541.51,Thomas Ridley & Son Ltd
Childrens Services,Children's Social Care,Support Service and Management Costs,Schools Catering,Kitchen Supplies - Food and Beverages,21/05/2018,5039490,263.59,Thomas Ridley & Son Ltd
Childrens Services,Children's Social Care,Support Service and Management Costs,Schools Catering,Kitchen Supplies - Food and Beverages,21/05/2018,5039493,433.46,Thomas Ridley & Son Ltd
Childrens Services,Children's Social Care,Support Service and Management Costs,Schools Catering,Kitchen Supplies - Food and Beverages,21/05/2018,5039495,528.24,Thomas Ridley & Son Ltd
Childrens Services,Children's Social Care,Support Service and Management Costs,Schools Catering,Kitchen Supplies - Food and Beverages,21/05/2018,5039500,358.24,Thomas Ridley & Son Ltd
Childrens Services,Children's Social Care,Support Service and Management Costs,Schools Catering,Kitchen Supplies - Food and Beverages,21/05/2018,5039501,989.51,Thomas Ridley & Son Ltd
Childrens Services,Children's Social Care,Support Service and Management Costs,Schools Catering,Kitchen Supplies - Food and Beverages,21/05/2018,5039503,655.55,Thomas Ridley & Son Ltd
Childrens Services,Children's Social Care,Support Service and Management Costs,Schools Catering,Kitchen Supplies - Food and Beverages,21/05/2018,5039504,280.85,Thomas Ridley & Son Ltd
Childrens Services,Children's Social Care,Support Service and Management Costs,Schools Catering,Kitchen Supplies - Food and Beverages,21/05/2018,5039505,291.89,Thomas Ridley & Son Ltd
Childrens Services,Children's Social Care,Support Service and Management Costs,Sch. Meals A/c - Central Production Unit,Kitchen Supplies - Food and Beverages,21/05/2018,5039566,"2,805.59",Thomas Ridley & Son Ltd
Childrens Services,Children's Social Care,Support Service and Management Costs,Schools Catering,Kitchen Supplies - Food and Beverages,21/05/2018,5039676,"1,525.64",Thomas Ridley & Son Ltd
Childrens Services,Children's Social Care,Support Service and Management Costs,Schools Catering,Kitchen Supplies - Food and Beverages,21/05/2018,5039685,563.60,Thomas Ridley & Son Ltd
Childrens Services,Children's Social Care,Support Service and Management Costs,Schools Catering,Kitchen Supplies - Food and Beverages,21/05/2018,5039692,293.48,Thomas Ridley & Son Ltd
Childrens Services,Children's Social Care,Support Service and Management Costs,Schools Catering,Kitchen Supplies - Food and Beverages,21/05/2018,5039699,916.42,Thomas Ridley & Son Ltd
Childrens Services,Children's Social Care,Support Service and Management Costs,Schools Catering,Kitchen Supplies - Food and Beverages,21/05/2018,5039703,279.42,Thomas Ridley & Son Ltd
Childrens Services,Children's Social Care,Support Service and Management Costs,Schools Catering,Kitchen Supplies - Food and Beverages,21/05/2018,5039707,839.81,Thomas Ridley & Son Ltd
Childrens Services,Children's Social Care,Support Service and Management Costs,Schools Catering,Kitchen Supplies - Food and Beverages,21/05/2018,5039738,770.05,Thomas Ridley & Son Ltd
Childrens Services,Cultural and Related Services,Open Spaces,Mile End Park,Repairs and Maintenance - Responsive - Buildings,21/05/2018,5039898,629.00,JC Coster (Metalworks) Ltd
Childrens Services,Cultural and Related Services,Open Spaces,Parks & Open Spaces Man&Admin,Repairs and Maintenance - Responsive - Buildings,21/05/2018,5039899,"1,073.00",JC Coster (Metalworks) Ltd
Childrens Services,Children's Social Care,Support Service and Management Costs,"Mulberry Caf�		",Kitchen Supplies - Food and Beverages,21/05/2018,5039931,474.83,Thomas Ridley & Son Ltd
Childrens Services,Adult Social Care,Support Service and Management Costs,Org Development L&D Training,Education & Training - Non Staff Tuition Fees,21/05/2018,5039975,600.00,Pulse First Aid Ltd
Childrens Services,Children's Social Care,Support Service and Management Costs,Schools Catering,Kitchen Supplies - Food and Beverages,21/05/2018,5040132,641.38,Thomas Ridley & Son Ltd
Childrens Services,Children's Social Care,Support Service and Management Costs,Schools Catering,Kitchen Supplies - Food and Beverages,21/05/2018,5040144,302.39,Thomas Ridley & Son Ltd
Childrens Services,Children's Social Care,Support Service and Management Costs,Schools Catering,Kitchen Supplies - Food and Beverages,21/05/2018,5040147,574.45,Thomas Ridley & Son Ltd
Childrens Services,Children's Social Care,Support Service and Management Costs,Schools Catering,Kitchen Supplies - Food and Beverages,21/05/2018,5040151,264.71,Thomas Ridley & Son Ltd
Childrens Services,Children's Social Care,Support Service and Management Costs,Schools Catering,Kitchen Supplies - Food and Beverages,21/05/2018,5040153,509.38,Thomas Ridley & Son Ltd
Childrens Services,Children's Social Care,Support Service and Management Costs,Schools Catering,Kitchen Supplies - Food and Beverages,21/05/2018,5040155,359.60,Thomas Ridley & Son Ltd
Childrens Services,Children's Social Care,Support Service and Management Costs,Schools Catering,Kitchen Supplies - Food and Beverages,21/05/2018,5040157,344.35,Thomas Ridley & Son Ltd
Childrens Services,Children's Social Care,Support Service and Management Costs,Schools Catering,Kitchen Supplies - Food and Beverages,21/05/2018,5040159,751.08,Thomas Ridley & Son Ltd
Childrens Services,Children's Social Care,Support Service and Management Costs,Schools Catering,Kitchen Supplies - Food and Beverages,21/05/2018,5040677,304.53,Thomas Ridley & Son Ltd
Childrens Services,Children's Social Care,Support Service and Management Costs,Schools Catering,Kitchen Supplies - Food and Beverages,21/05/2018,5040679,609.57,Thomas Ridley & Son Ltd
Childrens Services,Children's Social Care,Support Service and Management Costs,Schools Catering,Kitchen Supplies - Food and Beverages,21/05/2018,5040683,572.83,Thomas Ridley & Son Ltd
Childrens Services,Children's Social Care,Support Service and Management Costs,Schools Catering,Kitchen Supplies - Food and Beverages,21/05/2018,5040685,540.68,Thomas Ridley & Son Ltd
Childrens Services,Children's Social Care,Support Service and Management Costs,Schools Catering,Kitchen Supplies - Food and Beverages,21/05/2018,5040687,580.21,Thomas Ridley & Son Ltd
Childrens Services,Children's Social Care,Support Service and Management Costs,Schools Catering,Kitchen Supplies - Food and Beverages,21/05/2018,5040689,704.75,Thomas Ridley & Son Ltd
Childrens Services,Children's Social Care,Support Service and Management Costs,Schools Catering,Kitchen Supplies - Food and Beverages,21/05/2018,5040691,286.22,Thomas Ridley & Son Ltd
Childrens Services,Children's Social Care,Support Service and Management Costs,Schools Catering,Kitchen Supplies - Food and Beverages,21/05/2018,5040693,"1,075.82",Thomas Ridley & Son Ltd
Childrens Services,Children's Social Care,Support Service and Management Costs,Schools Catering,Kitchen Supplies - Food and Beverages,21/05/2018,5040695,318.99,Thomas Ridley & Son Ltd
Childrens Services,Children's Social Care,Support Service and Management Costs,Schools Catering,Kitchen Supplies - Food and Beverages,21/05/2018,5040697,695.25,Thomas Ridley & Son Ltd
Childrens Services,Children's Social Care,Support Service and Management Costs,Schools Catering,Kitchen Supplies - Food and Beverages,21/05/2018,5040699,570.58,Thomas Ridley & Son Ltd
Childrens Services,Children's Social Care,Support Service and Management Costs,Schools Catering,Kitchen Supplies - Food and Beverages,21/05/2018,5040701,603.93,Thomas Ridley & Son Ltd
Childrens Services,Children's Social Care,Support Service and Management Costs,Schools Catering,Kitchen Supplies - Food and Beverages,21/05/2018,5040703,367.12,Thomas Ridley & Son Ltd
Childrens Services,Children's Social Care,Support Service and Management Costs,Schools Catering,Kitchen Supplies - Food and Beverages,21/05/2018,5040705,803.50,Thomas Ridley & Son Ltd
Childrens Services,Children's Social Care,Support Service and Management Costs,Schools Catering,Kitchen Supplies - Food and Beverages,21/05/2018,5040707,688.07,Thomas Ridley & Son Ltd
Childrens Services,Children's Social Care,Support Service and Management Costs,Schools Catering,Kitchen Supplies - Food and Beverages,21/05/2018,5040710,589.54,Thomas Ridley & Son Ltd
Childrens Services,Children's Social Care,Support Service and Management Costs,Schools Catering,Kitchen Supplies - Food and Beverages,21/05/2018,5040712,355.63,Thomas Ridley & Son Ltd
Childrens Services,Children's Social Care,Support Service and Management Costs,Schools Catering,Kitchen Supplies - Food and Beverages,21/05/2018,5040714,372.21,Thomas Ridley & Son Ltd
Childrens Services,Children's Social Care,Support Service and Management Costs,Schools Catering,Kitchen Supplies - Food and Beverages,21/05/2018,5040720,434.66,Thomas Ridley & Son Ltd
Childrens Services,Children's Social Care,Support Service and Management Costs,Sch. Meals A/c - Central Production Unit,Kitchen Supplies - Food and Beverages,21/05/2018,5040850,275.64,Prescott-Thomas LTD.
Childrens Services,Children's Social Care,Support Service and Management Costs,Schools Catering,Kitchen Supplies - Food and Beverages,21/05/2018,5040879,266.77,Prescott-Thomas LTD.
Childrens Services,Children's Social Care,Children Looked After,Virtual School PPG,Third Party Payments - Payments to Schools,21/05/2018,5041083,400.00,Valentines High School
Childrens Services,Children's Social Care,Children Looked After,C.B.C & Fam.Prev/Support-Mgmnt,Education & Training - Non Staff Tuition Fees,21/05/2018,5041156,"36,650.66",Volunteer Centre Tower Hamlets
Childrens Services,Cultural and Related Services,Open Spaces,Mile End Park,Grounds Maintenance - Contract - Paths/Drives/Playground,21/05/2018,5043053,"1,650.00",Independent Communication Solutions Ltd
Childrens Services,Children's Social Care,Support Service and Management Costs,Sch. Meals A/c - Central Production Unit,Kitchen Supplies - Food and Beverages,21/05/2018,5043099,459.75,William White Meats Ltd
Childrens Services,Children's Social Care,Children Looked After,Enrichment Projects,Education & Training - Non Staff Tuition Fees,21/05/2018,5043113,"1,500.00",Real Mark Lloyd
Childrens Services,Cultural and Related Services,Open Spaces,Mile End Park,Repairs and Maintenance - Responsive - Buildings,21/05/2018,5044009,"1,450.00",J&L Coster (Drainage) Ltd
Childrens Services,Children's Social Care,Children Looked After,C.B.C & Fam.Prev/Support-Mgmnt,Third Party Payments - Associations,21/05/2018,5046979,"18,326.10",Welfare Call (LAC) LTD
Childrens Services,Education Services,Other Strategic Functions,Special Education Needs DSG,Third Party Payments - Payments to Schools,21/05/2018,5047847,"2,940.00",Business Education Partnership (UK) Ltd. trading as BEP Group
Childrens Services,Education Services,Other Strategic Functions,Auxilary Aids,Computing - Purchase of Hardware,21/05/2018,5049627,"3,577.45",IntriCon UK Ltd (t/a PC Werth)
Childrens Services,Children's Social Care,Support Service and Management Costs,Schools Catering,Materials - Cleaning Materials,21/05/2018,5049923,325.10,The Maintenance Supply Co Ltd
Childrens Services,Children's Social Care,Children Looked After,S23-Resi-P&V/OLA-Sec Acc-Wel,Childrens Act Section 23 - Placement Fee,21/05/2018,5050019,"89,401.13",CORA FOUNDATION
Childrens Services,Education Services,Other Strategic Functions,SEN External Travel,Non Staff Transport Costs - Reimbursement,21/05/2018,5050265,"30,110.00",Mile End Car Hire Limited
Childrens Services,Education Services,Other Strategic Functions,SEN External Travel,Non Staff Transport Costs - Reimbursement,21/05/2018,5050376,"11,359.00",Mile End Car Hire Limited
Childrens Services,Education Services,Other Strategic Functions,SEN External Travel,Non Staff Transport Costs - Reimbursement,21/05/2018,5051564,"23,077.00",Healthcare and Transport Services Group Ltd
Childrens Services,Education Services,Other Strategic Functions,SEN External Travel,Non Staff Transport Costs - Reimbursement,21/05/2018,5051585,"22,535.00",TKG LTD T/A The Keen Group
Childrens Services,Education Services,Other Strategic Functions,SEN External Travel,Non Staff Transport Costs - Reimbursement,21/05/2018,5051689,"1,980.00",IHS Corporation Ltd
Childrens Services,Children's Social Care,Support Service and Management Costs,Sch. Meals A/c - C.F.S. Upper (Harley Grove),Kitchen Supplies - Food and Beverages,21/05/2018,5051707,488.53,Chicken Joes
Childrens Services,Children's Social Care,Support Service and Management Costs,Sch. Meals A/c - Mulberry,Kitchen Supplies - Food and Beverages,21/05/2018,5051708,334.38,Chicken Joes
Childrens Services,Education Services,Other Strategic Functions,SEN External Travel,Non Staff Transport Costs - Reimbursement,21/05/2018,5051724,"1,650.00",IHS Corporation Ltd
Childrens Services,Children's Social Care,Support Service and Management Costs,Swanlea,Kitchen Supplies - Food and Beverages,21/05/2018,5051727,480.88,Chicken Joes
Childrens Services,Cultural and Related Services,Open Spaces,Parks & Open Spaces Man&Admin,Payments to Private Contractors - Sports Club Support,21/05/2018,5052410,"4,136.16",The Bromley by Bow Centre
Childrens Services,Education Services,Other Strategic Functions,Special Education Needs DSG,Third Party Payments - Payments to Schools,21/05/2018,5052486,"37,545.94",St Elizabeth's Centre
Childrens Services,Children's Social Care,Children Looked After,S23-Resi-P&V/OLA-Boarding Sch,Childrens Act Section 23 - Placement Fee,21/05/2018,5052486,"37,545.94",St Elizabeth's Centre
Childrens Services,Children's Social Care,Children Looked After,S23-Other-Semi-Ind. Unit,Childrens Act Section 23 - Non-Contact Trans/Travel Costs,21/05/2018,5052520,543.20,The Way Care Services Ltd
Childrens Services,Children's Social Care,Children Looked After,S23-Other-Semi-Ind. Unit,Childrens Act Section 23 - Non-Contact Trans/Travel Costs,21/05/2018,5052535,504.00,The Way Care Services Ltd
Childrens Services,Cultural and Related Services,Open Spaces,Mile End Park,Water Services - Metered,21/05/2018,5052648,912.01,CASTLE WATER
Childrens Services,Children's Social Care,Support Service and Management Costs,Schools Catering,Kitchen Supplies - Food and Beverages,21/05/2018,5053710,477.86,Thomas Ridley & Son Ltd
Childrens Services,Children's Social Care,Support Service and Management Costs,Schools Catering,Kitchen Supplies - Food and Beverages,21/05/2018,5053724,577.72,Thomas Ridley & Son Ltd
Childrens Services,Children's Social Care,Support Service and Management Costs,Schools Catering,Kitchen Supplies - Food and Beverages,21/05/2018,5053729,962.87,Thomas Ridley & Son Ltd
Childrens Services,Children's Social Care,Support Service and Management Costs,Schools Catering,Kitchen Supplies - Food and Beverages,21/05/2018,5053740,598.96,Thomas Ridley & Son Ltd
Childrens Services,Children's Social Care,Support Service and Management Costs,Schools Catering,Kitchen Supplies - Food and Beverages,21/05/2018,5053750,753.79,Thomas Ridley & Son Ltd
Childrens Services,Children's Social Care,Support Service and Management Costs,Schools Catering,Kitchen Supplies - Food and Beverages,21/05/2018,5053753,548.00,Thomas Ridley & Son Ltd
Childrens Services,Children's Social Care,Support Service and Management Costs,Schools Catering,Kitchen Supplies - Food and Beverages,21/05/2018,5053791,708.87,Thomas Ridley & Son Ltd
Childrens Services,Children's Social Care,Support Service and Management Costs,Schools Catering,Kitchen Supplies - Food and Beverages,21/05/2018,5053798,281.29,Thomas Ridley & Son Ltd
Childrens Services,Children's Social Care,Support Service and Management Costs,Schools Catering,Kitchen Supplies - Food and Beverages,21/05/2018,5053808,325.88,Thomas Ridley & Son Ltd
Childrens Services,Children's Social Care,Support Service and Management Costs,Schools Catering,Kitchen Supplies - Food and Beverages,21/05/2018,5053811,272.88,Thomas Ridley & Son Ltd
Childrens Services,Children's Social Care,Support Service and Management Costs,Schools Catering,Kitchen Supplies - Food and Beverages,21/05/2018,5053817,737.51,Thomas Ridley & Son Ltd
Childrens Services,Children's Social Care,Support Service and Management Costs,Schools Catering,Kitchen Supplies - Food and Beverages,21/05/2018,5053821,754.68,Thomas Ridley & Son Ltd
Childrens Services,Children's Social Care,Family Support Services,IPST S17 NRPF,Childrens Act Section 17 - Other Placements Bed & Breakfast,21/05/2018,5053873,"2,015.00",Finefair Management
Childrens Services,Children's Social Care,Children Looked After,S23 Fam Pl P&V-F/Care,Childrens Act Section 23 - Placement Fee,21/05/2018,5053911,784.00,Swiis Foster Care Limited
Childrens Services,Children's Social Care,Family Support Services,IPST S17 NRPF,Childrens Act Section 17 - Other Placements Bed & Breakfast,21/05/2018,5053976,"1,950.00",Finefair Management
Childrens Services,Children's Social Care,Children Looked After,S23 Fam Pl P&V-F/Care,Childrens Act Section 23 - Placement Fee,21/05/2018,5053983,784.00,Swiis Foster Care Limited
Childrens Services,Education Services,Other Strategic Functions,Alternative Provision,Third Party Payments - Payments to Schools,21/05/2018,5054116,"3,000.00",Green Spring Academy Shoreditch
Childrens Services,Education Services,Other Strategic Functions,Alternative Provision,Third Party Payments - Payments to Schools,21/05/2018,5054126,"3,000.00",Green Spring Academy Shoreditch
Childrens Services,Education Services,Other Strategic Functions,Alternative Provision,Third Party Payments - Payments to Schools,21/05/2018,5054134,"3,000.00",ST Pauls Way Trust School
Childrens Services,Children's Social Care,Support Service and Management Costs,Swanlea,Kitchen Supplies - Food and Beverages,23/05/2018,5040062,662.20,Thomas Ridley & Son Ltd
Childrens Services,Children's Social Care,Support Service and Management Costs,Schools Catering,Kitchen Supplies - Food and Beverages,23/05/2018,5040722,289.04,Thomas Ridley & Son Ltd
Childrens Services,Children's Social Care,Support Service and Management Costs,Schools Catering,Kitchen Supplies - Food and Beverages,23/05/2018,5040726,330.97,Thomas Ridley & Son Ltd
Childrens Services,Children's Social Care,Support Service and Management Costs,Schools Catering,Kitchen Supplies - Food and Beverages,23/05/2018,5040728,471.33,Thomas Ridley & Son Ltd
Childrens Services,Children's Social Care,Support Service and Management Costs,Schools Catering,Kitchen Supplies - Food and Beverages,23/05/2018,5040734,765.09,Thomas Ridley & Son Ltd
Childrens Services,Children's Social Care,Support Service and Management Costs,Schools Catering,Kitchen Supplies - Food and Beverages,23/05/2018,5040736,502.69,Thomas Ridley & Son Ltd
Childrens Services,Children's Social Care,Support Service and Management Costs,Schools Catering,Kitchen Supplies - Food and Beverages,23/05/2018,5040740,294.48,Thomas Ridley & Son Ltd
Childrens Services,Children's Social Care,Support Service and Management Costs,Schools Catering,Kitchen Supplies - Food and Beverages,23/05/2018,5040748,306.39,Thomas Ridley & Son Ltd
Childrens Services,Children's Social Care,Support Service and Management Costs,Schools Catering,Kitchen Supplies - Food and Beverages,23/05/2018,5040750,395.51,Thomas Ridley & Son Ltd
Childrens Services,Children's Social Care,Support Service and Management Costs,Schools Catering,Kitchen Supplies - Food and Beverages,23/05/2018,5040752,410.99,Thomas Ridley & Son Ltd
Childrens Services,Children's Social Care,Support Service and Management Costs,Schools Catering,Kitchen Supplies - Food and Beverages,23/05/2018,5040753,293.35,Thomas Ridley & Son Ltd
Childrens Services,Children's Social Care,Support Service and Management Costs,Schools Catering,Kitchen Supplies - Food and Beverages,23/05/2018,5040755,361.08,Thomas Ridley & Son Ltd
Childrens Services,Children's Social Care,Support Service and Management Costs,Sch. Meals A/c - Central Production Unit,Kitchen Supplies - Food and Beverages,23/05/2018,5040807,"2,284.99",Thomas Ridley & Son Ltd
Childrens Services,Children's Social Care,Support Service and Management Costs,Schools Catering,Kitchen Supplies - Food and Beverages,23/05/2018,5040859,722.05,Thomas Ridley & Son Ltd
Childrens Services,Children's Social Care,Support Service and Management Costs,Schools Catering,Kitchen Supplies - Food and Beverages,23/05/2018,5040865,647.04,Thomas Ridley & Son Ltd
Childrens Services,Children's Social Care,Support Service and Management Costs,Schools Catering,Kitchen Supplies - Food and Beverages,23/05/2018,5040869,614.60,Thomas Ridley & Son Ltd
Childrens Services,Children's Social Care,Support Service and Management Costs,Schools Catering,Kitchen Supplies - Food and Beverages,23/05/2018,5040887,755.09,Thomas Ridley & Son Ltd
Childrens Services,Children's Social Care,Support Service and Management Costs,Schools Catering,Kitchen Supplies - Food and Beverages,23/05/2018,5040891,304.44,Thomas Ridley & Son Ltd
Childrens Services,Children's Social Care,Support Service and Management Costs,Schools Catering,Kitchen Supplies - Food and Beverages,23/05/2018,5040905,692.30,Thomas Ridley & Son Ltd
Childrens Services,Children's Social Care,Support Service and Management Costs,Schools Catering,Kitchen Supplies - Food and Beverages,23/05/2018,5040921,311.93,Thomas Ridley & Son Ltd
Childrens Services,Children's Social Care,Support Service and Management Costs,Schools Catering,Kitchen Supplies - Food and Beverages,23/05/2018,5040927,343.41,Thomas Ridley & Son Ltd
Childrens Services,Children's Social Care,Support Service and Management Costs,Schools Catering,Kitchen Supplies - Food and Beverages,23/05/2018,5040929,289.55,Thomas Ridley & Son Ltd
Childrens Services,Children's Social Care,Support Service and Management Costs,Schools Catering,Kitchen Supplies - Food and Beverages,23/05/2018,5040933,501.03,Thomas Ridley & Son Ltd
Childrens Services,Children's Social Care,Support Service and Management Costs,Schools Catering,Kitchen Supplies - Food and Beverages,23/05/2018,5040939,796.58,Thomas Ridley & Son Ltd
Childrens Services,Children's Social Care,Support Service and Management Costs,Schools Catering,Kitchen Supplies - Food and Beverages,23/05/2018,5040941,"1,413.09",Thomas Ridley & Son Ltd
Childrens Services,Children's Social Care,Support Service and Management Costs,Schools Catering,Kitchen Supplies - Food and Beverages,23/05/2018,5040945,352.96,Thomas Ridley & Son Ltd
Childrens Services,Children's Social Care,Support Service and Management Costs,Schools Catering,Kitchen Supplies - Food and Beverages,23/05/2018,5040947,380.90,Thomas Ridley & Son Ltd
Childrens Services,Children's Social Care,Support Service and Management Costs,Schools Catering,Kitchen Supplies - Food and Beverages,23/05/2018,5040951,754.32,Thomas Ridley & Son Ltd
Childrens Services,Children's Social Care,Support Service and Management Costs,Schools Catering,Kitchen Supplies - Food and Beverages,23/05/2018,5040953,"1,166.54",Thomas Ridley & Son Ltd
Childrens Services,Children's Social Care,Support Service and Management Costs,Schools Catering,Kitchen Supplies - Food and Beverages,23/05/2018,5040957,464.85,Thomas Ridley & Son Ltd
Childrens Services,Children's Social Care,Support Service and Management Costs,Schools Catering,Kitchen Supplies - Food and Beverages,23/05/2018,5040959,347.87,Thomas Ridley & Son Ltd
Childrens Services,Children's Social Care,Support Service and Management Costs,Schools Catering,Kitchen Supplies - Food and Beverages,23/05/2018,5040961,279.54,Thomas Ridley & Son Ltd
Childrens Services,Children's Social Care,Support Service and Management Costs,Schools Catering,Kitchen Supplies - Food and Beverages,23/05/2018,5040963,563.18,Thomas Ridley & Son Ltd
Childrens Services,Children's Social Care,Support Service and Management Costs,Schools Catering,Kitchen Supplies - Food and Beverages,23/05/2018,5040966,489.30,Thomas Ridley & Son Ltd
Childrens Services,Children's Social Care,Support Service and Management Costs,Schools Catering,Kitchen Supplies - Food and Beverages,23/05/2018,5040968,250.37,Thomas Ridley & Son Ltd
Childrens Services,Children's Social Care,Support Service and Management Costs,Schools Catering,Kitchen Supplies - Food and Beverages,23/05/2018,5040970,514.77,Thomas Ridley & Son Ltd
Childrens Services,Children's Social Care,Support Service and Management Costs,Schools Catering,Kitchen Supplies - Food and Beverages,23/05/2018,5040973,842.37,Thomas Ridley & Son Ltd
Childrens Services,Children's Social Care,Support Service and Management Costs,Schools Catering,Kitchen Supplies - Food and Beverages,23/05/2018,5040976,626.35,Thomas Ridley & Son Ltd
Childrens Services,Children's Social Care,Support Service and Management Costs,Schools Catering,Kitchen Supplies - Food and Beverages,23/05/2018,5040979,828.46,Thomas Ridley & Son Ltd
Childrens Services,Children's Social Care,Support Service and Management Costs,Schools Catering,Kitchen Supplies - Food and Beverages,23/05/2018,5040982,632.87,Thomas Ridley & Son Ltd
Childrens Services,Children's Social Care,Support Service and Management Costs,Schools Catering,Kitchen Supplies - Food and Beverages,23/05/2018,5040992,574.34,Thomas Ridley & Son Ltd
Childrens Services,Children's Social Care,Support Service and Management Costs,Schools Catering,Kitchen Supplies - Food and Beverages,23/05/2018,5040998,274.40,Thomas Ridley & Son Ltd
Childrens Services,Children's Social Care,Support Service and Management Costs,Schools Catering,Kitchen Supplies - Food and Beverages,23/05/2018,5041000,383.41,Thomas Ridley & Son Ltd
Childrens Services,Education Services,Other Strategic Functions,Special Education Needs DSG,Third Party Payments - Payments to Schools,23/05/2018,5041047,"-21,000.00",Transitional Care LTD
Childrens Services,Education Services,Other Strategic Functions,Special Education Needs DSG,Third Party Payments - Payments to Schools,23/05/2018,5041048,"-18,166.67",Transitional Care LTD
Childrens Services,Education Services,Other Strategic Functions,Special Education Needs DSG,Third Party Payments - Payments to Schools,23/05/2018,5041049,"21,000.00",Transitional Care LTD
Childrens Services,Education Services,Other Strategic Functions,Special Education Needs DSG,Third Party Payments - Payments to Schools,23/05/2018,5041051,"21,000.00",Transitional Care LTD
Childrens Services,Education Services,Other Strategic Functions,Special Education Needs DSG,Third Party Payments - Payments to Schools,23/05/2018,5041052,"22,750.00",Transitional Care LTD
Childrens Services,Education Services,Other Strategic Functions,Special Education Needs DSG,Third Party Payments - Payments to Schools,23/05/2018,5041053,"21,000.00",Transitional Care LTD
Childrens Services,Education Services,Other Strategic Functions,Special Education Needs DSG,Third Party Payments - Payments to Schools,23/05/2018,5041054,"22,750.00",Transitional Care LTD
Childrens Services,Children's Social Care,Support Service and Management Costs,Swanlea,Kitchen Supplies - Food and Beverages,23/05/2018,5041124,"1,033.56",Thomas Ridley & Son Ltd
Childrens Services,Children's Social Care,Children Looked After,Virtual School PPG,Agency Staff - Associations,23/05/2018,5041128,"1,162.30",Academics ltd
Childrens Services,Children's Social Care,Children Looked After,Enrichment Projects,Agency Staff - Associations,23/05/2018,5041129,460.30,Academics ltd
Childrens Services,Children's Social Care,Children Looked After,Virtual School PPG,Agency Staff - Associations,23/05/2018,5041130,697.38,Academics ltd
Childrens Services,Children's Social Care,Children Looked After,Virtual School PPG,Agency Staff - Associations,23/05/2018,5041131,929.84,Academics ltd
Childrens Services,Children's Social Care,Children Looked After,Virtual School PPG,Agency Staff - Associations,23/05/2018,5041132,697.38,Academics ltd
Childrens Services,Children's Social Care,Children Looked After,Virtual School PPG,Agency Staff - Associations,23/05/2018,5041133,697.38,Academics ltd
Childrens Services,Education Services,Other Strategic Functions,Special Education Needs DSG,Third Party Payments - Payments to Schools,23/05/2018,5041170,"-18,166.67",Transitional Care LTD
Childrens Services,Education Services,Other Strategic Functions,Special Education Needs DSG,Third Party Payments - Payments to Schools,23/05/2018,5041171,"-10,850.00",Transitional Care LTD
Childrens Services,Children's Social Care,Support Service and Management Costs,Schools Catering,Kitchen Supplies - Food and Beverages,23/05/2018,5041199,308.35,Thomas Ridley & Son Ltd
Childrens Services,Children's Social Care,Support Service and Management Costs,Schools Catering,Kitchen Supplies - Food and Beverages,23/05/2018,5041259,529.05,Thomas Ridley & Son Ltd
Childrens Services,Children's Social Care,Support Service and Management Costs,Schools Catering,Kitchen Supplies - Food and Beverages,23/05/2018,5041266,621.11,Thomas Ridley & Son Ltd
Childrens Services,Children's Social Care,Support Service and Management Costs,Schools Catering,Kitchen Supplies - Food and Beverages,23/05/2018,5041272,456.49,Thomas Ridley & Son Ltd
Childrens Services,Children's Social Care,Support Service and Management Costs,Schools Catering,Kitchen Supplies - Food and Beverages,23/05/2018,5041278,423.54,Thomas Ridley & Son Ltd
Childrens Services,Children's Social Care,Support Service and Management Costs,Schools Catering,Kitchen Supplies - Food and Beverages,23/05/2018,5041284,865.61,Thomas Ridley & Son Ltd
Childrens Services,Children's Social Care,Support Service and Management Costs,Schools Catering,Kitchen Supplies - Food and Beverages,23/05/2018,5041290,431.23,Thomas Ridley & Son Ltd
Childrens Services,Children's Social Care,Support Service and Management Costs,Schools Catering,Kitchen Supplies - Food and Beverages,23/05/2018,5041300,635.44,Thomas Ridley & Son Ltd
Childrens Services,Children's Social Care,Support Service and Management Costs,Schools Catering,Kitchen Supplies - Food and Beverages,23/05/2018,5041305,560.83,Thomas Ridley & Son Ltd
Childrens Services,Children's Social Care,Support Service and Management Costs,Schools Catering,Kitchen Supplies - Food and Beverages,23/05/2018,5041316,435.62,Thomas Ridley & Son Ltd
Childrens Services,Children's Social Care,Support Service and Management Costs,Schools Catering,Kitchen Supplies - Food and Beverages,23/05/2018,5041326,334.84,Thomas Ridley & Son Ltd
Childrens Services,Children's Social Care,Support Service and Management Costs,Schools Catering,Kitchen Supplies - Food and Beverages,23/05/2018,5041331,351.72,Thomas Ridley & Son Ltd
Childrens Services,Cultural and Related Services,Open Spaces,P & OS income,Recharges from Directorates - CLC,23/05/2018,5042463,"2,380.00",Rosiek Ltd
Childrens Services,Cultural and Related Services,Open Spaces,Mile End Park,Services - Professional Fees - Security Fees,23/05/2018,5042477,336.16,A P Security (North) LTD
Childrens Services,Children's Social Care,Children Looked After,S23-Other-Mother & Baby Unit,Childrens Act Section 23 - Placement Fee,23/05/2018,5042537,"1,040.00",HMO Property Services Ltd
Childrens Services,Children's Social Care,Children Looked After,S23-Other-Semi-Ind. Unit,Childrens Act Section 23 - Placement Fee,23/05/2018,5042540,"3,857.14",Alpha Care Service Ltd
Childrens Services,Children's Social Care,Children Looked After,S23-Other-Semi-Ind. Unit,Childrens Act Section 23 - Placement Fee,23/05/2018,5042541,"3,857.14",Alpha Care Service Ltd
Childrens Services,Children's Social Care,Children Looked After,S23-Other-Semi-Ind. Unit,Childrens Act Section 23 - Placement Fee,23/05/2018,5042542,"3,857.14",Alpha Care Service Ltd
Childrens Services,Education Services,Other Strategic Functions,Ofsted Improvement Plan,Computing - Purchase of Hardware,23/05/2018,5043083,434.32,VMS Network Cabling Ltd
Childrens Services,Children's Social Care,Support Service and Management Costs,Welfare Catering,Kitchen Supplies - Food and Beverages,23/05/2018,5043235,750.36,Raj Foods LTD
Childrens Services,Children's Social Care,Support Service and Management Costs,Welfare Catering,Kitchen Supplies - Food and Beverages,23/05/2018,5043249,652.27,Raj Foods LTD
Childrens Services,Cultural and Related Services,Open Spaces,Parks & Open Spaces Man&Admin,Repairs and Maintenance - Responsive - Buildings,23/05/2018,5044087,"3,280.00",J&L Coster (Drainage) Ltd
Childrens Services,Children's Social Care,Support Service and Management Costs,Schools Catering,Kitchen Supplies - Food and Beverages,23/05/2018,5045723,300.13,William White Meats Ltd
Childrens Services,Children's Social Care,Support Service and Management Costs,Schools Catering,Kitchen Supplies - Food and Beverages,23/05/2018,5045760,285.30,William White Meats Ltd
Childrens Services,Children's Social Care,Support Service and Management Costs,Schools Catering,Kitchen Supplies - Food and Beverages,23/05/2018,5045768,272.58,William White Meats Ltd
Childrens Services,Children's Social Care,Support Service and Management Costs,Schools Catering,Kitchen Supplies - Food and Beverages,23/05/2018,5045780,302.38,William White Meats Ltd
Childrens Services,Children's Social Care,Support Service and Management Costs,Schools Catering,Kitchen Supplies - Food and Beverages,23/05/2018,5045815,250.32,William White Meats Ltd
Childrens Services,Children's Social Care,Support Service and Management Costs,Schools Catering,Kitchen Supplies - Food and Beverages,23/05/2018,5045819,435.23,William White Meats Ltd
Childrens Services,Children's Social Care,Support Service and Management Costs,Schools Catering,Kitchen Supplies - Food and Beverages,23/05/2018,5046035,386.75,William White Meats Ltd
Childrens Services,Children's Social Care,Children Looked After,Virtual School PPG,Agency Staff - Associations,23/05/2018,5046488,"1,162.25",Academics ltd
Childrens Services,Children's Social Care,Children Looked After,Virtual School PPG,Agency Staff - Associations,23/05/2018,5046489,929.80,Academics ltd
Childrens Services,Children's Social Care,Children Looked After,Virtual School PPG,Agency Staff - Associations,23/05/2018,5046490,697.35,Academics ltd
Childrens Services,Children's Social Care,Children Looked After,Virtual School PPG,Agency Staff - Associations,23/05/2018,5046491,697.35,Academics ltd
Childrens Services,Children's Social Care,Children Looked After,Virtual School PPG,Agency Staff - Associations,23/05/2018,5046492,929.80,Academics ltd
Childrens Services,Education Services,Other Strategic Functions,Special Education Needs DSG,Third Party Payments - Payments to Schools,23/05/2018,5046498,"12,133.22",Ferndearle Child Care Services Ltd
Childrens Services,Education Services,Other Strategic Functions,Schools Library,Services - Professional Fees - Design Fees,23/05/2018,5047123,"2,000.00",Authors Aloud
Childrens Services,Children's Social Care,Children Looked After,Permanancy & Fostering Team,Subscriptions - Associations,23/05/2018,5047137,"1,315.00",Kings College London
Childrens Services,Children's Social Care,Commissioning and Social Work,MASH Team,Computing - Purchase of Software,23/05/2018,5047959,271.70,Specialist Computer Centres PLC
Childrens Services,Children's Social Care,Children Looked After,Leaving Care Staff,Computing - Purchase of Software,23/05/2018,5047960,512.60,Specialist Computer Centres PLC
Childrens Services,Children's Social Care,Children Looked After,S23 Fam Pl P&V-F/Care,Childrens Act Section 23 - Placement Fee,23/05/2018,5049026,"3,180.00",Greater London Fostering LTD
Childrens Services,Children's Social Care,Children Looked After,S23 Fam Pl P&V-F/Care,Childrens Act Section 23 - Placement Fee,23/05/2018,5049027,"3,180.00",Greater London Fostering LTD
Childrens Services,Children's Social Care,Support Service and Management Costs,Welfare Catering,Kitchen Supplies - Food and Beverages,23/05/2018,5049063,315.06,William White Meats Ltd
Childrens Services,Children's Social Care,Children Looked After,S23 Fam Pl P&V-F/Care,Childrens Act Section 23 - Commissioned Services,23/05/2018,5049631,599.04,The Transformed You Community Interest Company
Childrens Services,Education Services,Services to Young People and Other Community Learners,Further and Higher Education,Education Trust - Grant,23/05/2018,5049672,477.00,New City College (Tower Hamlets Campus)
Childrens Services,Education Services,Services to Young People and Other Community Learners,Further and Higher Education,Education Trust - Grant,23/05/2018,5049673,477.00,New City College (Tower Hamlets Campus)
Childrens Services,Children's Social Care,Children Looked After,Leaving Care-UASC,Leaving Care Financial Assistance - Supported Living,23/05/2018,5049684,"4,522.76",Newhaven 16 Plus
Childrens Services,Education Services,Other Strategic Functions,Health through Education,Training Expenses - Staff External Training (UK Based),23/05/2018,5049736,285.00,PSHE Association
Childrens Services,Children's Social Care,Children Looked After,S23-Resi-P&V/OLA-Boarding Sch,Third Party Payments - Payments to Schools,23/05/2018,5049770,"32,514.71",NAS Services Ltd
Childrens Services,Children's Social Care,Children Looked After,S23-Resi-P&V/OLA-Boarding Sch,Childrens Act Section 23 - Placement Fee,23/05/2018,5049770,"32,514.71",NAS Services Ltd
Childrens Services,Children's Social Care,Service Strategy,CSC Childrens Resources M & A,Education & Training - Non Staff Tuition Fees,23/05/2018,5050049,530.00,Pulse First Aid Ltd
Childrens Services,Children's Social Care,Service Strategy,CSC Childrens Resources M & A,Training Expenses - Staff External Training (UK Based),23/05/2018,5050069,525.00,L.A. Training
Childrens Services,Cultural and Related Services,Culture & Heritage,Arts-Park Events,Events & Exhibition Supplies,23/05/2018,5051582,"1,000.00",Brass Volcanoes
Childrens Services,Education Services,Other Strategic Functions,Music Trading Account,Third Party Payments - Voluntary Associations,23/05/2018,5051681,"1,050.00",Rich Mix Cultural Enterprises LTD
Childrens Services,Children's Social Care,Support Service and Management Costs,Sch. Meals A/c - St. Paul's Way Comm. Trust,Kitchen Supplies - Food and Beverages,23/05/2018,5051709,268.43,Chicken Joes
Childrens Services,Children's Social Care,Support Service and Management Costs,Sch. Meals A/c - George Green,Kitchen Supplies - Food and Beverages,23/05/2018,5051730,380.79,Chicken Joes
Childrens Services,Education Services,Other Strategic Functions,Childrens Commissioning,Meeting Expenses,23/05/2018,5053689,344.00,the royal foundation of st katharine
Childrens Services,Cultural and Related Services,Culture & Heritage,Filming,Events & Exhibition Supplies,23/05/2018,5053702,"5,000.00",East End Film Festival CIC
Childrens Services,Children's Social Care,Children Looked After,S23-Other-Semi-Ind. Unit,Childrens Act Section 23 - Placement Fee,23/05/2018,5053928,925.00,Real Life
Childrens Services,Children's Social Care,Children Looked After,S23-Other-Semi-Ind. Unit,Childrens Act Section 23 - Placement Fee,23/05/2018,5053930,925.00,Real Life
Childrens Services,Children's Social Care,Children Looked After,S23-Other-Semi-Ind. Unit,Childrens Act Section 23 - Placement Fee,23/05/2018,5053931,925.00,Real Life
Childrens Services,Children's Social Care,Children Looked After,LCS/Allowances-Accom,Leaving Care Financial Assistance - Supported Living,23/05/2018,5053984,428.40,Newhaven 16 Plus
Childrens Services,Children's Social Care,Children Looked After,S23 Fam Pl P&V-F/Care,Childrens Act Section 23 - Expert Assessmt/Witness Costs,23/05/2018,5054049,500.00,Hopkin Murray Beskine Ltd Client Account
Childrens Services,Children's Social Care,Support Service and Management Costs,Schools Catering,Kitchen Supplies - Food and Beverages,23/05/2018,5054139,256.37,Prescott-Thomas LTD.
Childrens Services,Children's Social Care,Support Service and Management Costs,Schools Catering,Kitchen Supplies - Food and Beverages,23/05/2018,5054157,334.92,Prescott-Thomas LTD.
Childrens Services,Education Services,Other Strategic Functions,ESW Trading Account,Third Party Payments - Other Establishments,23/05/2018,5054225,"10,000.00",Tower Hamlets Education Parnership
Childrens Services,Education Services,Services to Young People and Other Community Learners,Further and Higher Education,Minor Awards - Grant,23/05/2018,5054228,500.00,Ocean Estate Bursary Trust
Childrens Services,Children's Social Care,Service Strategy,FSP Sect 17 - Team 1,Childrens Act Section 17 - Other Childcare Support,23/05/2018,5054238,"3,378.00",Northwood (Manchester East) Ltd
Childrens Services,Children's Social Care,Support Service and Management Costs,Schools Catering,Kitchen Supplies - Food and Beverages,23/05/2018,5054240,276.66,Prescott-Thomas LTD.
Childrens Services,Children's Social Care,Commissioning and Social Work,Children-Mental Health,Third Party Payments - Voluntary Associations,23/05/2018,5054307,"6,250.00",Family Action
Childrens Services,Children's Social Care,Children Looked After,"Edge of Care SIB		",Services - Professional Fees - Financial Services Fees,23/05/2018,5054310,"13,000.00",London Borough Of Sutton
Childrens Services,Children's Social Care,Support Service and Management Costs,Schools Catering,Subscriptions - Associations,23/05/2018,5054344,402.96,LACA Ltd
Childrens Services,Children's Social Care,Support Service and Management Costs,Schools Catering,Kitchen Supplies - Food and Beverages,23/05/2018,5054460,274.21,Prescott-Thomas LTD.
Childrens Services,Education Services,Services to Young People and Other Community Learners,Supported Housing - Young People,Leaving Care Financial Assistance - Supp Accom/Hous Sup Lod,23/05/2018,5054966,"24,333.34",Providence Row Housing Association
Childrens Services,Education Services,Services to Young People and Other Community Learners,Supported Housing - Young People,Leaving Care Financial Assistance - Supp Accom/Hous Sup Lod,23/05/2018,5054970,"40,833.34",One Housing Group
Childrens Services,Education Services,Other Strategic Functions,Music Trading Account,Educational/Training Supplies - Arts & Crafts,23/05/2018,5055564,461.00,Stephen Butler
Childrens Services,Education Services,Other Strategic Functions,Pupil & Student Services GF,Non Staff Transport Costs - Reimbursement,23/05/2018,5055575,"1,480.00",Lindel Services LTD - T/A Fox Transport
Childrens Services,Education Services,Other Strategic Functions,SEN External Travel,Non Staff Transport Costs - Reimbursement,23/05/2018,5055576,"80,809.00",Lindel Services LTD - T/A Fox Transport
Childrens Services,Education Services,Other Strategic Functions,Special Education Needs DSG,Third Party Payments - Payments to Schools,23/05/2018,5055598,"41,478.43",Doncaster Deaf Trust
Childrens Services,Children's Social Care,Children Looked After,S23-Resi-P&V/OLA-Boarding Sch,Childrens Act Section 23 - Placement Fee,23/05/2018,5055598,"41,478.43",Doncaster Deaf Trust
Childrens Services,Children's Social Care,Support Service and Management Costs,Welfare Catering,Kitchen Supplies - Food and Beverages,23/05/2018,5055637,554.68,Apetito LTD
Childrens Services,Children's Social Care,Children Looked After,LCS/Allowances-Accom,Leaving Care Financial Assistance - Grant Pay Special Needs,25/05/2018,5025664,407.00,Light Touch Accomodation Ltd
Childrens Services,No Service Specified,No Division Specified,Capital-Minor Works (SC),Other External Fees - Other External Fees,25/05/2018,5031387,"13,749.50",Tower Hamlets Schools LTD
Childrens Services,Children's Social Care,Services for young people,Youth Service Management,Office Furniture/Equipment,25/05/2018,5042482,"1,181.00",ESPO
Childrens Services,Children's Social Care,Support Service and Management Costs,Swanlea,Kitchen Supplies - Food and Beverages,25/05/2018,5042494,505.63,Thomas Ridley & Son Ltd
Childrens Services,Children's Social Care,Support Service and Management Costs,Sch. Meals A/c - Central Production Unit,Kitchen Supplies - Food and Beverages,25/05/2018,5042495,"1,736.89",Thomas Ridley & Son Ltd
Childrens Services,Children's Social Care,Support Service and Management Costs,Toby Lane Function,Kitchen Supplies - Food and Beverages,25/05/2018,5042496,284.54,Thomas Ridley & Son Ltd
Childrens Services,Education Services,Other Strategic Functions,High Needs Other Boroughs,Third Party Payments - Payments to Schools,25/05/2018,5042543,"8,047.84",The Wyvern Federation (Vauxhall Primary School)
Childrens Services,Children's Social Care,Support Service and Management Costs,Schools Catering,Kitchen Supplies - Food and Beverages,25/05/2018,5042595,334.92,Thomas Ridley & Son Ltd
Childrens Services,Children's Social Care,Support Service and Management Costs,Schools Catering,Kitchen Supplies - Food and Beverages,25/05/2018,5042597,471.62,Thomas Ridley & Son Ltd
Childrens Services,Children's Social Care,Support Service and Management Costs,Schools Catering,Kitchen Supplies - Food and Beverages,25/05/2018,5042599,322.79,Thomas Ridley & Son Ltd
Childrens Services,Children's Social Care,Support Service and Management Costs,Schools Catering,Kitchen Supplies - Food and Beverages,25/05/2018,5042603,552.59,Thomas Ridley & Son Ltd
Childrens Services,Children's Social Care,Support Service and Management Costs,Schools Catering,Kitchen Supplies - Food and Beverages,25/05/2018,5042605,662.88,Thomas Ridley & Son Ltd
Childrens Services,Children's Social Care,Support Service and Management Costs,Schools Catering,Kitchen Supplies - Food and Beverages,25/05/2018,5042613,316.85,Thomas Ridley & Son Ltd
Childrens Services,Children's Social Care,Support Service and Management Costs,Schools Catering,Kitchen Supplies - Food and Beverages,25/05/2018,5042615,714.39,Thomas Ridley & Son Ltd
Childrens Services,Children's Social Care,Support Service and Management Costs,Schools Catering,Kitchen Supplies - Food and Beverages,25/05/2018,5042617,663.92,Thomas Ridley & Son Ltd
Childrens Services,Children's Social Care,Support Service and Management Costs,Schools Catering,Kitchen Supplies - Food and Beverages,25/05/2018,5042619,588.59,Thomas Ridley & Son Ltd
